Category of bank/FI,Name of bank/FI,Branch,State,Sr.No.,Name of Party,Registered Address,Outstanding Amount in Rs. lakhs,Asset Classification,"Date of
Classification",Suit,Name of other banks/ FIs (As Reported by Reporting Bank/ FI),Director_1,Director_1- DIN,Director_2,Director_2- DIN,Director_3,Director_3- DIN,Director_4,Director_4- DIN,Director_5,Director_5- DIN,Director_6,Director_6- DIN,Director_7,Director_7- DIN,Director_8,Director_8- DIN,Director_9,Director_9- DIN,Director_10,Director_1- DIN,Director_11,Director_11- DIN,Director_12,Director_12- DIN,Director_13,Director_13- DIN,Director_14,Director_14- DIN
6,DCB Bank Ltd,Chennai,TAMIL NADU,1,Subhiksha Trading Services Ltd,"Habib Complex, 6th Floor, No. 5 Durgabai Deshmukh Road, R. A. Puram, Chennai – 600 028.",4239.863912,LOSS,40268,Suit,"Icici, Hdfc,Bob, Boi,Yes, Federal, Abn, Barclays, Hsbc, Scb, Kmb, Indusind",Ramaswami Subramanian,20530
6,DCB Bank Ltd,Shakespear Sarani,WEST BENGAL,2,Prime Impex Ltd.,"1st Floor, Azimganj House, 7 Camac Street, Kolkata - 700 017",4899.816329,DOUBTFUL,41090,Suit,"Indian Oversea Bank, Bank Of India, Oriental Bank Of Commerce, Idbi, Yes",Ranjit Kothari,,Anand Kothari,258447
6,DCB Bank Ltd,New Delhi,DELHI,3,Rachna Strips Pvt Ltd,"Plot No. 1208 & 1208A,  Industrial Area, Riico, Rampur Mundana Bhiwadi, Rajasthan",123.77972,SUB STANDARD,41303,Suit,Not Applicable,Suresh Kumar Gupta',1729379,Snehlata Gupta,1729396
6,DCB Bank Ltd,New Delhi,DELHI,4,Kamal Colour Company (Proprietorship),"G-1 Usha Kiran Building, Azad Pur, New Delhi-110033",207.5221222,SUB STANDARD,41395,Suit,Not Applicable,Mr. Kamal Kishor Saspal
6,DCB Bank Ltd,New Delhi,DELHI,5,M/S Star Bazaar Pvt Ltd,B-24 Kaislash Colony New Delhi,387.84412,SUB STANDARD,41551,Suit,Not Applicable,Naveen Malhotra(9810289205),725193,Parineeta Malhotra,725728
6,DCB Bank Ltd,Nariman Point,MAHARASHTRA,6,ABG Shipyard Ltd,"Magdala Village, Off Dumas Road, Surat, Gujarat",8051.829386,DOUBTFUL,44074,Suit,"Ab, Bob, Boi,Canara, Cbi, Dena, Db,Exim,Icici,Idbi,Ifci,Ib,Iob,Lvb,Obc,Pnb,Sib,Scb,Sbi,Sbop,Sbot,Syndicate, Yes",Rishi K Agarwal,162615,Muthuswamy Santhanam,1062192,Dhananjay L  Datar,1685012,Godbole R Pradeep 'Nom',2736644,Ashwini Kumar 'Ind',2863328,Syyed W Z Abdi,6754340,Sushil K Agarwal'Ind',7187788,Ravi V Nevatia 'Ind',7200190
6,DCB Bank Ltd,Chandni Chowk,DELHI,7,Shaan Foods Propritorship,"Flat No 106 & 107 Plot No 877, East Park Road, Karol Bagh, New Delhi - 110005",126.448984,DOUBTFUL,40814,Suit,Pnb/ Syndicate Bank/ State Bank Of Bikaner & Jaipur,Ajay Nehara
6,DCB Bank Ltd,Secundrabad,TELANGANA,8,V Sudhakar Rao (Individual),"10-93,Chandur,Varni, Andhra Pradesh - 503206",380.2870728,DOUBTFUL,42647,Suit,Not Applicable,V Sudhakar Rao
6,DCB Bank Ltd,New Delhi,DELHI,9,Bhupinder  Singh (Individual),"Plot No S-221/101, Block S, Lane No 6, Vishnu Garden , New Delhi - 110018.",688.35239,SUB STANDARD,42859,Suit,Not Applicable,Bhupinder  Singh (Individual)
6,DCB Bank Ltd,Rajkot,GUJARAT,10,Galaxy Enterprises (Proprietorship),"Prop-Prakash, A-25 Market Yard  Santkabir Rd Nr Ring Road, Rajkot, Gujarat, India.",983.8735,DOUBTFUL,42661,Suit,"Axis Bank, State Bank Of Patiala",Prakash J Lakkad
6,DCB Bank Ltd,Bemetara,CHHATTISGARH,11,Pranjal Tiwari (Individual),"Shitala Mandir, Ward Bemetara, Dist-Durg, Pincode - 491335",221.5028403,SUB STANDARD,43043,Suit,Not Applicable,Pranjal Tiwari (Individual)
6,DCB Bank Ltd,Secunderabad,ANDHRA PRADESH,12,Kayen Support Services Private Limited,"Flat No 301 Sri Manus Aroha Chambers 100760406,Rukminipuri Kapra Above Spencers",866.4938396,DOUBTFUL,43110,Suit,Na,Gouri Shankar Srinivas Polisetty,184075,Raghunanthan Balasubramanian,196838,Raghuram Prabandham,3321716
6,DCB Bank Ltd,Pune,MAHARASHTRA,13,Vastushodh Erectors Llp,"Off 102 Lotus Plaza, Sno 15/1B/1 Cts 681, Nr Sangampress Rd/Kothrud, Pune Mh - 411038 In",393.062475,DOUBTFUL,43526,Suit,Na,Kulkarni Sachin Balkrishna (Individual),2332497
6,DCB Bank Ltd,Ludhianan,PUNJAB,14,Jaspreet Singh,"Flat No Orr/Kingston/704, Omaxe Royal Residency, Opp Sterling Resort Pakhowal Road, Ludhiana, Punjab Pin Code -142022",267.17731,DOUBTFUL,43895,Suit,Na,Jaspreet Singh (Individual)
6,DCB Bank Ltd,Noida,HARYANA,15,Kalka Home Developers Pvt Ltd,"Unit No 506, 5Th Floor Ild Trade Centre, Sohna Road, Sec-49 - 44101",3068.692854,DOUBTFUL,43925,Suit,Na,Keshav Kumar,1516880,Yogesh Aggarwal,2303195,Deepak Mangla,3523916,Yogesh Kumar,3525318
6,DCB Bank Ltd,New Delhi,DELHI,16,Sumeru Processor Pvt Ltd,"G-2 Jeevan Apartments 16-A, Jamia Nagar, Okhla - 42051",998.9316348,DOUBTFUL,44043,Suit,Na,Dhiren Navlakha,1162347,Farhad Suri,1502614,Niraj Jha,6990530
6,DCB Bank Ltd,New Delhi,DELHI,17,Hari Kishan (Individual),"House No.101, Sector -14, Vasundhra,Ghaziabad Uttar Pradesh Pin Code -201012",201.949651,SUB STANDARD,43388,Suit,Na,Hari Kishan (Individual)
6,DCB Bank Ltd,Itarasi,MADHYA PRADESH,18,Paramjeet Singh Khanuja (Propritorship),"Plot No-9,10 Khanuja Encla Ve Bawadia Kalan Bhopal , Bhopal - 462001, Madhya Pradesh ,India",103.57,SUB STANDARD,42221,Suit,"Allhabad Bank, Bank Of India",Paramjeet Singh Khanuja
6,DCB Bank Ltd,Surat,GUJARAT,19,Vinod Kumar Bansal (Inidividual),"D-107, Surya Complex, Opp Smce Soc, City Light Road Surat, Gujarat Pin Code - 395007",347.94445,SUB STANDARD,43013,Suit,Na,Vinod Kumar Bansal (Inidividual)
6,DCB Bank Ltd,Mumbai,MAHARASHTRA,20,Ankit Narawane (Inidividual),"Flat No 704/B 7Th Floor Prestige Residenacy Primrose Azelya Chs, Waghbil, Thane West Navi Mumbai Maharashtra Pin Code -400615",307.69819,SUB STANDARD,43043,Suit,Na,Ankit Narawane (Inidividual)
6,DCB Bank Ltd,Brabourne Road-Kolkata,WEST BENGAL,21,Shantiniketan Wheels Pvt Ltd,"P-103,Sector-A Metropolitan Co-Operative Housing Society Opp To Sbi, Kolkata  700 - 105, West Bengal",208.2725921,DOUBTFUL,44191,Suit,Na,Shantiniketan Wheels Pvt Ltd
6,DCB Bank Ltd,Byculla,MAHARASHTRA,22,Tajdin Mohammed Maredia (Individual),"No 602 Vrindavan Chs 32, Mount Mary Road, Bandra West - 400050",542.59162,SUB STANDARD,44321,Suit,Na,Tajdin Mohammed Maredia (Individual)
6,DCB Bank Ltd,Andheri,MAHARASHTRA,23,Idris Ilyas Sayed (Individual),"A-203, 2Nd Floor, A-Wing Yash Residency, Ganga Bawdi Road Dockyard Road, Mazgaon Mumbai Maharashtra Pin Code -400010",137.9616848,SUB STANDARD,43559,Suit,Na,Idris Ilyas Sayed (Individual)
6,DCB Bank Ltd,Malad,MAHARASHTRA,24,Subhash Kumar S (Individual),"House No 31, Mansarowar Tupudna Ps Dhurwa , Ranchi- 834004, Jharkhand",389.3956015,SUB STANDARD,43403,Suit,Na,Subhash Kumar S
6,DCB Bank Ltd,Nariman Point - Mumbai,MAHARASHTRA,25,Mitashi Edutainment Pvt Ltd,"1901-1916,Awing Kailash Business Park Hmpl, Surya Nagar Veer Savarkarroad Vikroli West, Mumbai, Maharashtra - 400079",1098.21983,DOUBTFUL,44620,Suit,Na,Hasmukh Ramjibhai Gada,94868,Rakesh Devendrakumar Dugar,1335219,Sunil Dutt Sharma
6,DCB Bank Ltd,Mohamedali Road - Mumbai,MAHARASHTRA,26,Dye O Tex Dyestuff And Intermediate Pvt Ltd,"408 Adamji Building, 4th Floor, 413 Narsi Natha, Street Nr Masjid Railway Stn, Mumbai, Maharashtra -  400009",152.6679754,DOUBTFUL,44539,Suit,Na,Vijay Dhirajlal Sheth,1001168,Ajay Dhirajlal Sheth,1001235
6,DCB Bank Ltd,Nariman Point - Mumbai,MAHARASHTRA,27,Madhur Arun Bhandari   (Individual),"103 Orchid A Wing Evershine Park Chsl Veera D,  Esai Road Extn Andheri West Nr Country Club, Mumbai, Maharashtra - 400053",1131.5692,DOUBTFUL,44684,Suit,Na,Madhur Arun Bhandari   (Individual)
6,DCB Bank Ltd,Thane,MAHARASHTRA,28,Jaya Infotech Pvt Ltd,"Shop No 2,Pratap Palace,Opp Kotak Bank,R.H.B,  Road,Mulund(W),Mumbai,Opp Kotak Bank, Mumbai, Maharashtra - 400080",438.5496486,SUB STANDARD,44643,Suit,Na,Dharmesh Vinaykumar Shah,5193738,Jalpesh Vinaykumar Shah,5225678,Vinaykumar Hemchand Shah,5225953,Paresh Vinaykumar Shah,5227306
6,DCB Bank Ltd,Thane,MAHARASHTRA,29,Yuvraj Infrastructure (Partnership),"Office No. 515 And 516, 5Th Floor, Nirmal Corporate Center Csl, Moti Nagar, Mulund Colony, Lbs Marg, Mulund (West ), Mumbai – 400 080",235.02181,DOUBTFUL,44047,Suit,Na,Yuvraj Infrastructure (Partnership)
6,DCB Bank Ltd,Kurla,MAHARASHTRA,30,Gopinath Engineering Co. Pvt. Ltd.,"15, Sathyam -C, Satyam Shivam Sundaram, M.G.Road, Ghatkopar (E), Mumbai, Maharashtra -  400077",3153.656459,DOUBTFUL,44501,Suit,Na,Raju Gopinath Nair,2022554,Krishnan Kozhikott Kutty,2022579,Rathnavathi Gopinath,8152275
6,DCB Bank Ltd,Karol Bagh,DELHI,31,Kumar Food Industries Limited,"1101, Pearls Business Park, Netaji Subhash Place, Pitampura, New Delhi -  110034",2297.050647,DOUBTFUL,44894,Suit,Na,Abdul Hasan Ansari,,Bharat Lal Shukla,5174820,Dharminder Joshi,5186749,Heena,7568385,Abhishek Mishra,8775989,Rajneesh Pandey,9054115
6,DCB Bank Ltd,Mohali,PUNJAB,32,Gupta Builders And Promoters P Ltd.,"Sec-196-197 Sector 34A, Chandigarh, Punjab -  140043",972.3930537,DOUBTFUL,44621,Suit,Na,Satish Kumar,2630948,Pardeep Kumar,3585357
6,DCB Bank Ltd,Mohamedali Road,MAHARASHTRA,33,Kamar Trading Company Pvt Ltd,"1st Floor, C/O Crossland Transport Co Pvt Ltd, 398/400 Narsi Natha Street, Nr Railway Station, Mumbai - 400009",197.6824551,DOUBTFUL,44102,Suit,Na,Niloufer Najmuddin Indorewala,453318,Tasneem Shaikh,1734548,Mufaddal Najmuddin Indorewala,1734559
6,DCB Bank Ltd,Shakespeare Sarani - Kolk,WEST BENGAL,34,Sambandh Finserve Private Limited,"Jubilee Villa 1st Floor Plot No-7, Sindhi Colony Mission Hata, Rajgangpur, Odisha - 770017",632.5261374,SUB STANDARD,44196,Suit,Na,Deepak Kindo,1502243,Livinus Kindo,2541650,Akshaya Kumar Parhi,8630665,Girish Kumar Meher,8710330,James Dinesh Raj
6,DCB Bank Ltd,Kalamboli,MAHARASHTRA,35,Aansh Associates ( Partnership),"B 504, Mahavir Icon, Plot 89/90 Sector 15,  Cbd Belapur, Opp Reliance Fresh, Navi Mumbai, Maharashtra -  400614",320.0718793,SUB STANDARD,44682,Suit,Na,Aansh Associates ( Partnership)
6,DCB Bank Ltd,New Delhi,DELHI,36,Su-Kam Power System Limited (Public Limited),"Plot No 54, Sector 37, Udyog Vihar Phase 6, Gurgaon - 122001",764.1435867,DOUBTFUL,44196,Suit,HDFC BANK LIMITED/Hero FinCorp Limited/IDBI Bank Limited/Axis Bank Limited/BANK OF MAHARASTRA,Kunwer Sachdev,2083,Sanjeev Kumar,267841,JYOTIRMOY BOSE,1480466
6,DCB Bank Ltd,Nagpur,MAHARASHTRA,37,Shaktisingh Rajkumar Yadav (Individual),"Yadav Bhawan Kamptee Road,Teka Naka Uppalwa, Near Shiv Mandir,Nagpur - 440026",196.6114418,DOUBTFUL,44504,Suit,Na,Shaktisingh Rajkumar Yadav
6,DCB Bank Ltd,Versova,MAHARASHTRA,38,Shan Traders (Proprietorship),"A/18, Mangal Nagar Chs.Ltd., Yari Road, Versova, Mumbai, Maharashtra -  400061",164.67243,SUB STANDARD,44682,Suit,Na,Mr. Naushad B Bhayani
6,DCB Bank Ltd,Vadodara,GUJARAT,39,Sameer Builders (Partnership),"8, Shanta Park Soc. Opp Jivraj Park Soc.,  Iscon Mandir Rd, Vadodara, Gujarat - 390020",1654.410436,SUB STANDARD,44803,Suit,Na,SAMEER BUILDERS (Partnership)
6,DCB Bank Ltd,Pune Satara Road,MAHARASHTRA,40,Faiyaj Babulal Inamdar (Individual),"Sr No - 13, Hill Mist Harmony Bldg, H Fl No - 502, Pff Nibm Road, Kondhawa Kd, Pune, Maharashtra - 411048",170.52028,STANDARD,0,Suit,Na,FAIYAJ BABULAL INAMDAR (Individual)
6,DCB Bank Ltd,Pune Satara Road,MAHARASHTRA,41,Siraj Ismail Shaikh (Individual),"At Post Garade, Opp Maruti Temple, Tal - Purandhar, Dist -Pune, Maharashtra - 412301",197.8449519,STANDARD,0,Suit,Na,SIRAJ ISMAIL SHAIKH (Individual)
6,DCB Bank Ltd,Raghunathpur,WEST BENGAL,42,Laxminrushingha Enterprises (Proprietorship),"Plot No - 949, At - Nuasasana, Po - Pipili, District - Puri, Orissa - 752104",137.2367735,SUB STANDARD,0,Suit,Na,Laxminrushingha Enterprises (Proprietorship)
6,DCB Bank Ltd,Mysuru,KARNATAKA,43,Pranav Associates (Proprietorship),No 18 5th Main 3Rd Cross Saraswathipuram Mysore Karantaka 44101,236.6407406,DOUBTFUL,0,Suit,Na,Pranav Associates (Proprietorship)
6,DCB Bank Ltd,Pune Satara Road,MAHARASHTRA,44,Sushilkumar Premchand Agarwal (Individual),"H No - 174, Dehugaon, Alandird, Near Jain Mandir, Vithalwadi Road, Pune, Maharashtra - 412109",343.0527987,SUB STANDARD,0,Suit,Na,SUSHILKUMAR PREMCHAND AGARWAL (Individual)
6,HDFC BANK LIMITED,Nasik,Maharashtra,1,Datar Switchgear Ltd,"Datar Commpercial Complex, Vakil Wadi, Nasik 422 001.",332.02,Loss Assets,31.08.2001,Suit,,Rajan Datar,,Shobhana Datar
6,HDFC BANK LIMITED,Mumbai,Maharashtra,2,East West Travels & Trade Links,"Sophi, 18 New Kanta Wadi Road, Off.Perry Cross Road, Bandra, Mumbai - 400 050.",194,Loss Assets,31.03.2001,Suit,,Thakiyudeen Wahid,,Naserudhin Wahid
6,HDFC BANK LIMITED,Mumbai,Maharashtra,3,Kedia Distilleries Ltd,"604/65, Keshava Building, Bandra Kurla Complex, Bandra (East), Mumbai 400 051.",309,Loss Assets,30.04.1998,Suit,,K.P. Kedia,,Vinay Kedia,,P.K. Deora,,T.C. Sheth,,B.L. Banka,,B.D. Shah
6,HDFC BANK LIMITED,Mumbai,Maharashtra,4,Orient Syntex,"Maker Chambers V, 6th Floor, Nariman Point, Mumbai 400 021.",284.8,Loss Assets,31.05.1998,Suit,,S.K. Kejirwal,,S. Padmanabhan,,Rabindra Kapu,,R.N. Mehta,,B.H. Antia,,S.K. Keer,,G.L. Lath
6,HDFC BANK LIMITED,Mumbai,Maharashtra,5,Otoklin Plants,"Plot No.1, Shah Industrial Estate, Veera Desai Road, Azad Nagar Post, Andheri (W), Mumbai 400053.",464.42,Loss Assets,31.12.1997,Suit,,Dhaval Jhaveri,,Dilip Jhaveri,,Rajendra Jhaveri,,Kokola S. Jhaveri,,Pradeep P. Shukla,,Upendra P. Poojara,,Ramesh A. Dalal,,Vinay N. Meckoni
6,HDFC BANK LIMITED,Pune,Maharashtra,6,Patheja Engg Ltd,"250, A Boat Club Road, Sangam Wadi, Pune 411 001.",241,Loss Assets,30.06.1998,Suit,,Mansingh Patheja,,V.S. Patheja,,G.S. Patheja,,P.S. Patheja,,N.G. Shahane,,Radhika Mehta
6,HDFC BANK LIMITED,Pune,Maharashtra,7,Patheja Brothers,"250, A Boat Club Road, Sangam Wadi, Pune - 411001",402.19,Loss Assets,30.03.1998,Suit,,Mr. Mansingh Patheja,,Mr. V.S. Patheja,,Mr. G.S. Patheja,,Mr. P.S. Patheja,,Mr. N.G. Shahane,,Ms. Radhika Mehta
6,HDFC BANK LIMITED,Mumbai,Maharashtra,8,Rajinder Steels Ltd,"Rajinder House, 17, Road No.9, MIDC, Marol, Andheri (East), Mumbai 400 069.",165,Loss Assets,31.10.1997,Suit,,D.S. Batra,,K.L. Ahuja,,S.K. Asthana,,G.K. Batra,,H.S. Gandhi,,H.B.S. Jolly,,B.K. Tandon,,P.R. Latey,,J.C. Malhotra,,J.C. Malhotra,,H.K. Sarkar,,A.K. Mehta,,G.K. Batra
6,HDFC BANK LIMITED,Mumbai,Maharashtra,9,Rajinder Pipes Ltd,"Rajinder House, 17, Road No.9, MIDC, Marol, Andheri (East), Mumbai 400 069.",395,Loss Assets,31.10.1997,Suit,,D.S. Batra,,K.L. Ahuja,,S.K. Asthana,,G.K. Batra,,H.S. Gandhi,,H.B.S. Jolly,,B.K. Tandon,,P.R. Latey,,J.C. Malhotra,,J.C. Malhotra,,H.K. Sarkar,,A.K. Mehta,,G.K. Batra
6,HDFC BANK LIMITED,Chennai,Tamil Nadu,10,Sri Venkatesa Paper & Boards Ltd.,"Swaminathapuram, Madhatukum, Udumalpet, Tamil Nadu 642 113",330,Loss Assets,31.10.1999,Suit,,Soundarrajan,1556528,S. Prasad,2899654,Meena,2899648,Ramakrishna,,Velusamy,,Raghavan,,Pattabiraman
6,HDFC BANK LIMITED,Chennai,Tamil Nadu,11,Tribology Ltd.,"No.1, Smith Road, Chennai 600 002.",152.02,Loss Assets,31.07.1999,Suit,,R. Ratnam,,Ashok Muthana,,Leela Ratnam,,V. Gopal,,George Cros,,Bernard Grellet,,K. Balasubramaniam
6,HDFC BANK LIMITED,Mumbai,Maharashtra,12,Manoj Shah,"3, Hawalkar Building, NC Kelkar Road, Dadar (W), Mumbai 400 028.",984,Loss Assets,02.02.1998,Suit,,Manoj Shah
6,HDFC BANK LIMITED,Mumbai,Maharashtra,13,Atul Shah,"203, Oomrigar Building, L.T. Marg, Crawford Market, Mumbai 400 003.",290,Loss Assets,02.02.1998,Suit,,Atul Shah
6,HDFC BANK LIMITED,Mumbai,Maharashtra,14,Jayanti Business Machines Ltd.,"JEM Complex, Opp. Chakala Cigarette Factory, Sahar Road, Andheri (E), Mumbai 400 069.",312,Loss Assets,14.09.1999,Suit,,Abhijit Sing Roy,,S.N. Pushkarna
6,HDFC BANK LIMITED,Chennai,Tamil Nadu,15,N.J. Shah (Partnership firm),"25, Bunder Street, Chennai 600 001",632,Loss Assets,13.08.2001,Suit,,Smt. Lilavati J. Shah,,Bharat J.Shah,,Narendra J. Shah,,Jayantilal K. Shah,,Deepak J. Shah,,Prakash J. Shah
6,HDFC BANK LIMITED,Chennai,Tamil Nadu,16,Harita Mercantile Ltd.,"1, E.K. Guru Street, Periamet, Chennai 600 003.",129,Loss Assets,28.09.1998,Suit,,M.K. Gupta,,Manoj Kumar,,M. Ganesh Omprakash
6,HDFC BANK LIMITED,Ahmedabad,Gujarat,17,Shree Minal Oil & Agro Inds.,"8th Floor, Popular House, Ashram Road, Ahmedabad 380009",3166.12,Loss Assets,01.10.2001,Suit,,Pramod U Patel,,Krishna S.V.,,Dr. M.S. Patel
6,HDFC BANK LIMITED,Chennai,Tamil Nadu,18,Union Motor Services Ltd,"NP 32 & 46 Thiru-Vi-Ka Industrial Estate, Ekkaduthangal, Chennai 600 032",899.27,Loss Assets,30.06.2003,Suit,,Harita Srinivsan (since deceased) represented by his legal heirs.
6,HDFC BANK LIMITED,Mumbai,Maharashtra,19,Elbee Services Ltd,"S.M. House, 11 Sahakar Road, Vile Parle East, Mumbai 400 057.",2300,Loss Assets,25.01.2003,Suit,,Chandrika Shah,,Mahendra Doshi,,Vivek Talwar,,Anand Bhatt,,Dinesh Kanabar
6,HDFC BANK LIMITED,Ahmedabad,Gujarat,20,Jhaveri Polymers,"Plot no. 8/2, G.I.D.C., Palej, Dist. Bharuch, Gujarat.",312.86,Loss Assets,16.08.2005,Suit,,Rajnikant Jhaveri,,Amit Jhaveri,,Parag Jhaveri,,Smt. Nishita Jhaveri,,N.N. Patel
6,HDFC BANK LIMITED,KOTKAPURA,PUNJAB,21,SARASWATI EXTRACTIONS P. LTD.,"POST BOX NO.51, FARIDKOT ROAD, KOTKAPURA-151204, PUNJAB",196,Loss Assets,31.03.2000,Suit,,BHARAT BHUSHAN MITTAL,,SUBHASH CHANDER MITTAL,,VED PRAKSH (PROF.),,SURAJ PRAKASH (PROF)
6,HDFC BANK LIMITED,"KALSI NAGAR, LUDHIANA",PUNJAB,22,BEDI TYRE CENTRE P. LTD.,"167, ADJOINING MANJU CINEMA, NEAR DHOLEWAL CHOWK, LUDHIANA-141003.",112,Loss Assets,31.12.2001,Suit,,MANMOHAN SINGH BEDI,,GURPREET SINGH BEDI,,ALKA BEDI
6,HDFC BANK LIMITED,"KALSI NAGAR, LUDHIANA",PUNJAB,23,BEDI AUTOMOBILES P. LTD.,"S.C.O.-18, TRANSPORT NAGAR, LUDHIANA.",230,Loss Assets,31.12.2001,Suit,,MANMOHAN SINGH BEDI,,GURPREET SINGH BEDI,,GURMEET KAUR
6,HDFC BANK LIMITED,MUMBAI-NARIMAN POINT,Maharashtra,24,DENA BANK,"MAKER TOWER E""", CUFFE PARADE," MUMBAI-400005""",232,Loss Assets,31.03.2002,Suit,,NA
6,HDFC BANK LIMITED,MUMBAI-CHOWPATTY/INDRALOK,Maharashtra,25,SANDIP SHAH,"CHAIRMAN-ELBEE SERVICES LTD., 11 SAHAKAR ROAD, VILE PARLE (E), MUMBAI-400057",2002,Loss Assets,30.06.2003,Suit,,SANDIP SHAH
6,HDFC BANK LIMITED,"MUMBAI, NARIMAN POINT",Maharashtra,26,Elbee Services Ltd,"S.M. House, 11 Sahakar Road, Vile Parle East, Mumbai 400 057.",2300,Loss Assets,30.06.2003,Suit,,SANDIP SHAH,,AVINASH L.KELKAR,,NIKHIL MORASWALA,,ASHEESH MOHTA
6,HDFC BANK LIMITED,Mumbai,Maharashtra,27,Prof.Gajjar's Standard Chemical Works Ltd.,"2, Masrani Lane, Kurla (W), Mumbai 400 070",484,Loss Assets,31.03.2003,Suit,,Nimesh C. Shah,,Chandrakant N. Shah
6,HDFC BANK LIMITED,COIMBATORE,Tamil Nadu,28,SHINE PLASTICS PVT LTD,"P B NO.7, KARAIGOUNDENPALAYAM, ANNUR, COIMABTORE 641 653",256,Loss Assets,30.11.1998,Suit,,AYESHA MRS,,FAIZAL,,HAFSATH,,NASEEMA MRS,,MOHAMMED YASIN,,NIHAS,,PATHUKUNJI SHAHITHA MRS,,SHEEBA MRS,,K.ABOOBACKER,,K.ABOOBACKER
6,HDFC BANK LIMITED,COIMBATORE,Tamil Nadu,29,G.K.STEEL & ALLIED INDUSTRIES,"AVINASHI ROAD, COIMBATORE",200,Loss Assets,31.03.1999,Suit,,KANDASAMY K,,NARAYANASAMY.K,,VENKATESH K
6,HDFC BANK LIMITED,CHENNAI,Tamil Nadu,30,MAHESWARI IRON & STEEL LTD,"11, SEMBUDOSS STREET, CHENNAI -1",363,Loss Assets,30.09.1996,Suit,,BINENDRA MAHESWARI,,KRISHNA MAHESWARI,,RAVINDRA MAHESWARI
6,HDFC BANK LIMITED,COIMBATORE,Tamil Nadu,31,VIPRAH TECHNOLOGIES PVT LTD,"725-D, SRI KAMAKSHI KRUPA, S.R. COMPLEX AVINASHI ROAD, COIMBATORE 641 018",104,Loss Assets,30.09.2000,Suit,,ANANTH C K,,SUJATHA ANANTH MRS,,PALANISWAMY M,,BRUCE A HAUPTMAN,,CHANDRASEKER P,,SRIRAM K
6,HDFC BANK LIMITED,NEW DELHI,NEW DELHI,32,Koshika Telecom,"USHA BHAVAN#A-41, MOHAN CO-OPVE INDUSTRIAL ESTATE, MATHURA ROAD, NEW DELHI.",996.21,Loss Assets,31.01.2002,Suit,,ANIL RAI,,VINAY RAI
6,HDFC BANK LIMITED,NEW DELHI,NEW DELHI,33,B.S.ALUMINIUM (P) LTD,"SHOP NO:4, THAPAR CHAMBER III, D.B.GUPTA ROAD, PAHARGANJ, NEW DELHI - 110 055. S-221/101, Vishnu Garden, New Delhi.",171,Loss Assets,31.03.2005,Suit,,MR.BHUPINDER SINGH,,MR.SURJEET SINGH,,"MR.RAGHBIR SINGH(PROP),",,M/S.BATTAN SINGH MEHAR,,MR.SIRI RAM (GUARANTOR)
6,HDFC BANK LIMITED,KOTTAYAM,Kerala,34,ELANGULAM SERVICE CO-OPERATIVE BANK LTD,"NO.3576,KOORALI.P.O,KOTTAYAM",182,Loss Assets,31.12.1998,Suit,,NA
6,HDFC BANK LIMITED,Ahmedabad,Gujarat,35,Pramukh Agro,"601,6TH FLOOR,HARIKRUPA TOWERS,AHMEDABAD",275.83,Loss Assets,31.03.2005,Suit,,MR.RASIKBHAI ISHWARBHAI,297394,BHARATBHAI.T.PATEL,,ASHWINBHAI.I.PATEL,,MRS.SANTOKBEN .I.PATEL,,TRIBHOVAN I.PATEL,,JAYANTIBHAI.I.PATEL,,DASHRATHBHAI.I.PATEL,,BABHUBHAI.I.PATEL,,PRAVINBHAI.I.PATEL,,PRAVINBHAI.I.PATEL,,M/S MARINE HOVER INDIA L
6,HDFC BANK LIMITED,Ahmedabad,Gujarat,36,Noble Filaments P Ltd,"BLOCK NO.84,PLOT NO.73-83,AKASH INSUCTRIAL ESTATE,TALUKA MANGROL,SURAT",253.88,Loss Assets,30.11.2006,Suit,,ANAND SWAROOP,11058,MRS.ARATI SWAROOP,11054
6,HDFC BANK LIMITED,Ahmedabad,Gujarat,37,Vishal Export Overseas,"Vishal House""", Opp. Sales India, Behind Bank Of Commerce, Ashram Road," AHMEDABAD-380009.""",1112.34,Loss Assets,30.11.2006,Suit,,Mr. Subhashchandra Mehta,,Mr. Dipak Mehta,12647,Pradeep. S. Meh,27322
6,HDFC BANK LIMITED,Jammu,Jammu & Kashmir,38,J K Metals,"B-BLK UNIT IST FLOOR,  SURAJMAL, VIHAR, NEW DELHI 110092",5455.939626,Loss Assets,31.12.2008,Suit,,"S. Kavita Kumar, Proprietor"
6,HDFC BANK LIMITED,Madurai,Tamil Nadu,39,Sri Mapillai Vinayagar Spinning Mills Ltd,"No:163, Netaji Road, Madurai -625 001- Tamil Nadu",2958.632369,Loss Assets,31.05.2007,Suit,,Mr Kadirvel,,Mr Kannan,,Mr Balamuruganandam
6,HDFC BANK LIMITED,"D B Road, R S Puram",Tamil Nadu,40,Prathebaa Fashion,"SF No:229/2A, Vengamedu, Chettipalayam Main Road, Angeripalayam, Tirupur 641 603",2226.546772,Loss Assets,31.08.2008,Suit,,Mr Ramachandharn-Prop
6,HDFC BANK LIMITED,Erode,Tamil Nadu,41,P Sellappan,"A-A, Amma Nagar, Pallipalayam,Erode 698 006.",1190.225502,Loss Assets,30.09.2008,Suit,,Mr Sellappan-Prop
6,HDFC BANK LIMITED,Tirupur,Tamil Nadu,42,Tex India Fabrics,"NO;35, C Karipudur Main Roasd, Veerapandi,Via Palladam Tk, Coimbatore 641 605",1097.239258,Loss Assets,31-07.2008,Suit,,Mr S Rathisamai-Prop
6,HDFC BANK LIMITED,Mandigobindgarh,PUNJAB,43,Patiala Enterprises,"GT Road,Sirhind Side, Vill.Abme Majra, Mandi Govindgarh, Punjab",744.5577098,Loss Assets,30.04.2008,Suit,,Sukhdeep Singh Virk,,Sarabjit Singh
6,HDFC BANK LIMITED,Green Park Extn,New Delhi,44,Philco Crafts,"Plot No 7 Krishna nagar, Opp. B-4/175, Safdarjung Enclave, New Delhi",894.3266584,Loss Assets,31.10.2009,Suit,,Amit Kukreja,,Mohit kureja
6,HDFC BANK LIMITED,Amritsar,New Delhi,45,Hakam Chand & Co.,"490,Green Avenue Amritsar",146.47,Loss Assets,31.10.2007,Suit,,Gurdas Ram Arora,,Kewal Arora,,Sanjeev Arora,,Pushpa Arora
6,HDFC BANK LIMITED,Andheri East,Maharashtra,46,Brightland Resorts Pvt Ltd,"7, Moon Stone Apartment, 2nd floor, 65 E, Linking Road, Santacruz (W), Mumbai 400 054  OR At Moulana Azad Road, off, M G Road, Matheran, Taluka Karjat, Dist. Raigad.",644.66726,Loss Assets,24.01.2009,Suit,,Mr. Adi Soli Barucha,2090872,Mrs. Hutokshi A Barucha,,Hooshaan Adi Bharucha,1661305,Mr. Arjas A Barucha,1908340,CHANDRASHEKHAR SITARAM TAMANEKAR,165085,PERCY FARAMROZE LAKADIA,165120,PRABHAKAR DANDEKAR,2787236,NA
6,HDFC BANK LIMITED,Amritsar,Punjab,47,Nanak Enterprises Private Limited,"Nanak Enterprises Pvt Ltd, 407, Industrial Area Phase – IX, MOHALI, PB",765.7096241,Loss Assets,28.08.2007,Suit,,Mr. Rajeev Arora,1947424,Mr. Sanjeev Arora,,Mr. Gurdas Ram,,Mr. Kewal Arora,,Dev Karan Singh,1723758
6,HDFC BANK LIMITED,Bhubaneshwar,Orissa,48,United Traders,"8/B, BHAGVANPUR IND. ESTATE, PATRAP,BHUBANESWAR, ORISSA  751002",858.0487368,Loss Assets,31.07.2008,Suit,,Mr. Manoranjan Biswal,,NA,,NA,,NA,,NA,,NA,,NA,,NA,,NA,,NA
6,HDFC BANK LIMITED,Bhubaneshwar,Orissa,49,Appliances City,"B/25, ASHOKAMARKET, UNIT-II, ASHOKN, BHUBANESHWAR, ORISSA 751009",609.7429624,Loss Assets,31.07.2008,Suit,,Mrs. Deepti Biswal,,NA,,NA,,NA,,NA,,NA,,NA,,NA,,NA,,NA
6,HDFC BANK LIMITED,Chadani Chowk,Delhi,50,Jain Sons Traders,"932,2nd floor, Kucha Qabil Attar, Chandni Chowk, Delhi",1206.428661,Loss Assets,29.05.2009,Suit,,Yogendra Kumar Jain,,Deepak Kumar Jain
6,HDFC BANK LIMITED,Karol Bagh,Delhi,51,Vishal Hira Merchants Pvt Ltd,"13/2, Padam Singh Road, Karol Bagh, Delhi",1016.054474,Loss Assets,31.01.2009,Suit,,Dheeraj Kumar Grover,,Vishal Grover
6,HDFC BANK LIMITED,Railway Road Gurgaon,Haryana,52,Mangla Trading Corporation,"495/7, Khadipur Ind. Area, Gurgaon",976.497491,Loss Assets,31.08.2008,Suit,,Krishan Kumar Aggarwal [ Prop.]
6,HDFC BANK LIMITED,Bhubaneshwar,Orissa,53,Pramila Mining & Alloys Pvt Ltd,"Reg. Off: A-94, Saheednagar, Bhubaneshwar – 751 007.",1399.718065,Loss Assets,31-12-08,Suit,,Mr.Biswa Ranjan Ray (Managing Director),1756012,Mrs.Sonia Raha,,Mrs.Debakanta Mohapatra,1756019,Mr. Akshay Kumar Mohapatra,,Mr. Sadhu Charan Samatray.
6,HDFC BANK LIMITED,Warangal,Andhra Pradesh,54,K Sada Vijaykumar Beedi Leaves Merchants & Agent,"11-15-24, LAXMIPURAM, NARSAMPET ROAD",1880.338308,Loss Assets,31.07.2008,Suit,,K Sadavijay kumar
6,HDFC BANK LIMITED,"Vallakuhun Br,Madurai",Tamil Nadu,55,Tms Oil Mills,"No. 160 (new) no 152/154, Madurai Main Road, Thirumangalam,Madurai- 625706",1771.514639,Loss Assets,30.09.2008,Suit,,Mr. Mohan
6,HDFC BANK LIMITED,Secunderabad,Andhra Pradesh,56,Aarti Distributors,"H.NO.4-4-54-56, 1ST FLOOR, GUNJ BAZAR,,",1194.858702,Loss Assets,28.02.2009,Suit,,Mr. Deepak Sharma,,Mr. Ashok Kumar
6,HDFC BANK LIMITED,"M-39, Con. Place",Delhi,57,Incentive Travels Pvt Ltd,"189&195, Flyover Market, Defence Colony, Delhi -110 024.",1284.533768,Loss Assets,06.09.2009,Suit,,Anil Kumar Gujral,291654,Mrs Magie Gujral,2008344,Mr. Sarabjit Singh,,B.S. Ahuluwalia
6,HDFC BANK LIMITED,"Kalsi Nagar, Ludhiana",Punjab,58,A-One Mega Mart Pvt Ltd,"Shop no. 141Mochhapura bazar, Brown Road , Ludhiana",3172.634682,Loss Assets,30.11.2008,Suit,,Mr. Baldev Raj Malhotra,,Mr. Bir Parkash Malhotra,777346,Monika Malhotra,777506
6,HDFC BANK LIMITED,"Sector-16, NOIDA",Delhi,59,Advantage Eng. Devel. P Ltd,"19-C, DDA Flats , Masjid Modh-1, Greater Kailash -III, New Delhi",799.2191012,Loss Assets,31.08.2008,Suit,,Mahim Mittal,937862,Asit Mittal,937779
6,HDFC BANK LIMITED,"Rajouri Garden, ND",Delhi,60,Orient Auto Industries,"J-7/12C (13), Rajouri Garden, New Delhi",234.41,Loss Assets,31.12.2008,Suit,,Harjeet Singh Bedi,,Harwant Kaur Bedi-Guarantor.,,Jagmit Singh Shahpuri-Guarantor.
6,HDFC BANK LIMITED,"Millers Road, BangaloreKarnataka",Karnataka,61,Universal Shipping Company Pvt Ltd,"S-704, Manipal Centre,Dickenson Road, Bangalore 560042",376.5848183,Loss Assets,01.05.2009,Suit,,Venu Babu Kode(Managing Director),1819408,Usha Rani Mannam,,LAKSHMI KODE,2986503,VITHAL KODE,2986513
6,HDFC BANK LIMITED,Bhubaneshwar,Orissa,62,SGC Trading Pvt Ltd,"Plot No.349, Rajendra Nagar, P.O.: Cuttack-753013, P.S.: Madhupatna, District- Cuttack",1273.786333,Loss Assets,31.08.2008,Suit,,Mr.Somnath Adhikari,,Mr.Biswanath Muduli,,Mrs.Archana Adhikari
6,HDFC BANK LIMITED,Bhubaneshwar,Orissa,63,S K Samaland Co Construction Pvt Ltd,"House No.132, Ward No.6, Sutahat, Meria Bazar, PO-Buxi Bazar, Cuttack",1096.752103,Loss Assets,31.05.2008,Suit,,"Mr. Sudhindra Kumar Samal,",,Ms. Swapna Samal,,Mr. Nirod Baran Samal,,Md. Hussain,,Mr.M Jagannath Rao.
6,HDFC BANK LIMITED,"Millers Road, Bangalore",Karnataka,64,Ravika Creations Pvt Ltd,"62/4, Bommanahalli Village, Begur Hobli, Bangalore",1184.271083,Loss Assets,31.07.2008,Suit,,Vikram Chabria,,Kawal Chabria,,Ranjith Chabria
6,HDFC BANK LIMITED,Hyderabad,Andhra Pradesh,65,United Transports,"Shop no. 18, Triveni Complex, Hapsiguda Cross Road, Hyderabad - 7",1533.324286,Loss Assets,01.05.2009,Suit,,Venkatrama Reddy
6,HDFC BANK LIMITED,Hyderabad,Andhra Pradesh,66,Vishnupriya Agency,"H NO.6-3-668/10 PLOT NO.49, IIND FLOOR DURGA NAGAR COLONY, ., HYDERABAD, ANDHRA PRADESH",2175.661603,Loss Assets,31.10.2008,Suit,,Mallineni Srinivasa Rao,,Dandamudi Srinivas,,Sajja Venkateshwara Rao,,Gullapalli Chandrashekhar Rao
6,HDFC BANK LIMITED,Green Park Extn,New Delhi,67,Indus Polyfilms Specialists Pvt Ltd,"E 336 Greater Kailash II , New Delhi",409.041864,Loss Assets,01.05.2009,Suit,,Mr. Sanjeev Mehta,1207910,Mr. Deepak Mehta,1207866
6,HDFC BANK LIMITED,Bangalore,KARNATAKA,68,Aaura Data Networks Pvt Ltd,"#17, 1st Cross, 5th A Block, Koramangala,Near Kotak Bank, Bangalore - 560095",852.1506125,Loss Assets,29.12.2009,Suit,,MADHU LAKSHMINARAYAN,1805107,Mrs.Suchitraa Madhu (Managing Director),1805073
6,HDFC BANK LIMITED,Bangalore,KARNATAKA,69,Apsis Technologies Pvt Ltd,"#2930/15,1ST FLR, BASAVESHWARA COMPLEX,MKK RD RAJAJINAGAR, BANGALORE, KARNATAKA-560010",3128.689046,Loss Assets,29.12.2009,Suit,,MADHU LAKSHMINARAYAN,1805107,Mrs.Suchitraa Madhu,1805073,RAGHUNATH KRISHNASWAMY,2481530
6,HDFC BANK LIMITED,Bhubaneswar,Orissa,70,JBS Transport Pvt Ltd,"1st Floor, Mahapatra Building, Near Canara Bank, Bank Street, Jajpur Road – 755019.",763.748155,Loss Assets,29-08-10,Suit,,"Mr. Abhishek Kumar Mohanty,",2142034,"Mr. Satyabrata Mohapatra,",2142043
6,HDFC BANK LIMITED,Malvishram-Vellore,Tamil Nadu,71,Oxford Enterprises,"No:7/3A, Nakkiar Street, Arcot 632503",307.420959,Loss Assets,30.09.2008,Suit,,Mr T Nehru
6,HDFC BANK LIMITED,Mumbai,Maharashtra,72,Shree Parivar Appliances,"Gala no.35 &36, Dadoji Konddev Stadium, Khartan Road, Thane (w) 400602",436.4123229,Loss Assets,29.11.2009,Suit,,Mr.Sunil Shankar Agharkar (Managing Director),1910622,Mr.Hemant Arvind Kelkar,,Mr.Kishor Madhukar Jadhav,,Mrs.Anjali Maruti Patil
6,HDFC BANK LIMITED,BANGALORE,Karnataka,73,Narayanaa Electrical Solutions P Ltd,"#69, 1st Floor, 
4th Main, 4th Block, 
3rd Stage, S.G Nagar, 
Basaveswaranagar, Bangalore- 560079",3592.814024,Loss Assets,02.04.2010,Suit,,Narasimha Murthy,,UGRAIAH NARAYANA MURTHY,1906300,SHANKAR RAO SURESH (Additioanal Director),3616453,SANTOSH PATIL (Additional Director),5197470
6,HDFC BANK LIMITED,Noida,Uttar Pradesh,74,Schaefco International,"401, Devika Towrs Nehru Place",1157.485812,Loss Assets,15.04.2010,Suit,,Prop. Kevin Hayms
6,HDFC BANK LIMITED,Patiala,Punjab,75,Patiala Enterprises (Patiala),"SCF -122, chotti Baradari, Patiala",717.3806244,Loss Assets,24.03.2010,Suit,,Ms. Taranjeet Kaur
6,HDFC BANK LIMITED,Sirsa,Haryana,76,Sirsa Solvent Industries,"Dawali Road, Sirsa , Haryana",281.9698734,Loss Assets,29.01.2011,Suit,,Mr Rajinder Kumar,,Mr Ashok Kumar,,Om Prakash
6,HDFC BANK LIMITED,Bhubaneswar,Orissa,77,JBS Minerals & Overseas Pvt Ltd,"Plot no.333, Cuttuck Road, Bomikhal, Bhubaneswar 751010.",1571.797376,Loss Assets,28-02-11,Suit,,Mr.Pravanjan Mohanty (Managing Director),1600722,Mrs.Sumana Mohanty
6,HDFC BANK LIMITED,Jalandhar,Punjab,78,Salwan Travel Services Pvt Ltd,"122, Ist floor Ansal Chamber-1,BKG-Cama place N.Delhi",265.7260895,Loss Assets,28-02-09,Suit,,Kulwant Rai,145532,Deepak Salwan,,KAILASH DEVI,5310786
6,HDFC BANK LIMITED,Willington Island,Kerala,79,R V Tea Trades,"24/1474, Milne Road, Willington Island, Ernakulam – 682 003.",274.8604726,Loss Assets,30.09.2008,Suit,,B.Somasekharan Nair,,M R Ragini Devi,,Shibu.S,,Joshy.K.S
6,HDFC BANK LIMITED,Indralok Mumai,Maharashtra,80,Kenwood Marketing Inc,"18/63-64, Oshiwara Silver sand coop housing society Ltd, New Link Road, Oshiwara, Andheri west, Mumbai.3400102",248.2234208,Loss Assets,29-06-09,Suit,,Mr. Rajan Mehrotra,,Mr.Karan Mehrotra,,Mr.Harsha Mehrotra
6,HDFC BANK LIMITED,"Vallakuthun Br,Madurai",TAMIL NADU,81,Supreme Pipe Syndicate,"No:51, West Masi Street, Madurai 625 001",718.4596311,Loss Assets,29-11-09,Suit,,Mr S Mohamed Yahiya,,Mr S Abdul Rahman,,Mr S Rahamathullah
6,HDFC BANK LIMITED,Cenotaph Road-Chennai,Tamil Nadu,82,M M Anwarullah And Co,"37 V V koil Stree, Periamet, Chennai 600 003",341.620457,Loss Assets,17-03-09,Suit,,Mr M Abul Hasan Khasimi,,Ms Hina Fathima
6,HDFC BANK LIMITED,Ahmedabad,Gujarat,83,B Zaveri Jewels Pvt Ltd,"L/7 SWAGAT COMPLEX SWAGAT CHAR,RASTA C G ROAD,AHMEDABAD , GUJARAT",3396.395945,Loss Assets,31.03.2011,Suit,,Shri Arunkumar Amrutlal Soni,,Shri Rakesh Chhanabhai Panchal,,Smt. Kalpanaben Arunkumar Soni
6,HDFC BANK LIMITED,Civil Lines Jalandhar,Punjab,84,Guru Nanak Tractors,"Near By Pass Chowk,Umarpura Jalandhar Road Batala.",431.6273951,Loss Assets,05.06.2009,Suit,,Gurmeet Singh (Prop)
6,HDFC BANK LIMITED,Faridabad,Haryana,85,National Packaging Industries,"Correspondence Add:-Link Road , Sector -28 , Faridabad -121 008.  Work Address:- Village Karnera, Ballabgarh - Sohna Road , Faridabad.",2912.847757,Loss Assets,30.09.2011,Suit,,Suresh Chand Garg.,3556137,Vinita Garg.
6,HDFC BANK LIMITED,Faridabad,Haryana,86,NPI Packaging P Ltd,"308 Hemkunt Chambers, 89 , Nehru Place , New Delhi-110019.",3183.302277,Loss Assets,04.10.2011,Suit,,Suresh Chand Garg.,3556137,Anuj Garg,1675742
6,HDFC BANK LIMITED,Delhi,Delhi,87,Sanjay Sharma,"982/1, Goyal Paper Market , Chhota Chhipiwara , Chawri Bazar Delhi-110006.",2705.409226,Loss Assets,09.10.2011,Suit,,Mr.Manoj Jain,,Mr. Sunil Jain,,Mrs. Sulochna Jain.
6,HDFC BANK LIMITED,"Phakhowal, Ludhiana",Punjab,88,Joshi Chemicals,"VPO Mansuran, Opp Mansuran Gate, Civil Hospital Wali gali, Ludhiana",391.9120972,Loss Assets,31.07.2008,Suit,,Sanjeev Joshi (Prop,,Geeta Joshi (Guarantor)
6,HDFC BANK LIMITED,Kolkata,West Bengal,89,Chowdhury F L Trade,"21B, NSC Bose Road, Kolkata 700047",2473.89751,Loss Assets,28.02.2012,Suit,,Mrs.Chandrani Chowdhury
6,HDFC BANK LIMITED,Sangli,Maharashtra,90,Mahalaxmi Distributors,"SHIVRATNA APARTMENT 3RD FLOOR,SANGLI COLLEGE CORNER,SANGLI ,MAHARASHTRA",1587.096002,Loss Assets,30.03.2011,Suit,,Shri Arvind Satyanarayan Ladda,,Shri Sushant Rajendra Ladda,,Mrs Pramila Satyanarayan Ladda
6,HDFC BANK LIMITED,Jalandhar,Punjab,91,Gee Kay International,"C- 29-30, Sports and Surgical Complex, Kapurtala Road, Jalandhar - Punjab- 144 021.",1164.370725,Loss Assets,29.01.2009,Suit,,MANJIT SINGH,,Ranbir Singh,,Harmeet Singh,,Daman Pal Singh,,Gunjeet Singh,,Manjit Singh (mortgagor)
6,HDFC BANK LIMITED,Indore,Madhya Pradesh,92,Endolabs Ltd,"A.B. Road, Pigdamber, Rau, Indore",2953.639552,Loss Assets,25.08.2012,Suit,,Mr. Dheeraj Lulla,45407,Mr. Ramesh Lulla,147512,Mr. Sidharth Lulla,147062,Mr. Nitin Kingrani,163776,Mr. Ravi Valvani,,SHAILENDRA AGRAWAL,2221668
6,HDFC BANK LIMITED,Ahmedabad,Gujarat,93,India Wind Power Ltd,"12, Radekishan Bunglows, Nr Bodakdev fire Station , Ahmedabad - 380054",709.7174907,Loss Assets,28.07.2012,Suit,,Sanjay Morjibhai Rajani (Managing Director),458669,Rekha Sanjay rajani (Wholetime Director),458785,Jogin Kartik Raval,2481956,Bagepalli  Somasekhar  Guptanataraj (Additional Director),3359732,Satyajit Deshapriya Mishra,,Sachin Naceen Sinha
6,HDFC BANK LIMITED,Kolkata,West Bengal,94,Fortune Point Merchants Pvt Ltd,"79, Moulana Shaukat Ali Street, Kolkata - 700073",2406.562628,Loss Assets,22.09.2012,Suit,,Mr.Prakash Jain,366022,Mrs. Sarita Singh,,DEBASHISH CHATTERJEE,3391551
6,HDFC BANK LIMITED,Guahati,Assam,95,P P Associates,"5, H.M.Market, T.R.Phookan Road, Guwahati-781001",789.094534,Loss Assets,18.10.2011,Suit,,Mr. Purushottam Lall Agarwala
6,HDFC BANK LIMITED,Kolkata,West Bengal,96,Suruchi Agro Plast,"28 Old Nimta Road, (North 24 Parganas- Belgharia), Kolkata 700056",700.9574931,Loss Assets,28.09.2011,Suit,,Mrs.Kanta Roy Chowdhury(Proprietor)
6,HDFC BANK LIMITED,Nagpur,Maharashtra,97,Bhaiyalal Gangadharji Jain,"House no 962, Sambhaji Kasar Road, Maskasath, Near Hanuman Mandir, Itwari, Nagpur - 440002",1012.185188,Loss Assets,22.09.2012,Suit,,Mr. Jagdish Bhaiyalal Jain
6,HDFC BANK LIMITED,Thrissur,Kerala,98,Chiriyankandath Agencies,"2/552, Vezhaparambil Lane, Laloor, Elthuruth P.O",118.9519537,Loss Assets,29.05.2013,Suit,,C J Benny,,Shabeena Benny,,C D Johny,,Shaju Jacob
6,HDFC BANK LIMITED,Pune,Maharashtra,99,Juzer Abas Lokhandwala,"A. 14, Grace Bungalow,
Napier Road, Camp, Pune 411 001",477.0270127,Loss Assets,27.03.2009,Suit,,,
6,HDFC BANK LIMITED,KASARGODE,KERALA,100,CENTURY EDUCATIONAL TRUST,"19/2028 T, IVTH FLOOR, INDUS AVENUE, KALLAYI ROAD, KOZHIKODE - 673 002 & HEAD OFFICE AT POINACHI, THEKKIL POST, KASARGOD - 571 641",406,Loss Assets,30.04.2008,Suit,,M.ABDUL JABBAR,,MRS.SEERAVALAPPIL NASEERA
6,HDFC BANK LIMITED,KASARGODE,KERALA,101,Prestige Education Trust,"REGISTERED OFFICE AT BUILDING NO: M.P.VI/863, MILL ROAD, PAYANGADI R.S, KANNUR- 670358.",1062,Loss Assets,30.04.2008,Suit,,M.ABDUL JABBAR
6,HDFC BANK LIMITED,Amritsar,PUNJAB,102,Bawa Woolen & Spinning Mills Ltd,"288-A, Police Lines, Lawrence Road, Amritsar (Punjab) 143002",512.4458116,Loss Assets,29.10.2010,Suit,,Sh. Sanjeev Gupta,,Mrs Ashima Gupta,,Mr Sandeep Gupta,,Mr Saanjeev Aggarwal
6,HDFC BANK LIMITED,Amritsar,PUNJAB,103,S.S.Textile Indusrty,"288-A Police Lines Lawrence Road, Amritsar (punjab) 143002",216.7632269,Loss Assets,29.11.2010,Suit,,Mr. Sanjeev Aggarwal (prop)
6,HDFC BANK LIMITED,Vishakapatnam,Andhra Pradesh,104,Sri Godavari Food Products Pvt Ltd,"S. No; 154/1 to 10, Patta No:142,249,150,197,166,164,141,55,209, & 234, Asakapalli Village, Sabbavaram Mandal, Visakhapatnam",139.0359322,Loss Assets,25.02.2013,Suit,,Ramanandam Uppalapati,1799855,Padma Uppalapati,1799894
6,HDFC BANK LIMITED,Bhubaneswar,Orissa,105,Binny Steel Industries,"X-14, Civil Township, Rourkela-769004, Orissa",281.9048625,Loss Assets,22.06.2013,Suit,,Benubala Mittal (Prop)
6,HDFC BANK LIMITED,Nagpur,Maharashtra,106,Gupta International Industries Ltd,"GUPTA BHAWAN TEMPLE BAZAR ROAD, SETH MAHADEO PRASAD GUPTA MARG, ., NAGPUR, MAHARASHTRA",1438.750049,Loss Assets,29.12.2010,Suit,,Shri MUKESH DEODUTTA GUPTA,1499736,Smt SEEMA MUKESH GUPTA  (Whole Time Director),553105,Miss Priya Gupta (Whole Time Director),1395711
6,HDFC BANK LIMITED,Basavana Kalyan,Karnataka,107,Shivam Dall Mill,"Plot No 65P&66, KIAD Industrial Area, Basavakalyan-585327",1050.883832,Loss Assets,04.02.2012,Suit,,Mr. P Prabhavati Reddy,,Mr. Shivkumar Malipati
6,HDFC BANK LIMITED,Chennai,Tamil Nadu,108,Agil freight logistics Pvt Ltd,"Flat no: 504, 5th Floor Anurag, Vaman Takuram Patil Marg, Chembur, Mumbai 400 071",951.1072088,Loss Assets,28.07.2012,Suit,,Mr Kodahanallur Subramanian Shankarraman,337079,Mr Jaya Subramaniyam,,Mr Uma Shankar,,Mrs Usha Murugavel,2830396
6,HDFC BANK LIMITED,Chennai,Tamil Nadu,109,Spear Technology Alliance India Pvt Ltd,"S-7, Elite Empire, No.317, Valluvarkottam High Road,Nungambakkam,Chennai 600 034",124.3608612,Loss Assets,24.03.2013,Suit,,S  Dhandyuthapani,1742179,D Niramla Devi (Additional Dir),3126485
6,HDFC BANK LIMITED,Surat,Gujarat,110,Ajanta Syntex Pvt Ltd,"shop no 7, Sanghvi Tower, Adajan Raod, ADajan - Surat",161.2916159,Loss Assets,06.10.2013,Suit,,Smita Jagdish Somani,,Ashish Sharadkumar Somani,2855013,Abu Kabra,,Manoj Rajak,,Jagdish Soamani,,Shashikala Somani,313945
6,HDFC BANK LIMITED,Surat,Gujarat,111,Shri Sai Corporation,"Shop no D- 1404, Raghukul Textiles Market, Ring Road - Surat -Gujarat",245.7903482,Loss Assets,29.11.2013,Suit,,Sarojben Jain (Prop)
6,HDFC BANK LIMITED,Surat,Gujarat,112,Navapur Synthetics Pvt Ltd,"B-106, Chataniya Park Apartment, New Rander Road, Adajan, Surat",159.4491989,Loss Assets,06.10.2013,Suit,,Yashika Jayesh Agarwal,,Jagdischandra J Somani,,Smita Jagdischandra Somani
6,HDFC BANK LIMITED,Nandambakkam,Tamil Nadu,113,Abirami Metal Pvt Ltd,"No 1/334 Pillayar Koil Street Manapallam, Chennai,Tamil Nadu,India",273.3822228,Loss Assets,01.05.2013,Suit,,Ramamoorthi Thangavelu,1276748,VENKATESAN RAMAMOORTHI,1276806,STALIN SUBRAMANIAN,1276829,VALARMATHI RAMAMOORTHI,2850628
6,HDFC BANK LIMITED,Shalimar Bagh,New Delhi,114,Aryave Biotech Pvt Ltd,"Ba-28 Shalimar Bagh Delhi,Delhi,India",379.7111575,Loss Assets,28.09.2013,Suit,,Kamal Bablani,422894,KUMUD BABLANI,457671,Dev Dutt Bablani
6,HDFC BANK LIMITED,Rohtak,Haryana,115,K K Enterprises (Rohtak),"Shop No 1 Sham Plaza Railway Road Rahtak
Haryana Rohtak,Haryana,India",632.1158683,Loss Assets,24.11.2012,Suit,,Smt Sarita Jain,,Sh. Sahil Jain
6,HDFC BANK LIMITED,Rohtak,Haryana,116,K K Packers,"Shop No 12 Shyam Plaza Railway Road Rohtak
Rohtak,Haryana,India",270.4497993,Loss Assets,24.11.2012,Suit,,Sh Sanjay Jain,,Smh Sarita Jain
6,HDFC BANK LIMITED,Mandi Gobindgar,Punjab,117,Baba Balak Nath Steels Pvt Limited,"Prem Nagar Mandigobindgarh, Mandi
Gobindgarh,Punjab,India",942.5961112,Loss Assets,29.07.2013,Suit,,Devi Dayal Prashar,496379,Kamal Prashar,496386,Deepak Prashar,2544828,Dishant Prashar
6,HDFC BANK LIMITED,Akal Garh Ludhiana,Punjab,118,Khurana Knitting Works,"Prem Gali No 1, Madhopuri, Ludhiana",365.444434,Loss Assets,22.04.2009,Suit,,Smt Asha Rani (Prop)
6,HDFC BANK LIMITED,Coimbatore,Tamil Nadu,119,Swamithaa Dairy Pvt Ltd,"No:3/400, Veerakumar Garden, Naripatty Junction, Reddiarchatram Blcok, Palakanuthu Post, Athoor (TK), Dindigula District, Dindigul 624624",359.1441131,Loss Assets,29.11.2013,Suit,,SELLAKUMAR CHANDRA SEKAR (Managing Dir),2359172,Mrs C Sathiya,2360213
6,HDFC BANK LIMITED,Amravati,Maharashtra,120,Gayatri Industries (Amravati),"F- 44 MIDC, Amravati, Hanuman Vyayam Nagar, Amravati.Pin  444 605",313.0879807,Loss Assets,06.02.2014,Suit,,Mr. Narendra Dixit (Partner),,Mr. Dinesh Dixit (Partner)
6,HDFC BANK LIMITED,Delhi,Haryana,121,Sidhkar Ispat Pvt Ltd,"C/o Ram Gopal Harbans Lal (HP Petrol Pump)  Opp Bus Stand Hissar , Haryana",2017.347861,Loss Assets,08.04.2014,Suit,,Suresh Chander Gupta,46456,Deepak Gupta,46395
6,HDFC BANK LIMITED,Ahmedabad,Gujarat,122,Kamal Fruits,"Shop no 36, K D Market,Near Fruit Market, Naroda Road,Ahmadabad - 382330",571.0204832,Loss Assets,01.05.2014,Suit,,Mr. Sunil Varandmal Thadhani (Prop)
6,HDFC BANK LIMITED,BBSR,Orissa,123,Shree Shyam Techindia Pvt Ltd,"A004,R.B.Palace,Bomikhal,Bhubaneswar,Odisha,751010",457.0160252,Loss Assets,08.04.2014,Suit,,Kishan Agarwal (Managing Director),2787392,Archana Agarwal,2787361
6,HDFC BANK LIMITED,Ameerpet - Hyderabad,Telangana,124,Abhishek Enterprises (Hyderabad),"H No: 4-5-947, Shop no 7
Ground floor, Shyam Enclave
Badi Chowdi, Sultan Bazaar
Hyderabad - 500095.",518.6874011,Loss Assets,29.11.2011,Suit,,Mr. Abhishek Vijaya Vargiya (Prop),,,
6,HDFC BANK LIMITED,Visakhapatnam,Andhra Pradesh,125,Modern Marketing Services,"D.No.26/1/12/2, Bishan Complex, Bowdara Road, Visakhapatnam – 530013",164.2955461,Loss Assets,30.08.2013,Suit,,Mr. Manjit Singh Jolly,,Mr. Dodla Venkata Krishna Kumar
6,HDFC BANK LIMITED,Oddanchatram,Tamil Nadu,126,Veerakumar Industries,"No:3A/401, Naripatti Junction, Naripatti Privu, Palakanoothu,Dindigul",427.5144711,Loss Assets,29.11.2013,Suit,,Mrs C Sathiya (Prop)
6,HDFC BANK LIMITED,Faridabad,Haryana,127,Deep Machine Tools,"Plot No. 4/5, Gali No 9A, Saroorpur Industrial Area, Faridabad, Haryana.",398.9220903,Loss Assets,01.05.2009,Suit,,Mr. Raj Kumar ( partner),,Ms. Sarvesh Devi ( partner)
6,HDFC BANK LIMITED,Abohar,Punjab,128,Neepun Bio Science,"Muskan Complex, Kirpa Ram Marg, Abohar",303.3238431,Loss Assets,29.01.2012,Suit,,Smt Renu Singla W/O Sh Bajrang Singla,,Sh. Bajrang Singla S/o Sh Om Parkash Singla
6,HDFC BANK LIMITED,Ottanchatram,Tamil Nadu,129,Srinevasa Dairy,"No:1, V K R, Complex, Devar Malai Road, Palanikanoothu, Dindgul 624 624",484.0638982,Loss Assets,29.11.2013,Suit,,K C Chandrasekar-Partner,,Mrs C Sathiya- Partner
6,HDFC BANK LIMITED,Kharagpur Branch,West Bengal,130,Meghdoot Distributors,"592/507, Ballavpur, Ward no.18, Karatipara Lane, Paschim Midnapore, West Bengal -721101.",212.9732522,Loss Assets,28.09.2014,Suit,,Mr.Pradip Kumar Choudhury (Proprietor)
6,HDFC BANK LIMITED,Delhi,Delhi,131,G H Automotive Private Limited,"2685, A/1, Ram Lal Chandok Marg, Kashmere Gate, Delhi",321.4574357,Loss Assets,31.03.2014,Suit,,Gurcharan Singh,1097666,Harjeet Singh,1097579,Joginder Kaur,1097451
6,HDFC BANK LIMITED,Delhi,Delhi,132,Ninestar Automotive Private Limited,"2740/5, National Chamber Building, Kashmere Gate, Delhi",591.261719,Loss Assets,31.03.2014,Suit,,Gurcharan Singh,1097666,Harjeet Singh,1097579,Suneet Kaur,944541
6,HDFC BANK LIMITED,Delhi,Delhi,133,Gold Automotive Private Limited,"2740/5, National Chamber Building, Kashmere Gate, Delhi",592.1344447,Loss Assets,01.05.2014,Suit,,Harjeet Singh,1097579,Joginder Kaur,1097451,Suneet Kaur,944541
6,HDFC BANK LIMITED,Delhi,Delhi,134,Kirpa Automotive Private Limited,"2740/5, National Chamber Building, Kashmere Gate, Delhi",619.3274274,Loss Assets,01.05.2014,Suit,,Gurcharan Singh,1097666,Joginder Kaur,1097451,Suneet Kaur,944541
6,HDFC BANK LIMITED,Delhi,Delhi,135,Rightway Motors,"2740/5, National Chamber Building, Kashmere Gate, Delhi",313.4359767,Loss Assets,31.03.2014,Suit,,Gurcharan Singh,,Suneet Kaur
6,HDFC BANK LIMITED,Pudukkottai,Tamil Nadu,136,V Subramanian,"TS No:3543, South Main Road Pudukkottai",431.945276,Loss Assets,29.05.2014,Suit,,Mrs Kalyani - Legal Heir-Wife,,Mrs Subashini -[Legal Heir- Daughter],,Mrs Deepa -[Legal Heir-Daughter],,Mrs Prabha-[Legal Heir-Daughter]
6,HDFC BANK LIMITED,Pudukkottai,Tamil Nadu,137,Sri Elumalaiyan Rice Mill,"No:305/1, Arimalam Road, Annachatram, Pudukkottai 622 003",722.5200077,Loss Assets,29.05.2014,Suit,,Mrs Kalyani - Partner /Legal Heir-Wife,,Mrs Subashini -[Legal Heir- Daughter],,Mrs Deepa -[Legal Heir-Daughter],,Mrs Prabha-[Legal Heir-Daughter]
6,HDFC BANK LIMITED,Katpadi,Tamil Nadu,138,Excel Chemics,"No:1/6, Vivekananda Street, (First Floor), Kamaraj nagar, kalpudur, Vellore 632007",787.9953689,Loss Assets,29.06.2014,Suit,,Mr Arun Raj Prakash-Partner,,Mr P Subramani -Partner,,Mr Umesh Vetrivel-Partner,,Mr Balaji-Partner
6,HDFC BANK LIMITED,Koppal,Karnataka,139,Sri Siddalingeshwara Rice Industries,"Sy.No.2278, Adoni Road, Siraguppa - 583114",414.6165885,Loss Assets,29.08.2014,Suit,,Mr. N Govardhan Reddy (Partner),,Mr. P Jayaram Reddy (Partner),,Mrs. N Kalpana (Partner),,Mrs. P Vimalamma (Partner),,Mr. P Hanumantha Reddy  (Partner),,Mr. P Sujathamma  (Partner)
6,HDFC BANK LIMITED,Malakpur,Maharashtra,140,Vishal Ginning,"At MH 06, Khaparkhed, Nandura Road, Malakpur Tahsil Malakapur, District Buldhana, Maharashtra",693.4508019,Loss Assets,29.08.2013,Suit,,Mr. Vishal V Chandak-(Partner),,Mrs. Shobha Vijay Chandak (Partner),,Mrs. Sheetal Vijay Chandak (Partner),,Mrs. Shalini Vikram Chandak  (Partner)
6,HDFC BANK LIMITED,Palasa,Andhra Pradesh,141,Murali Krishna Modern Rice Mill,"D.No.1-309, Mogilipadu, Palasa – 532222",398.0723129,Loss Assets,29.08.2014,Suit,,Mr. Murali Krishna Sasanapuri (Proprietor)
6,HDFC BANK LIMITED,Ahmedabad,Gujarat,142,Mahavir Tags And Accessories Pvt Ltd,"34, Shreeji Industrial Estate,Raipur Mills Compound, Saraspur, Ahmedabad, Gujarat – 380 018",1517.067149,Loss Assets,29.11.2014,Suit,,Mr. Jitendra Babulal Bhansali,,Mr.Arvind Babulal Bhansali (Director),2437238
6,HDFC BANK LIMITED,Shaikpet,Telangana,143,S P Trading Corporation (Secunderabad),"Flat No.310, Mittal Chambers, 
M.G.Road, Secunderabad
Telangana - 500 003.",968.3396513,Loss Assets,26.11.2014,Suit,,Mr.Anand Kumar Bidarkar (Partner),,Mr.Srinivas Goud Meddella (Partner),
6,HDFC BANK LIMITED,Parliament Street New Delhi,Delhi,144,Mekaster International Pvt Ltd,"908 ANSAL BHAWAN,16 K G MARG, NEW DELHI-110001",1840.407096,Loss Assets,30.03.2013,Suit,,"Mr. VIRENDER MOHAN TREHAN,",305022,Mrs. PURNANGINI TREHAN,305111,"Mr. VIJAY CHAWLA,",305174,Mr. MOHIT KHANNA,1508246
6,HDFC BANK LIMITED,Parliament Street New Delhi,Delhi,145,Mekaster Tools Pvt Ltd,"908 ANSAL BHAWAN,16 K G MARG, NEW DELHI-110001",792.6215262,Loss Assets,22.06.2013,Suit,,"Mr. VIRENDER MOHAN TREHAN,",305022,Mrs. PURNANGINI TREHAN,305111,"Mr. VIJAY CHAWLA,",305174,HARISH CHANDRA BANGA,2099341
6,HDFC BANK LIMITED,Angamaly,KERALA,146,Padayattil Rice Mill,"VIII/10, Kalady Rd.,  Angamally-683575",222.6930818,Loss Assets,08.04.2014,Suit,,P.M.THOMAS (Prop)
6,HDFC BANK LIMITED,Chennai (Cenotaph Road,Tamil Nadu,147,Pelican Bio Innovations Pvt Ltd,"NO.1B SHERFI TOWERS  67 VSM, GARDENT STREET RAGAVAREDDY COLONY, ASHOK NAGAR, CHENNAI, TAMIL NADU",185.7566385,Loss Assets,31.10.2008,Suit,,Mr.D.S.Parthiba Thondaiman -Director,,Mrs.Srilatha Parthiban-Director
6,HDFC BANK LIMITED,Vellore,Tamil Nadu,148,SSS Electrical Works,"NO 17 APPU SUBBAIYAR ST PICHANOOR, GUDIYATHAM, ., VELLORE, TAMIL NADU",149.5101018,Loss Assets,30.01.2009,Suit,,Mrs P Jagadeeswari -Partner,,Mr Annamalai-Partner
6,HDFC BANK LIMITED,Coimbatore,Tamil Nadu,149,YSA Yarn,"685/1 PUMA MILLS ROAD SERENKADU, FOURTH STR PUDUR ROAD TIRUPUR, ., TIRUPUR, TAMIL NADU",192.2719985,Loss Assets,29.08.2010,Suit,,Mr T Narayanamoorthy - Proprietor
6,HDFC BANK LIMITED,Madurai,Tamil Nadu,150,Le Decor,"281 WEST MASI STREET, MADURAI, TAMIL NADU",181.8923164,Loss Assets,28.09.2009,Suit,,Mr Abdul Rahman -Proprietor
6,HDFC BANK LIMITED,Amritsar,Punjab,151,Dhawan Brothers,"Grain Market, Khalra Road, Bhikhiwind, Teshil Patti, Distt, Taran Taran, Punjab",392.6339537,Loss Assets,28.02.2015,Suit,,Vijay Kumar - Partner,,Dwarka Prashad - Partner
6,HDFC BANK LIMITED,Katni,Madhya Pradesh,152,Jai Mata Dall Mill,"C-3 Samdariya City, Madhav Nagar, Katni, Madhya Pradesh 483 401",586.3724915,Loss Assets,28.02.2015,Suit,,Ajay Kumar Kedya - Partner,,Mukesh Agarwal - Partner
6,HDFC BANK LIMITED,Trichy,Tamil Nadu,153,Ashok Trading Company (Trichy),"No: 25/1B-3, Tanjore Main Road, Near Tuvakudi Tool Plaza, Asoor Post, Trichy 620015.",1064.66523,Loss Assets,07.02.2015,Suit,,Mahendra N Patel - Partner,,Savithiri M Patel - Partner
6,HDFC BANK LIMITED,Katni,Madhya Pradesh,154,Narayan Dall Udyog,"House No 23/49, N.V. 493, Yasoda Bhavan, Market Yard, Hanuman Ganj, Katni - 483 501",473.7191654,Loss Assets,28.01.2015,Suit,,Amritlal Panjwani (Prop)
6,HDFC BANK LIMITED,Chandigarh,Chandigarh,155,Delhi Loha Bhandar,"Plot No.: 213, Iron Market, Sec -29, chandigarh and Plot No.: 50 Industrial Area Alipur, Barwala, Distt Panchkula.",486.4505289,Loss Assets,29.01.2015,Suit,,Hari Om Goyal (Prop)
6,HDFC BANK LIMITED,Faridkot,Punjab,156,Sheikh Farid Oil & General Mills,"M/S Sheikh Farid Oil & General Mills, Bhalu Wala, Road, Faridkot, Punjab",261.331411,Loss Assets,29.05.2015,Suit,,Vijay Gupta (Partner),,Puneet Kumar Gupta (Partner)
6,HDFC BANK LIMITED,Visakhapatnam,Andhra Pradesh,157,Sai Tirumala Milk & Milk Products,"Door No 1-87/3, Opposite St Marry School,
Yerravaram, Yellamanchili Mandal,
Visakhapatnam District - 531055",171.0994511,Loss Assets,29.05.2015,Suit,,Koppisetti Venkata Satyanarayana (Prop),,,
6,HDFC BANK LIMITED,Mumbai,Maharashtra,158,TORNADO MOTORS PVT LTD,"SHOPN NO. 04 AND 05 VIKAS CENTRE, S V ROAD SANTACRUZ (WEST) MUMBAI 400054",732.5828036,Loss Assets,19.05.2015,Suit,,JITENDERPAL SINGH CHADHA,2929784,Charan Singh Surjit Singh Gujral,7056774,AMARPREET KAUR CHADDA,2929888
6,HDFC BANK LIMITED,K G Marg,Delhi,159,Techno Automobiles Pvt Ltd,"J-7, Saket, New Delhi-110017",1012.515189,Loss Assets,30.05.2015,Suit,,RUSHMIKA CHATTERJI,2217963,PURAN CHAND BANSIL,2217977,SANDEEP BANSIL,2217988,PAWAN KUMAR BANSIL,2217991
6,HDFC BANK LIMITED,Delhi,Delhi,160,ICS Moulds & Dies Pvt Ltd,"B-13 S, VIJETA VIHAR SECTOR- 13, ROHINI, NEW DELHI-110085 NEW DELHI ",199.2814534,Loss Assets,29.07.2014,Suit,,Rajesh Kumar,1063101,Nidhi Srivastava,2928454
6,HDFC BANK LIMITED,Ludhiana,Punjab,161,MRG AUTO PVT LTD,"1041, GT Road,  Sherpur Ludhiana Punjab 141003",2555.350737,Loss Assets,27.02.2015,Suit,,Ishwar Das
6,HDFC BANK LIMITED,Mumbai,Maharashtra,162,KAMLA LANDMARC MOTORS PVT LTD,"Ground Floor, Vaswani Chambers, 264-265,Dr. Annie Besant Road, Worli ,Mumbai,Maharashtra -400025",539.7847214,Loss Assets,27.06.2015,Suit,,JINENDRA RAMESH JAIN,684592,Jitendra Ramesh Jain,800331,SIDDHIVINAYAK SHIVRAM DALVI,155781
6,HDFC BANK LIMITED,Mumbai,Maharashtra,163,Torrent Motors Pvt Ltd,"G7, G8, G9, G10A, G10B, GROUND FLOOR, SHALIMAR MORYA PARK, OFF. LINK ROAD, LINK ROAD,  ANDHERI WEST 400053",3540.440766,Loss Assets,12.06.2015,Suit,,JITENDERPAL SINGH CHADHA,2929784,Charan Singh Surjit Singh Gujral,7056774,AMARPREET KAUR CHADDA,2929888
6,HDFC BANK LIMITED,Kolkata,West Bengal,164,Luxamee Kutir Udyog Liquor Division,"Dag No. 33, Mouza Khalia, N.H. No.6, Kona,Opp. Maa Kali Service Station, Howrah – 711 323",634.7348433,Loss Assets,29.06.2015,Suit,,"Mrs. Rama Narula, (Partner)",,Mr. Ritesh Narula  (Partner)
6,HDFC BANK LIMITED,Patna,West Bengal,165,Shakti Shankar Construction Co Pvt Ltd,"Regd. Office at Maharaja Building, Karman Tola, Arrah,Bihar – 802 301",173.1901122,Loss Assets,29.06.2015,Suit,,UDAY SHANKAR SINGH,1353881,KALAWATI DEVI (Wholetime Dir),1513056
6,HDFC BANK LIMITED,LUDHIANA,Punjab,166,Duggal Steel Traders,"30-38, H/1-A, Guru Gobind Singh Nagar, Sherpur Chowk Ludhiana",378.4232728,Loss Assets,28.02.2015,Suit,,Arun Duggal (Prop)
6,HDFC BANK LIMITED,Delhi,Delhi,167,Murgai Travels And Traders Pvt Ltd,"H-3, Arjun Nagar, Near Safdarjung Enclave, Green Park Extension, New Delhi – 110029",382.0033187,Loss Assets,29.05.2015,Suit,,Ms. Anu Murgai,1031600,Mr. Sunil Murgai,1031523
6,HDFC BANK LIMITED,MUKTSAR,PUNJAB,168,R K Saluja Rice Mills,"Sadar Wala Road, Shri Muktsar Sahib Punjab-152026",1047.443985,Loss Assets,29.08.2015,Suit,,Sanjiv Kumar (Partner),,Rajiv Kumar (Partner),,Master Chandan Saluja (Partner)
6,HDFC BANK LIMITED,Muktsar,Punjab,169,Sunrise Traders,"152, New Grain Market, Muktsar, Punjab-152026",254.7880359,Loss Assets,14.09.2015,Suit,,Mr.Sanjiv Saluja (Partner),,Mr. Rajiv Saluja (Partner)
6,HDFC BANK LIMITED,Kolkata,West Bengal,170,DULICHAND AUTO SALES PRIVATE LIMITED,"53, NALINI RANJAN AVENUE 371, BLOCK G, NEW ALIPORE KOLKATA Kolkata WB 700053 IN",1396.420765,Loss Assets,26.10.2015,Suit,,RAJESH SANEI,87510,PRABHAT KUMAR SHARMA (Additional Dir),7401526
6,HDFC BANK LIMITED,AMRITSAR,PUNJAB,171,Amar Singh Jewellers Pvt Ltd,"First Floor Dhanna Market Patel Chowk Guru Bazar Amritsar, Punjab",369.8597088,Loss Assets,29.11.2015,Suit,,Charanjeet Singh (Managing Dir),2955053,Divjot Singh,5191809,Rajat Singh (Wholetime Dir),3150734
6,HDFC BANK LIMITED,M.G.Road,West Bengal,172,Amar Marketing Agency,"6, Amartolla Street, Kolkata – 700 001",418.2214772,Loss Assets,29.12.2015,Suit,,Manmohan Singh Kohli (Prop)
6,HDFC BANK LIMITED,M.G.Road,West Bengal,173,Roman Products,"6, Amartolla Street, Kolkata – 700 001",330.8935104,Loss Assets,27.12.2015,Suit,,Manmohan Singh Kohli (Partner),,Inderjeet Kaur Kohli (Partner)
6,HDFC BANK LIMITED,Rajouri Garden,Delhi,174,Parashar Trading Company,"2041/C, Anaj Mandi, Narela Mandi, Delhi-110040",226.742979,Loss Assets,29.01.2016,Suit,,Rajesh Kumar Sharma  (Prop)
6,HDFC BANK LIMITED,"M-39, Outer Circle, Cannaught Place, Delhi",Delhi,175,Sanjay Kumar And Brothers,"2651, Ist Floor, Gali Raghunandan, Naya Bazar,Delhi -110006",3878.402675,Loss Assets,29.05.2014,Suit,,Sanjay Kumar Garg (Prop)
6,HDFC BANK LIMITED,"M-39, Outer Circle, Cannaught Place, Delhi",Delhi,176,Din Dayal Industries,"2651, Ist Floor, Gali Raghunandan, Naya Bazar,Delhi -110006",361.9265268,Loss Assets,06.06.2014,Suit,,Naveen Kumar Garg (Prop)
6,HDFC BANK LIMITED,Haryana,Haryana,177,Bhagat Foods Pvt Ltd,"Bhagat Foods Pvt Ltd, OLD HANSI ROAD-JIND HARYANA HR 126102.",899.7183652,Loss Assets,29.05.2015,Suit,,SATPAL BANSAL,401402,SURESH KUMAR SINGHAL (MD),401436,KARAN SINGHAL (Additional Director),3270874
6,HDFC BANK LIMITED,Haryana,Haryana,178,Haryana Roller Flour Mills (P) Ltd,"Haryana Roller Flour Mills (P) Ltd,  OLD HANSI ROAD-JIND HARYANA HR 126102.",753.7508852,Loss Assets,29.05.2015,Suit,,SATPAL BANSAL,401402,SURESH KUMAR SINGHAL (MD),401436,KARAN SINGHAL (Additional Director),3270874
6,HDFC BANK LIMITED,Sonepat,Haryana,179,Nutri Herbals Pvt Ltd,"H.NO. 50, WARD NO 16 SCHEME NO. 6 JIND 126102 HARYANA .",985.3486405,Loss Assets,29.11.2015,Suit,,SATPAL BANSAL (Additional Dir),401402,VARUN BANSAL (Director),1666749
6,HDFC BANK LIMITED,Bara buzzar,West Bengal,180,Ritika Steel Industries Pvt ltd,"Shree Arcade 2, Jogendra Kavi Raj Row, R. No. 415, 4th Floor,Kolkata – 700 007",517.0890111,Loss Assets,28.02.2016,Suit,,UTTAM KUMAR SARAWGI,770384,BINOD CHOUDHURY,6461336
6,HDFC BANK LIMITED,Mumbai,Maharashtra,181,DBM GEOTECHNICS AND CONSTRUCTIONS P L,"CENTAUR HOUSE, B/301, 3RD FLOOR, SHANTINAGAR IND ESTATE, VAKOLA, SANTACRUZ-EAST MUMBAI Mumbai City MH 400055",5629.214034,Loss Assets,29.10.2015,Suit,,DNYANESHWAR BHAGWAN MAHAJAN,810014,SACHIN DNYANESHWAR MAHAJAN,810082,ASHISH DNYANESHWAR MAHAJAN,809995
6,HDFC BANK LIMITED,Delhi,Delhi,182,AVINASH EM PROJECTS PVT LTD,"308, NATIONAL ARCADE, LSC MAIN ROAD, GAZIPUR, DELHI -  110096",3748.719669,Loss Assets,27.02.2015,Suit,,SUDHIR KUMAR AWASTHI,2082969,JYOTI AWASTHI,2082971
6,HDFC BANK LIMITED,Delhi,Delhi,183,AS AUTOTECH PVT LTD,"80 A, Radheypuri Extn No. 1 , Main Road, Delhi-110051.",1208.469297,Loss Assets,05.11.2014,Suit,,AKHILESH GUPTA,2361571,SUNIL KUMAR GOEL,2361591
6,HDFC BANK LIMITED,G C Avenue,West Bengal,184,Balaji Construction,"Marshall House', 5th Floor, Room No.-546, Kolkata-700001.",1449.323119,Loss Assets,22.01.2013,Suit,,Abisek Sanghanaria -Proprietor
6,HDFC BANK LIMITED,Khanpara,Assam,185,PIBCO INDIA PVT LTD,"G.S. Road, Dispur, Guwahati 781022.",9242.743707,Loss Assets,27.12.2013,Suit,,PRANJAL SHARMA,842091,PABAN KUMAR SHARMA,842111,ARUNA SHARMA,2710941
6,HDFC BANK LIMITED,Salt Lake - Sector III,West Bengal,186,Sandstone Infraprojects Pvt Ltd,"Asha Bhavan, 2nd Floor, 63/B, College Street, P.O. – Amherst Street, Kolkata – 700 073",2284.454649,Loss Assets,29.01.2016,Suit,,Sachin Agarwal,1408818,SHASHI AGARWAL,1408718,Dinesh Raj Bagga,6920257
6,HDFC BANK LIMITED,Delhi,Delhi,187,Ramji Dass Darshan Kumar Limited,"IST FLOOR,SHIVA TOWER,100/28 RAJAPUR SECTOR -9 ,ROHINI DELHI  110085",2492.974256,Loss Assets,29.06.2014,Suit,,RAJ KUMAR BANSAL,93911,DEEPAK BANSAL,1945092,RAM NARAYAN THAKUR,3398358
6,HDFC BANK LIMITED,Bellary,Karnataka,188,Asian Earth Movers,"No.202, KIADB Industrial Area, 3rd Stage, Mundargi, Bangalore Road, Bellary - 583 102",321.714226,Loss Assets,20.03.2015,Suit,,Mukthar Ahmed K. Dasankop (Partner),,Mohammed Muktharuddin Khan (Partner),,Syed Shahbuddin B (Partner)
6,HDFC BANK LIMITED,Delhi,Delhi,189,Alka Fabrics Pvt Ltd,"454, 1st Floor, Haveli Haider Kuli, Chandni Chowk, New Delhi - 110006.",2280.41455,Loss Assets,29.10.2014,Suit,,Rajiv Gupta,299774,Alka Gupta,299869,Garima Gupta,1032412,Satbir Singh,6892304
6,HDFC BANK LIMITED,Katni,Madhya Pradesh,190,Basrani Pulses,"Gurwani Complex,Hanuman Ganj,Katni, 483 501, Madhya Pradesh",169.6336008,Loss Assets,29.01.2015,Suit,,Rajesh Kumar Basrani (Prop)
6,HDFC BANK LIMITED,Pilibanga,Rajasthan,191,Mohit Kumar Pawan Kumar,"Shop No 70, E block, New Dhan Mandi , Navin Mandi Yard , last lane of Mandi, Pilibanga , Rajasthan 335803",353.74084,Loss Assets,28.02.2015,Suit,,Mohit Kumar Jain (Prop)
6,HDFC BANK LIMITED,Surat,Gujarat,192,Mas Woven Industries,"Olampiya Gali, R S No 76/1, Mota Borasar, Magrol, Kim Char Rasta,Surat – Gujarat 394 110",536.0134592,Loss Assets,29.05.2015,Suit,,Mr. Sanjiv Ajodiapershad  (Partner),,"Gupta, Seems Sanjiv Gupta, (Partner)"
6,HDFC BANK LIMITED,Bhiwadi,Rajasthan,193,Namokar Strips Pvt Ltd,"G1-380, Road No.24 Phase-I, RIICO Industrial Area, Bhiwadi Rajasthan-301019",328.50999,Loss Assets,29.11.2015,Suit,,RATTAN LAL JAIN (Director),3643814,SUNITA JAIN (Director),3643828
6,HDFC BANK LIMITED,Bhavnagar,Gujarat,194,H K Iron And Steel Alloys,"Plot No 26, Sosiya Bridge,Opp Plot no 88, Alang,Bhavnagar, Gujarat – 364 081",341.680228,Loss Assets,28.12.2015,Suit,,Mohmedhsan Kaliwala (Prop)
6,HDFC BANK LIMITED,Mumbai,Maharashtra,195,Gold Dust Jewellers (DBSPK1220E),"Office No. 26, 4th Floor, Mohid Heights, Lokhandwala Road, Near Versova Telephone Exchange, Four Bunglow, Andheri (West), Mumbai – 400 053",259.0181678,Loss Assets,30.04.2016,Suit,,Mr. Aatif Abdul Khan (Prop)
6,HDFC BANK LIMITED,Guntur,Andhra Pradesh,196,Divya Traders,"D No.16-18-2, Chintapallipadu, 
Guntur District.",343.1776928,Loss Assets,30.04.2016,Suit,,Ravi Chandraiah (Prop),,,
6,HDFC BANK LIMITED,Bhubaneswar,Orissa,197,Infocity,"Plot No. B-7, Saheed Nagar,
Bhubaneshwar – 751 007",442.8094338,Loss Assets,30.04.2016,Suit,,,,,
6,HDFC BANK LIMITED,Bhopal,Madhya Pradesh,198,Uppal Commercial Pvt Ltd,"Plot No-15, Balwant Arcade, 2nd Floor, M.P. Nagar, Zone-II, Bhopal, Madhya Pradesh - 462011",5492.051468,Loss Assets,29.06.2016,Suit,,Saurabh Uppal,5318313,Sonu Uppal,5318316
6,HDFC BANK LIMITED,"Vashi, Mumbai",Maharashtra,199,Samex Corporation (ABYFS8150N),"21,22,36 & 37, Nirmal Ashish Industrial Estate, Mumbai-Nashik Road, Asangaon, Shahapur, Thane – 421 601",131.9124944,Loss Assets,29.06.2016,Suit,,Neelam Atul Thakkar (Partner),,Mala G Thakkar (Partner)
6,HDFC BANK LIMITED,"Vashi, Mumbai",Maharashtra,200,Grishma Sales Corporation (AAAPT8717B),"Plot No. 10, Kapaleshwar Udyog Sankul, Behind Pariwar Garden Hotel, Mumbai Nasik Road, Asangaon, Shahpur, Thane – 421 601",344.518285,Loss Assets,29.06.2016,Suit,,Neelam Atul Thakkar (Prop)
6,HDFC BANK LIMITED,Lucknow,Uttar Pradesh,201,Maa Annapurna Trading Company,"Fundan ( Abdulla Baharm Pur ) Shukul Bazar,Distt Amethi Uttar Pradeh 2278111",653.8986646,Loss Assets,29.10.2014,Suit,,Mata  Prasad Tiwari (Partner),,Ravi Shankar Tiwari (Partner),,Rama Shankar Tiwari (Partner),,Karuna Shankar Tiwari (Partner)
6,HDFC BANK LIMITED,Jalgaon,Maharashtra,202,Umesh Trading Company,"Shop No 28, Rasiklal Patel Shopping Centre, Shirpur- 425 205 Dist Dhulia.",262.8857916,Loss Assets,29.12.2014,Suit,,Mangilal Aaskaran Jain (Prop)
6,HDFC BANK LIMITED,Dhamtatri,Chhattisgarh,203,Sandeep Traders (Dhamtari),"Anand Sheela Market,
Sihawa Road, Dhamtari, 
Chhattisgarh – 493773",236.3980785,Loss Assets,29.07.2015,Suit,,Suresh Kumar Athwani (Prop),,,
6,HDFC BANK LIMITED,Mumbai,Maharashtra,204,Raj V Jewellery,"D-222/223, 2nd Floor, Ansa Industrial Estate, Saki Vihar Road, Sakinaka, Andheri (East), Mumbai – 400 072.",494.3831317,Loss Assets,29.07.2016,Suit,,Gaurav Rajul Gandhi  (Partner),,Hitesh Babubhai Bavishi (Partner),,Sharmishtha Hitesh Bavishi  (Partner)
6,HDFC BANK LIMITED,Jaipur,Rajasthan,205,Vansh Computer and Electronics,"G-5, Krishna Mall , Tonk Road , Tonk Phatak , Jaipur , Rajasthan",209.02945,Loss Assets,29.07.2016,Suit,,Khushal Aggarwal (Prop)
6,HDFC BANK LIMITED,Raipur,Chhattisgarh,206,Jai Balaji Plastics Industries,"Jai Balaji Plastics Industries, Plot No.387, Sector-A, Urla Industrial Estate, Village Achholi, Raipur (C.G)- 493221",134.7987251,Loss Assets,29.07.2016,Suit,,Nitin Mittal (Partner),,Nitesh Mittal (Partner)
6,HDFC BANK LIMITED,Nagpur,Maharashtra,207,B Himmatlal Agrawal,"71A, Krishna House, Near ST. BUS STAND, GANESH PETH, NAGPUR",4793.945326,Loss Assets,29.07.2016,Suit,,KISHORE HIMMATLAL AGRAWAL (Partner),,BRIJESH HIMMATLAL AGRAWAL (Partner),,KRISHNADEVI HIMMATLAL KHEMUKA (Partner)
6,HDFC BANK LIMITED,Ameerpet,Telangana,208,Sri Jai Shankar Steel Industries,"D No 11-58/36, Main Road,
Fathe Nagar
Hyderabad - 500018",806.66737,Loss Assets,29.08.2016,Suit,,Mrs Suman Agarwal (Prop),,,
6,HDFC BANK LIMITED,Savarkundla,Gujarat,209,A Raja Cottex,"Nr Railway Station Sur No 277/P6, Savarkundla, Amreli, Gujarat.",567.6860777,Loss Assets,29.08.2016,Suit,,Harunbhai Valibhai Bilakhiya (Partner),,Sajidbhai Harunbhai Bilakhiya,,Abbasbhai Harunbhai Bilakhiya,,Jamilaben Harunbhai Bilakhiya,,Rasidaben Abbasbhai Bilakhiya,,Asmaben Sajidbhai Bilakhiya
6,HDFC BANK LIMITED,Savarkundla,Gujarat,210,Raja Cotton Industries,"Ahuva Road, B/h. Accurate Honda Show Room, Savarkundla, Dist Amreli - 364515",724.0638704,Loss Assets,29.08.2016,Suit,,Harunbhai Valibhai Bilakhiya (Partner),,Sajidbhai Harunbhai Bilakhiya,,Abbasbhai Harunbhai Bilakhiya,,Jamilaben Harunbhai Bilakhiya,,Asmaben Sajidbhai Bilakhiya
6,HDFC BANK LIMITED,"Paltran Bazar,",Meghalaya,211,Meghraj Nemchand,"Paltran Bazar, Shilong,",417.0549075,Loss Assets,29.08.2016,Suit,,"Mr. Mangi Devi Surana, Proprietor"
6,HDFC BANK LIMITED,Delhi,Delhi,212,Metric Telecom Network Pvt Ltd,"C-171, OKHLA INDUSTRIAL AREA PHASE-I NEW DELHI South Delhi DL 110020",252.8407644,Loss Assets,29.05.2015,Suit,,SATISH KUMAR ARORA (Additional Dir),209418,SHEEL KUMAR ANGRISH (Dir),604546,SANJAY SINGLA (Dir),2757536
6,HDFC BANK LIMITED,Kanpur,Uttar Pradesh,213,Gurudev Steels (ABFPJ1327D),"77/7, Coolie Bazaar, Kanpur, Uttar Pradesh",406.790965,Loss Assets,29.10.2016,Suit,,Mr. Rajeev Jain (Prop)
6,HDFC BANK LIMITED,Delhi,Delhi,214,R S Trading Co (Delhi),"471, Bartan Market, Sadar Bazaar, Delhi – 110006",803.753385,Loss Assets,29.10.2016,Suit,,Mrs. Veena Tandon (Partner),,Mr. Nikhil Tandon  (Partner),,Mr. Anil Tandon (Partner),,Mr. Sunil Tandon (Partner)
6,HDFC BANK LIMITED,Nariana Vihar,Delhi,215,Visa Koje Trade Exim Pvt Ltd,"173, Site-II Vikas Puri Delhi West Delhi DL 110018",975.0202731,Loss Assets,10.11.2016,Suit,,VIPIN KUMAR GUPTA (DIR),2205681,SUBHASH RAHEJA (DIR),6718672
6,HDFC BANK LIMITED,Nizamabad,Telangana,216,Sri Laxmi Srinivasa Industries,"Sy.No.809 and 809/P2, Gundaram Village,
Nizamabad, Telangana-503186",2446.003017,Loss Assets,22.11.2016,Suit,,Shyamala Soujanya (Partner),,Shyamala Sridevi (Partner),,Shyamala Srinivas Reddy (Partner),,Shyamala Vema Reddy (Partner),,Shyamala Ravinder Reddy (Partner)
6,HDFC BANK LIMITED,"Rohini, Delhi",Delhi,217,Prabhu Dayal Raj Kumar,"2067A, Old Anaj Mandi, Narela,Delhi-110040",1106.045572,Loss Assets,29.08.2016,Suit,,Raj Kumar (Proprietor)
6,HDFC BANK LIMITED,"Station Road, Jaipur",Rajasthan,218,Kingmax Systems (ANBPK5364P),"Shop No F-74, First Floor, Raisar Plaza, Baba Harish Chandra Marg, Jaipur",201.0779326,Loss Assets,29.01.2017,Suit,,Parmeshwari Devi (Proprietor)
6,HDFC BANK LIMITED,Ambernath,Maharashtra,219,Pan Logistics Pvt Ltd,"Office No.Fb145, 1st Floor, Highland Corporate Center, Kapurbawdi, Thane-400601",174.79523,Loss Assets,31.01.2017,Suit,,Arun Kumar Nerurkar,,Saurabh Ravindra Bhatnagar,6571116,Nitesh Devendra Khanna,6571077
6,HDFC BANK LIMITED,Surat,Gujarat,220,Raghuvir Narrow Fab (AHQPR2704P),"Plot No 81 to 84,National Industrial Estate,Piplod, B/H Shakti Hotel,Surat Gujarat – 394 110",248.2457995,Loss Assets,06.02.2017,Suit,,Ridhesh Hansraj Raningu(Prop)
6,HDFC BANK LIMITED,ITO Delhi,Delhi,221,PMS Buildtech Pvt Ltd,"D-8, Lower Ground Floor, Kailash Colony, New Delhi-110048",3185.800729,Loss Assets,29.07.2016,Suit,,Shiv Kumar Mishra (DIR),1447136,Manoj Kumar Verma (DIR),3285465
6,HDFC BANK LIMITED,Kamala Mills,Maharashtra,222,Aman Infratex Limited,"Flat No. 6, 3rd and 4th Floor, Gangangiri Co-operative Housing Society Limited, Near Aradhana Cinema, Panchpakhadi Road, Thane (W), Thane – 400 602",591.3790322,Loss Assets,02.09.2013,Suit,,Anilkumar Sarawgi (DIR),574974,Ramprakash Varma (DIR),2574479
6,HDFC BANK LIMITED,Malda,West Bengal,223,South Malda Rice Mill,"17th Mile N H 34,Near Bsf Camp Chamagram Malda,West Bengal,India",655.188804,Loss Assets,31.03.2017,Suit,,Mobarak Hossain (Partner),,Alamgir Sk (Partner),,Iesh Kurni (Partner),,Md.Tohar Sk (Partner)
6,HDFC BANK LIMITED,Belgaum,Karnataka,224,Harvi Industries,"99/100 Udyambag Belgaum
Belgaum,Karnataka",206.227012,Loss Assets,29.01.2017,Suit,,Rajesh PratapSingh Purohit (Prop),,
6,HDFC BANK LIMITED,Surat,Gujarat,225,Snp Merchants Pvt Ltd,"702, 7th Floor,             Union Trade Centre,             Near Apple Hospital,             Udhana Darwaja,             Surat – 395 002",3020.453438,Loss Assets,08.02.2016,Suit,,Mr. Purnendu Ajit Pani (DIR),2995116,Mrs. Nilima Purnendu Pani (DIR),2979011
6,HDFC BANK LIMITED,Lucknow,Uttar Pradesh,226,VIL LIMITED,"PANKAJ GALAXY 1, SECOND FLOOR, PLOT NO.8, SECTOR-12, DWARKA NEW DELHI DL 110075",6129.82564,Loss Assets,29.07.2015,Suit,,NAUSHAD AHMED,348728,AAMIR AHMED,694983,TABASSUM AHMED,695197,AJAY KUMAR SINGH,860369
6,HDFC BANK LIMITED,"Parle Point, Surat",Gujarat,227,Smeet Fabrics Pvt Ltd,"702, 7th Floor,             Union Trade Centre,             Near Apple Hospital, Udhana Darwaja, Ring Road, Surat – 395 002",1650.091825,Loss Assets,29.06.2016,Suit,,Mr. Purnendu Ajit Pani,2995116,Mrs. Nilima Purnendu Pani,2979011
6,HDFC BANK LIMITED,Delhi,Delhi,228,Jakhodia Traexim Pvt Ltd,"M-26, Badli Industrial Area, Phase-1, Delhi-110042",1144.767244,Loss Assets,19.07.2016,Suit,,RATTAN KUMAR JAKHODIA,2254703,CHANDAN SANTRA,7677154
6,HDFC BANK LIMITED,Gurgaon,Haryana,229,R S INDUSTRIES (Gurgaon),"Plot No. 6, Street No 5, Surat Nagar Industrial Area, Near Dhanuka, Gurgaon-122001",391.2202179,Loss Assets,06.09.2016,Suit,,Mohit Kumar Sharma (Prop)
6,HDFC BANK LIMITED,"HAPUR - Railway Road , Uttar Pradesh",Uttar Pradesh,230,Prakash Trading Company,"218, Pacca Bagh, Hapur, Ghaizabad, Uttar Pradesh .",220.0255559,Loss Assets,29.10.2016,Suit,,Ankur Gupta (Proprietor)
6,HDFC BANK LIMITED,"Vijay Nagar, Jalandhar",Punjab,231,MGS Industries (BWDPS6005H),"C/O MGS INDUSTRIES,WARIANA INDUSTRIAL COMPLEX,SANGAL SOHAL ROAD,JALANDHAR,PUNJAB,144003",379.2263227,Loss Assets,10.10.2016,Suit,,Gurwinder Singh (Proprietor)
6,HDFC BANK LIMITED,Nariana Vihar,Delhi,232,Jessica Jewels & Fashions Pvt Ltd,"173, Site-II Vikas Puri Delhi West Delhi DL 110018",2642.480721,Loss Assets,10.11.2016,Suit,,VIPIN KUMAR GUPTA (Director),2205681,AMIT GUPTA (Director),3116365
6,HDFC BANK LIMITED,Parle Point,Gujarat,233,Singer Impex Pvt Ltd (AAPCS5648Q),"H NO 7/4824-A, 1st Floor,Shop- J/173, Japan Textiles Market, Ring Road, Surat – 395 002",2089.906338,Loss Assets,29.01.2017,Suit,,Mr. Ankur Balraj Narang,,Mr. Deepak Balraj Narag,,Mr. Balraj Kashmirilal Narang,,Mrs. Sunita Balraj Narang
6,HDFC BANK LIMITED,Malda,West Bengal,234,Safe malda Rice Mill,"17th Mile, N.H. 34, near BSF camp, Chamagram Malda Habibpur, P.S.-Baishnab Nagar, Malda, West Bengal",359.4498355,Loss Assets,06.02.2017,Suit,,Mobarak Hossain (Partner),,Alamgir Sk (Partner),,Iesh Kurni (Partner),,Md. Tohar Sk. (Partner)
6,HDFC BANK LIMITED,Delhi,Delhi,235,Sunav Steel Pvt Ltd,"Y-9, First Floor, Ashoka Complex, Loha Mandi, Naraina, New Delhi 110028.",2353.525207,Loss Assets,29.04.2017,Suit,,Mrs. Suman Goyal (DIR),1869287,Mr. Naveen Goyal (DIR),1823712
6,HDFC BANK LIMITED,Mumbai,Maharashtra,236,Esskay Motors Pvt Ltd,"Ground Floor, Motilal oswal Tower, Junction of Ghokhale & Sayani Road, Prabhadevi Mumbai Mumbai City MH 400025",463.5617018,Loss Assets,16.12.2014,Suit,,CHANDRA KALIAN PARKASH (MD),1010209,NEELAM CHANDRA PARKASH (DIR),1010322,KOMAL CHANDRA PARKASH (DIR),1010442,SHEETAL CHANDRA PARKASH (DIR),1010490
6,HDFC BANK LIMITED,Rae Bareilly,Uttar Pradesh,237,Gupta Agencies (AGXPG4878R),"1272 A , Bahadurpur Jias , Rae-Bareilly
RaeBareilly HO , Uttar Pradesh , India
Pin Code : 229123",208.680735,Loss Assets,01.05.2017,Suit,,Manoj Kumar Gupta (Prop),,,
6,HDFC BANK LIMITED,Delhi,Delhi,238,Chawla H/W And Electrical (AAEPC8030E),"A-21, Tagore Market, Kirti Nagar, New Delhi - 110015",558.2808525,Loss Assets,01.05.2017,Suit,,Rajeev Chawla (Prop)
6,HDFC BANK LIMITED,Narwana Branch,Haryana,239,Som Dutt Cotton & Oil Mills,"Tohna Road, Narwana , Jind , Haryana",508.6235598,Loss Assets,29.06.2017,Suit,,Arun Kumar (Prop)
6,HDFC BANK LIMITED,Amritsar,Punjab,240,Prabhat Enterprises (Amritsar),"Opp H C I Rmc Plant, Backside Four Miles Resort, Batala Road Amritsar",570.2924,Loss Assets,29.06.2017,Suit,,Randdhir Chopra (Partner),,Karan Chopra (Partner)
6,HDFC BANK LIMITED,Balotra/Barmer,Rajasthan,241,Ranisha Synthetics,"Kheteshwar Market
Near 3rd Railway Crossing
Balotra, Rajasthan",294.050595,Loss Assets,29.01.2017,Suit,,Rajender Kumar Chopra (Proprietor),,
6,HDFC BANK LIMITED,Millerganj,Punjab,242,Punjab Containers Pvt Ltd,"61, Daba Road, Near Nirmal Cinema, Ludhiana",1565.599318,Loss Assets,01.05.2017,Suit,,Sunil kumar Singla  (DIR),2397079,Karan Pratap Singla,1900469,Dharam Paul Singla  (DIR),2398539
6,HDFC BANK LIMITED,Asaf Ali Road,Haryana,243,Aggarwal Traders (Palwal),"G T Road,  Near D G Khan Public School, Palwal 121102, Haryana.                                      .",166.811042,Loss Assets,29.05.2017,Suit,,Vinod Kumar Garg (Prop)
6,HDFC BANK LIMITED,Pali,Rajasthan,244,Vijay Textiles (Pali),"9, Vardhman Nagar, Pali, Rajasthan - 306401",223.9244905,Loss Assets,29.08.2017,Suit,,Vijay Raj Banthia  (Prop)
6,HDFC BANK LIMITED,Pali,Rajasthan,245,Sidharth Textiles (Pali),"6, Vardhman Market, Old Bus Stand, Pali, Rajasthan - 306401",145.1982757,Loss Assets,29.08.2017,Suit,,Kanchan Devi Banthia (Prop)
6,HDFC BANK LIMITED,Adampur,Punjab,246,Suresh Trading Company (AUOPB7654F),"37-A, New Grain Market, Adampur, Haryana",171.164017,Loss Assets,29.08.2017,Suit,,Mr Amit Bansal (Prop)
6,HDFC BANK LIMITED,Faridabad,Haryana,247,B R Industries (Faridabad),"Village Sahupura, Ballabhgarh, District Faridabad, Haryana – 121004",682.0732779,Loss Assets,28.09.2017,Suit,,Rajeshwar Goyal (Part),,Pawan Goyal (Part),,Satish Goyal (Part)
6,HDFC BANK LIMITED,Faridabad,Haryana,248,Goyal Traders (Faridabad),"Shop No. 176, Old Sabzi Mandi, Milk Plant Road, Ghantaghar, Ballabhgarh, faridabad",347.1538287,Loss Assets,28.09.2017,Suit,,Rajeshwar Goyal (Part),,Pawan Goyal (Part),,Satish Goyal (Part)
6,HDFC BANK LIMITED,Faridabad,Haryana,249,Jatin Trading Co (Faridabad),"B-50, Malerna Road, Near Dhuruh Vatika,
Shiv Durga Vihar Colony, Lakedpur,
Near Sarai Khawaja, Ballabhgarh, 
District Faridabad",457.31272,Loss Assets,28.09.2017,Suit,,Rajeshwar Goyal (Part),,Ekta Goyal (Part),,Satish Goyal (Part)
6,HDFC BANK LIMITED,Rajahmundry,Andhra Pradesh,250,Sri Venkateswara Agencies (ADOPM7962N),"d.no. 4-2-34, Nandamuru Road, Kovvuru, West Godavari , AP  pin code. 534350",1363.360924,Loss Assets,28.09.2017,Suit,,Srihari Rao Mallina (Prop)
6,HDFC BANK LIMITED,Karnataka,Karnataka,251,Rodeo Drive Luxury Products Private Limited,"No. 101, Richmond Road, Bangalore – 560025",465.6428453,Loss Assets,29.06.2011,Suit,,Mr. Prithviraj Bagrecha,1050126,Mrs. Karuna Prithviraj,1050082
6,HDFC BANK LIMITED,Merta City,Rajasthan,252,Jugal Kishore Shanti Kishore (AAJHS2432R),"A-14, Krishi Upaj Mandi Samiti, Merta City, District Nagaur - 341510, Rajasthan",954.654764,Loss Assets,29.10.2017,Suit,,Shree Kant Shree Gopal Mantri HUF (Prop)
6,HDFC BANK LIMITED,Ballabgarh,Haryana,253,Nikunj Industries,"Village Sahupura, Ballabgarh, Faridabad - 121004, Haryana",676.1386925,Loss Assets,29.10.2017,Suit,,"Mrs. Kamlesh Goyal (Partner),",,"Mr. Rajeshwar Goyal (Partner),",,"Mr. Pawan Goyal (Partner),",,"Mr. Anil Kumar Goyal (Partner),"
6,HDFC BANK LIMITED,Ahmedabad,Gujarat,254,Suzuki Parsrampuria Suitngs Pvt Ltd (AAECS0889C),"72, Shreejee Cloth Market, Nr. Meghdoot Hostel, O/s Sarangpur Gate,  Ahmedabad-380002",516.470065,Loss Assets,29.10.2017,Suit,,Biharilal Parasrampuria (DIR),401212,Bhavna Arunkumar Parasrampuria (DIR),401309,Bimladevi Biharilal Parasrampuria (DIR),7499777
6,HDFC BANK LIMITED,Kanpur,Uttar Pradesh,255,Orai Flour Mills (P) Ltd,"Shop No. 210,211 , Express Road , Hula Ganj Chauraha , Kanpur
Pin Code : 208001",2689.11364,Loss Assets,29.10.2017,Suit,,PRADEEP KUMAR GUPTA (DIR),303166,RAM SWAROOP GUPTA (MD),320213,MALTI GUPTA  (DIR),6957397
6,HDFC BANK LIMITED,Bhopal,Madhya Pradesh,256,Jeet Engineers And Traders,"Plot No.29-A, Raja Parisar, MP Nagar Zone II, Bhopal, Madhya Pradesh - 462011.",2843.950566,Loss Assets,29.10.2017,Suit,,Mrs.Jatinder Kaur Bajaj (PROP)
6,HDFC BANK LIMITED,"Gill Road, Ludhiana",Punjab,257,Himalya Chemicals,"255 NIRANKARI ST NO 1,MILLER GANJ,.,LUDHIANA,PUNJAB,141003",1150.912998,Loss Assets,27.11.2017,Suit,,Aneesh Ralhan (PROP)
6,HDFC BANK LIMITED,Mohania,Bihar,258,Aryan Trading,"At.Village - Kaudiram, 
P.O. Kaudiram & P.S. Mohania, 821109, Kaimur, Bihar",848.280459,Loss Assets,29.11.2017,Suit,,Madhwi Devi (PROP)
6,HDFC BANK LIMITED,Barabanki,Uttar Pradesh,259,Maa Vaishno Aromatics Pvt Ltd (AAICM1893Q),"MUNESHWAR VIHAR COLONY, HAIDERGARH ROAD NAWABGANJ BARABANKI Barabanki UP 225001 IN",242.9726809,Loss Assets,07.12.2017,Suit,,ANIL KUMAR GOEL(DIR),5286393,SANAT KUMAR VERMA  (DIR),5286396
6,HDFC BANK LIMITED,Siliguri,West Bengal,260,Essenn Retail Pvtltd,KURSEONG RICE MILL COMPOUND BURDWAN ROAD SILIGURI WB 734001,123.1587618,Loss Assets,29.12.2017,Suit,,NISHA AGARWAL(DIR),613382,ANJU AGARWAL(ADDL DIR),880182,NILESH AGARWAL(DIR),1257098,SAILESH AGARWAL (DIR),1257117
6,HDFC BANK LIMITED,Ameerpet,Telangana,261,Akshaya Silver Mall India Pvt Ltd (AANCA3209P),"Bung Tower, 4-2-301, Beside Mavuraala Peddma Temple, Bata Line, Opposite Pot Market, R.P. Road, Secunderabad – 500 003.",1298.305288,Loss Assets,29.12.2017,Suit,,Mr. Ravindra Godabanahal (DIR),7111861,Mr Syed Nizammuddin (DIR),6445170,GAYITHRI NAGARAJA SETTY JAKKA (DIR),7111865
6,HDFC BANK LIMITED,Bangalore,Karnataka,262,Swathi Material Handling Equipments Pvt Ltd (Bangalore),"No. 409, Adiga Building,  3rd Cross, Wilson Garden, Bangalore 560027, Karnataka",778.432769,Loss Assets,29.08.2017,Suit,,Chandraprakash Karkera (DIR),5302361,Chethana Chandraprakash Karkera (DIR),5302376
6,HDFC BANK LIMITED,Katni,Madhya Pradesh,263,Ashirwad Industries,"Plot No.31, Industrial Area, Bargawan Tehsil, Dist-Katni, Madhya Pradesh",565.6044657,Loss Assets,29.10.2017,Suit,,Pradeep Kumar Lalwani (Partner),,Anand Lalwani (Partner),,Brij Lal Lalwani (Partner)
6,HDFC BANK LIMITED,Delhi,Delhi,264,Gayatri Enterprises (Narela Delhi),"2061 - A , Narela Mandi , Narela, Delhi - 54",163.5752375,Loss Assets,43129,Suit,,Kanwar Bhan  (Prop)
6,HDFC BANK LIMITED,Naya Bazaar,Delhi,265,Sng Agro Impex Pvt Ltd,"4091, Naya Bazaar, Delhi-110006",1139.358954,Loss Assets,43129,Suit,,Kumar Gaurav  (DIR),1153593,Nitin Kumar Aggarwal (DIR),1153711,Mayank Gupta (DIR),1.39E+07
6,HDFC BANK LIMITED,Naya Bazaar,Delhi,266,S N G Trading Co,"4091, Naya Bazaar, Delhi-110006",1299.681574,Loss Assets,43129,Suit,,Mr. Kumar Gaurav (Prop)
6,HDFC BANK LIMITED,Alwar,Rajasthan,267,Ramprasad Vijay Kumar,"GB-43, Naveen Mandi Yard, Alwar, Rajasthan",1125.242716,Loss Assets,43129,Suit,,Rajesh Gupta (Prop)
6,HDFC BANK LIMITED,Ameerpet,Telangana,268,ABHIRAM INFRA PROJECTS PRIVATE LIMITED,"Flat No. B302, Utsav Seenappa Layout,New BEL Road, Bengaluru-560094.                           Also At. Fortis Mount, 6-3-597/1/C, Venkataraman Colony, Anand Nagar, Khairatabad, Hyderabad-500004",6125.368807,Loss Assets,29.06.2015,Suit,,Alla. Peri Reddy (Managing Dir),76598,Pothireddy. Rama Koti Reddy (Additional Dir),6534216
6,HDFC BANK LIMITED,Delhi,Delhi,269,Techno Easycrete Private Limited,"E-190, Fourth Floor, Near Mangal Bazar, Dilshad Garden New Delhi -110095",1665.417775,Loss Assets,43036,Suit,,Dayaram Tanwar (Managing Dir),3515536,Digamber Singh (Addl Dir),6799813
6,HDFC BANK LIMITED,Delhi,Delhi,270,Fashion 2 Fashion Exports Pvt Ltd,"J-127,Ground Floor, Vikaspuri, New Delhi - 110018",470.4775292,Loss Assets,43159,Suit,,Mr. Sandhir Singh Oberoi (DIR),6386175,Mr. Jatinder Singh Chopra (DIR),7085974
6,HDFC BANK LIMITED,Delhi,Delhi,271,Ss Pulses Manufacturing Pvt Ltd,"3978, 1st Floor, Naya Bazar, Delhi - 110006",2616.912076,Loss Assets,43159,Suit,,Mr. Sanjay Gupta,318113,Ms. Manju Gupta,301971
6,HDFC BANK LIMITED,Delhi,Delhi,272,Ss Udyog,"Plot No. 62, Pocket P, Sector -1, 
DSIIDC Industrial Area, Bawana,
New Delhi – 110039",1504.905108,Loss Assets,43159,Suit,,Mr. Sanjay Gupta (Prop),,,
6,HDFC BANK LIMITED,"C Scheme, Jaipur",Rajasthan,273,Deem Construction Company Pvt Ltd (AACCN5611P),"AA-12, Jai Ambay Nagar, Gopalpura Mod, Jaipur, Rajasthan",1153.609614,Loss Assets,43137,Suit,,NASIM QURESHI (DIR),1633095,SALAMUDEEN QURESHI (DIR),1667020,RUKHSANA QURESHI (DIR),2084283,ARIF KURESHI (DIR),2652554,SAJIDA QURESHI (DIR),3571059
6,HDFC BANK LIMITED,Ahmedabad,Gujarat,274,Suvarna Ratnam (ABSFS6363B),"FF-5& 6, Dwarkesh Complex, Nr. Classic Gold Hotel, Off C G Road, Ahmedabad.",806.903177,Loss Assets,43159,Suit,,Deepak Natwarlal Soni (Partner),,Falguni Deepak Soni (Partner),,Jignesh Natvarlal Soni (Partner),,Natvarlal Devchand Soni (Partner)
6,HDFC BANK LIMITED,Ameerpet,Telangana,275,Skanda Prefab Industries Pvt Ltd,"59/A, Beulah Teachers Colony, Gunrok, Tirumalagir, Secunderabad",726.6270454,Loss Assets,43159,Suit,,K.Rama Raju,,K.Sita Devi,,Mr. Suresh Arun,,SV Simhadri Raju
6,HDFC BANK LIMITED,Sirsa,Haryana,276,Ganga Cotton Allied Industries Ltd,7/2WEST PATEL NAGAR NEW DELHI,2068.066696,Loss Assets,43158,Suit,,Tarsem Chand,238059,Hem Raj,2450626,Ajay Kumar,2942115,Sham Lal,2942830
6,HDFC BANK LIMITED,Raikot,Punjab,277,The Tajpur Rice And General Mills,"M/s Tajpur Rice and General Mill, Sarabha Road,  Village Tajpur, Raikot,  Ludhiana, Punjab – 141109",1986.161474,Loss Assets,43190,Suit,,Mr. Jaswinder Singh Litt S/o Mr Arjan Singh Litt,,Mr. Nitin Goyal S/o Mr Raman Kumar,,Mrs. Ranjeet Kaur W/o Mr. Jaswinder Singh Litt,,Mr. Raman Kumar S/o Mr Satpal
6,HDFC BANK LIMITED,Kurnool,Andhra Pradesh,278,Sree Pavan Agro Tech,"DOOR NO 17/40,MADHAVARAM ROAD,ADONI,ANDHRA PRADESH-518301",1131.830514,Loss Assets,43190,Suit,,Vitta Suresh,,Aitta Anathasayana,,Vitta Sarala,,Vitta Pooja
6,HDFC BANK LIMITED,Mumbai,Maharashtra,279,R SQUARE SHRI SAI BABA ABHIKARAN PVT LTD,"Unit No.6A - 6B, K Star Mall, Ground floor, V N Purav Marg, Chembur (E), Mumbai-400071",1029.748469,Loss Assets,43186,Suit,,Ms. Ranjana Sharma,6743905,Ms. Rachana Sharma,3357429,Mr. Rakesh Rajpal,,Mrs Preeti Udenia,7798913
6,HDFC BANK LIMITED,Calcutta,West bengal,280,Vikram International,"113B, Monhar Das Katra, 1st Floor, Kolkata-700007",481.4619719,Loss Assets,43201,Suit,,Vikram Kumar Rathi
6,HDFC BANK LIMITED,Ring Road,Gujarat,281,Nilam Textile (ANQPN4469F),"H NO 7/4824-A, 1st Floor,Shop- J/173, Japan Textiles Market, Ring Road, Surat – 395 002",1182.957559,Loss Assets,43192,Suit,,NEERU DEEPAK NARANG
6,HDFC BANK LIMITED,Kakinada,Andhra Pradesh,282,Varcheswi Marketing Agencies,"D No 13-2-43 Latchiravuvari Street Suryaraopeta, Kakinada",2854.907548,Loss Assets,43208,Suit,,K V Nageswara Rao ( partner),,Mallidi Rama Murthy ( partner),,Kancherla Vnps Annapurna
6,HDFC BANK LIMITED,Rajahmundry,Andhra Pradesh,283,Gaawthami Foodpro Pvt Ltd (AAFCG4369N),"D No 4-41/1 Canal Road M/S Abhiruchi Foods, Mallipudi",463.5192096,Loss Assets,43198,Suit,,G Bala Gangadhar Reddy,,Jayashree N,,Chirla Lavanya
6,HDFC BANK LIMITED,Rajahmundry,Andhra Pradesh,284,Somsu Marketing Pvt Ltd (AAUCS1542G),D No 6-10 Gopalapuram Ravulapalem,242.3191773,Loss Assets,43198,Suit,,Gudimetla Sarath,,R Natarajan
6,HDFC BANK LIMITED,Delhi,Delhi,285,Gian Chand Dass (Delhi),"25/75, Shakti Nagar, New Delhi – 110007",500,Loss Assets,43206,Suit,,Gian Chand Dass,,Vaibhav Singhal
6,HDFC BANK LIMITED,Madhya Pradesh,Madhya Pradesh,286,Allied Minerals Industries Pvt Ltd,"Jayanti Nagar, P.O. Piproudh, Katni, Madhya Pradesh – 483442.",753.71624,Loss Assets,43249,Suit,,Mr. Brahma Dutt Gautam,123303,Mr. Amit Gautam,2152552,Mrs. Asha Gautam,123348
6,HDFC BANK LIMITED,Naya Bazar,Delhi,287,Dalip Jindal Agro Packaging Pvt Ltd (AADCA9146M),"4049, Naya Bazar , Delhi 110006",3937.001501,Loss Assets,43249,Suit,,Dalip Jindal,536819,Shallo Jindaal,6553024
6,HDFC BANK LIMITED,Naya Bazar,Delhi,288,Faqir Chand Dalip Kumar (AADFF8073B),"4049, Naya Bazar , Delhi 110006",2393.053281,Loss Assets,43249,Suit,,Dalip Jindal,,Disha Jindal
6,HDFC BANK LIMITED,Naya Bazar,Delhi,289,Jindal Agro International,"4055 1st, floor ,Naya Bazar , Near Naya Bazar Welfare Association , Delhi 110006",7576.044403,Loss Assets,43249,Suit,,Dalip Jindal
6,HDFC BANK LIMITED,Jaipur,Rajasthan,290,Ashish Industries (ADRPK7315A),"F-155 , Sarna Dungar , RIICO Industrial Area, Jaipur , Rajasthan – 302012.",391.877743,Loss Assets,43249,Suit,,Ms. Nita Khandelwal
6,HDFC BANK LIMITED,Delhi,Delhi,291,Variation Design Pvt Ltd,"845/2 & 847/2 , MG Road, Ghitorni, Delhi – 110030.",379.7298439,Loss Assets,43221,Suit,,Bharat Bhushan Bhardwaj,117661,RASHNA SARIN BHARDWAJ,117747,SANTOSH KUMAR SHARMA,2148798
6,HDFC BANK LIMITED,"HDFC Bank Ltd, Dimapur",Nagaland,292,Tribal Retails,"M/s Tribal Retails,Old Taxi stand, Main Town Kohima, Kohima, Nagaland- 797112",201.0342569,Loss Assets,43249,Suit,,Mr. Zarenthung Odyuo
6,HDFC BANK LIMITED,"HDFC Bank Ltd, Dimapur",Nagaland,293,Tribal Enterprise,"M/s Tribal Enterprise,C.K.Arcade,Opp. The Head Post Office , Near Gravity, Kohima , Nagaland- 797001",308.07056,Loss Assets,43221,Suit,,Mr. Zarenthung Odyuo
6,HDFC BANK LIMITED,Naya Bazar,Delhi,294,Jain Traders (Delhi),"B-76, New Gupta Colony, New Delhi – 110009",3719.998575,Loss Assets,43291,Suit,,Mahabir Parshad Jain
6,HDFC BANK LIMITED,Naya Bazar,Delhi,295,Manya Foods Pvt Ltd,2650/2 (IST FLOOR) GALI RAGHUNANDAN NAYA BAZAR NEW DELHI North Delhi DL 110006,1645.34171,Loss Assets,43291,Suit,,Pankaj Jain
6,HDFC BANK LIMITED,Naya Bazar,Delhi,296,Pankaj Traders (AAGPJ4485L),"2256, 1st Floor, Gali Raghunandan, Naya Bazaar, Delhi – 110006",954.1930849,Loss Assets,43291,Suit,,Pankaj Jain,2199385,Preeti Jain,6567674
6,HDFC BANK LIMITED,"MAHASMUND,",Chhattisgarh,297,Sai Kripa Rice Mill (AGUPC7025K),"KHASRA NO. 627,630,999, PH NO. 144/91, VILLAGE SARADIH, NEAR POLYTECHNIC COLLEGE ROAD, DISTT. MAHASMUND, CHHATTISGARH - 493445",555.945763,Loss Assets,43280,Suit,,TEJ PRAKASH CHANDARKAR,,SHIVKUMAR CHADARKAR,,RATNA CHANDARKAR
6,HDFC BANK LIMITED,Bhattu Mandi,Haryana,298,Saraswati Ginning Pressing & Oil Mills,Bhattu Mandi Fatehabad Haryana,1718.243926,Loss Assets,43280,Suit,,Amit Kumar Bansal,,Sudesh Rani Bansal
6,HDFC BANK LIMITED,Bhattu Mandi,Haryana,299,Shree Ram Mills (ADHFS9939A),"Nohar Road , Bhattu Kalan, Fatehabad, Haryana",314.2607333,Loss Assets,43280,Suit,,Ankit Bansal,,Mukesh Kumar
6,HDFC BANK LIMITED,"Kanpur, Govind Nagar",Uttar Pradesh,300,Disha Products (Kanpur),"D-19 PANKI INDUSTRIAL AREA,SITE NO 2 , KANPUR 208022, UTTAR PRADESH INDIA",341.6711438,Loss Assets,43280,Suit,,Jai Kumar Rangwani
6,HDFC BANK LIMITED,MAHARASHTRA,Maharashtra,301,Teemper Lifestyle Pvt Ltd (AADCT0469J),"601, PLUTO, B - WING, VASANT GALAXY, BANGUR NAGAR, GOREGAON (WEST), MUMBAI - 400104",436.5955163,Loss Assets,43288,Suit,,ADITYA BIMAL KHAITAN,2209833,ABHISHEK BIMALKUMAR KHAITAN,2209864
6,HDFC BANK LIMITED,MAHARASHTRA,Maharashtra,302,Jitendra Metal Udyog (AKAPS6657F),"Panchratna, Unit No. 1006, 10th Floor, Near Roxy Cinema, Opera House, Mumbai Central, Mumbai – 400 004.",151.5292145,Loss Assets,43310,Suit,,Mr. Jitendra Ghaverchand Sanghvi,,Mrs. Mamta Jitendra Sanghvi
6,HDFC BANK LIMITED,Gujarat,Gujarat,303,Aom And Co (AAWFA1572H),"G-6, Shivalik Western, L P Savani Road,Adajan – Surat,  Gujarat – 395 009",712.941195,Loss Assets,43310,Suit,,Nitin Prafulchandra Mehta,,Rajesh Rajnikant Parikh
6,HDFC BANK LIMITED,Surat,Gujarat,304,Parth Synthetics,"3009, 3rd floor, World Trade Centre, Ring Road, Surat,  Gujarat – 395 002",424.8995195,Loss Assets,43354,Suit,,Sanjay Pragjibhai Patel,,Asmita Sanjaybhai Patel
6,HDFC BANK LIMITED,Siliguri,West bengal,305,Geeta Enterprise,"H/N/144/12/2455, P C Mittal Bus Terminus, Sevoke Road, Siliguri-734001.",254.098097,Loss Assets,43341,Suit,,Nand Kishore Nangalia
6,HDFC BANK LIMITED,New Delhi,Haryana,306,Rashpal Singh Todd,"E-26, South City-I, Gurugram -122001",1994.91,Loss Assets,43313,Suit,,Rash Pal Singh Todd,,Balbinder Kaur,,Mandhir Singh Todd
6,HDFC BANK LIMITED,Rajasthan,Rajasthan,307,Rishabh Incorporates (AAKFR4372G),"C-11, Moti Marg Bapu Nagar Jaipur
Jaipur,Rajasthan,India",160.4585431,Loss Assets,42772,Suit,,Smt. Sandhya Jain (Partner),,Mr. Vivek Jain (Partner),,Mr. Siddharth Jain (Partner)
6,HDFC BANK LIMITED,Mohania,Bihar,308,Agrasen Industries,"Baddi Bazar, Station Road
Kaimur,Bhabua, Mohania
Bihar-821109",240.8843911,Loss Assets,43339,Suit,,Mr. Raj Kumar Agrawal,,,
6,HDFC BANK LIMITED,Bokaro,Jharkhand,309,Shree Vinayak Traders (AHAPJ2025M),"Yaduvansh Nagar 
Near Azad Transport Balram Bhawan,Chas, Bokaro, Jharkhand-827013",142.385882,Loss Assets,43311,Suit,,Prabhas Chandra Jha
6,HDFC BANK LIMITED,Bhawanigarh,Punjab,310,Hem Raj Goyal,Bhawanigarh Sangrur,347.5938686,Loss Assets,43341,Suit,,Hem Raj Goyal,,Parneet Goyal,,Rekha Rani
6,HDFC BANK LIMITED,KATNI,MADHYA PRADESH,311,SHRI RAM PULSES,"P.H.No. 44, S.N.No. 14, Sant Kanwar Ram Ward, Padarwara, Near Gandhi Market, Katni, Madhya Pradesh, Pin Code - 483501.",147.5705445,Loss Assets,43326,Suit,,RAJA VASWANI
6,HDFC BANK LIMITED,REWARI,Haryana,312,Bajrangi Furniture House (AXUPD3850A),"at VPO Banipur,  Near Shiv Mandir, Bawal, District Rewari Haryana 123501.",185.9108382,Loss Assets,43371,Suit,,Mrs Sangita Devi
6,HDFC BANK LIMITED,Lucknow,Uttar Pradesh,313,Vidya Devi Educational Trust (AABTV2533N),"C-142, Indira Nagar, Lucknow – 226016",316.9224759,Loss Assets,43357,Suit,,Vijay Kumar Singh,,Sushma Singh,,Dhirendra Singh,,Abhishek Singh
6,HDFC BANK LIMITED,Lucknow,Uttar Pradesh,314,Sood Agritech Pvt Ltd (AAVCS8982M),"C-421, INDRA NAGAR, C-BLOCK, LUCKNOW Lucknow UP 226016",278.8794073,Loss Assets,43382,Suit,,Sushma Singh,,Abhishek Singh
6,HDFC BANK LIMITED,Delhi,Delhi,315,Cuddle Up Diet Products Pvt Ltd,"2704, LOTHIAN ROAD KASHMERE GATE DELHI  110006",900.871954,Loss Assets,43402,Suit,,ADITYA JAIN,84153,CHAITANYA JAIN
6,HDFC BANK LIMITED,Mumbai,Maharashtra,316,Nimbus Industries Ltd (Mumbai),"B-323, Orchid Mall, Royal Palms, Aarey Milk Colony, Goregaon (East), Mumbai - 400065.",599.8116491,Loss Assets,43402,Suit,,Mr. Nimish Bhishma Thakore,2460087,Mr. Subhash Sharma,1537718,Mr. Abdul Khalique Noor Mohd Mukkhi,7597978
6,HDFC BANK LIMITED,REWARI - HARYANA,Rajasthan,317,Shri Balaji Oil And General Mills (APIPG4173P),"  Sarund,Kotputli (14), Jaipur, Rajasthan.",441.1063005,Loss Assets,43402,Suit,,Mrs. Manju Garg
6,HDFC BANK LIMITED,Raipur,Chhattisgarh,318,Shree Hanuman Pulses (ABVFS8419D),"Shree Hanuman Pulses,17A, Industrial Area, Rawanbhata, Bhanpuri, Raipur (C G)",496.5721057,Loss Assets,43402,Suit,,Ramesh Kumar Jhawar,,Ratan Kumar Jhawar
6,HDFC BANK LIMITED,Jayanagar,Karnataka,319,Nurture Software Solutions Pvt Ltd (AACCN0302P),"Skyline Vista""", No. 787, 15th Cross, 100 Ft Road, Phase 1, JP Nagar," Bangalore 560 078""",219.5794814,Loss Assets,43382,Suit,,SUBRAMANYAM SHARMA,2571787,KOOTGAL VARADAIAH RASHMI,7669783
6,HDFC BANK LIMITED,ANKLESHWAR -,Gujarat,320,Dexter Biochem Pvt Ltd (AAECD1905C),"Plot No. A 1/5301, GIDC, Ankleshwar, Gujarat",120.5272527,Loss Assets,43379,Suit,,Rameshbhai Mansukhbhai Virani,,Rehank Rameshbhai Patel,,Raghav Hirabhai Dobaria,,Ambikesh Natwarlala Padhya
6,HDFC BANK LIMITED,AMBAWADI,Gujarat,321,Nst Foods Pvt Ltd (AAECN0825B),"S-38, Tirupati Market, Bhagwada Darwaja, Patan, Mehasana, Gujarat",412.5355846,Loss Assets,43379,Suit,,Sureshkumar Maneklal Thakkar,,Nikunj Sureshkumar Thakkar,,Jagdishchandra Popatlal Akhani
6,HDFC BANK LIMITED,Station Road Pali,Rajasthan,322,Dhruv Enterprises (AGBPG0929K),"Shop No 10 Krishi Mandi Sumerpur, Sumerpur,Rajasthan,India",533.4320198,Loss Assets,43387,Suit,,Deepesh Goyal
6,HDFC BANK LIMITED,Guntur,Andhra Pradesh,323,K S R Seeds (AAJFK0692F),"D. No. 213/D, Kurnuthala, Vatticherukuru, Guntur,",3415.632609,Loss Assets,43391,Suit,,Kondaveeti Srinivasa Rao,,Kondaveeti Siva Kumari
6,HDFC BANK LIMITED,Tindivanam,Tamil Nadu,324,Shri Seenuvasa Modern Rice Mill (AUOPS3257K),"73/5, 6 Salavthy Village Melpettai Post
Tindivanam Tindivanam,Tamil Nadu,India",382.0605852,Loss Assets,43433,Suit,,S Senthilkumar,
6,HDFC BANK LIMITED,Delhi,Delhi,325,Ambica Vikas Udyog (AABFA3946L),"12, Mohini Market, Kucha Mahajani, Chandni Chowk, Delhi – 110006.",1388.818102,Loss Assets,43423,Suit,,. Rajnish Kumar Jain,,Vipul Jain,,Ms. Bindu Jain
6,HDFC BANK LIMITED,Sehore,Madhya Pradesh,326,Shivam Pulses,"Part of Plot House Tax No.-1003,1001,1101,233,234 & 232 ,Block Office Road ,Ward No.20,Galla Mandi,Opp.Nagar Palika Parishad,Sehore,Madhya Pradesh,Pin code-466001",280.88215,Loss Assets,43434,Suit,,Bhaiyalal Rathore
6,HDFC BANK LIMITED,"Station Road, Jaipur",RAJASTHAN,327,J D Distributors (AAOPB3040M),"kalyan Mansion, Film Colony, Chura Rasta,Jaipur",179.39748,Loss Assets,43463,Suit,,RAMESH BASANDANI
6,HDFC BANK LIMITED,Fatehpur,Uttar Pradesh,328,Sagar Wires Pvt Ltd (Kanpur),117RADHA NAGAR FATEHPUR UTTAR PRADESH UP 212601,432.6663036,Loss Assets,43463,Suit,,MOOL CHANDRA GUPTA,852731,ANITA GUPTA,2393005
6,HDFC BANK LIMITED,HOWRAH LILUAH,West bengal,329,S B Ispat India Pvt Ltd,"10/27, Guha Road, Ghusuri, Howrah-711107.West Bengal",488.0299304,Loss Assets,43454,Suit,,Mr. Bikash Sharma,1566650,Mr. Nitesh Bhardwaj,2527957
6,HDFC BANK LIMITED,Bahadurgarh,Haryana,330,Sidhi Vinayak Vehicles Pvt Ltd,"G-10/1102, SUNCITY HEIGHTS, SECTOR-54 GURGAON Gurgaon HR 122011 ",2698.076637,Loss Assets,43491,Suit,,SHASHI PRABHA HARJAI,2826149,DHRUV HARJAI,3028001,RAVI MOHAN HARJAI,6445386
6,HDFC BANK LIMITED,Ahmedabad,Gujarat,331,Safal Flexibond Pvt Ltd,"52 55 Kailash Ind Estate-1, Nr. Sardar Patel Ring Road, Odhav, Ahmedabad, Gujarat",374.9022465,Loss Assets,43473,Suit,,Hemalkumar Pratapbhai Thakkar,,Niruben Paratpbhai Thakkar
6,HDFC BANK LIMITED,Mansa,Punjab,332,Onkar Cotton Factory (AKFPR8085F),M/S Onkar Cotton Factory its Place of Business at Jakhal Road Barela Mansa Punjab 151501,220.7841923,Loss Assets,43463,Suit,,SUNITA RANI
6,HDFC BANK LIMITED,Etah,Uttar Pradesh,333,Karan Kumar And Sons (AJJPG8252A),"C/o Guruji Associate , Naveen Mandi, Sthal, Etah, Etah , 207001",421.5801121,Loss Assets,43494,Suit,,Karan Kumar
6,HDFC BANK LIMITED,Residency Road,Jammu & Kashmir,334,Cee Ess Jewellers,Shop No 65 Jain Bazaar Jammu Pin: 180001.,900.8479614,Loss Assets,43463,Suit,,Sandeep Jain
6,HDFC BANK LIMITED,Residency Road,Jammu & Kashmir,335,Chain Shah Jewellers,Jain Bazaar Jammu Pin: 180001.,585.415461,Loss Assets,43513,Suit,,Parmodh Bala Jain
6,HDFC BANK LIMITED,Ajmeri Gate,DELHI,336,Inox Tubes Pvt Ltd,"G-39, DDA Flats, Behind Raghushree Market. Ajmeri Gate , Delhi 110006",435.0618184,Loss Assets,43129,Suit,,HANUWANT RAJ DOSHI (DIR),1943936,SANJAY KUMAR DOSHI (DIR),1943948
6,HDFC BANK LIMITED,Delhi,Delhi,337,Amar Jee (AAAPA1339E),"330 , Katra Hussain Bux ,  Khari Baoli ,  Delhi – 110006.",2325.974435,Loss Assets,43159,Suit,,Vijay Prakash Amar  (PROP)
6,HDFC BANK LIMITED,Pune,Maharashtra,338,NEEL MOTORS LLP,"Sarvey No. 613/614, Plot No. 11, Gangadhar Society, Bibewadi, Pune 411 037",267.1275127,Loss Assets,43240,Suit,,"Mr, Akahey Sunil Shah",,Mr. Sunil Saojbhai Shah,,Mrs. Esha Akshay Shah,,Mr. Kushal Sunil Shah
6,HDFC BANK LIMITED,Padampur,Rajasthan,339,Prem Chand Sandeep Kumar,"Shop No. 65 , New Dhan Mandi, Padampur,     Rajasthan – 335041",700.2356979,Loss Assets,43341,Suit,,Prem Chand Jindal HUF
6,HDFC BANK LIMITED,Delhi,Uttar Pradesh,340,Shree Manibhadra Overseas (ABLFS4309Q),"C-18 , Sector A1, Tronica City, Loni Road, Ghaziabad – 201102.",366.801095,Loss Assets,43346,Suit,,Neeraj Kumar Jain,,Vipul Jain,,Aditya Jain,,Sambhav Jain
6,HDFC BANK LIMITED,"M G ROAD, BANGALORE",Karnataka,341,Cns Textiles,"8/1, 2nd Main, Nanjappa Layout, Adugodi, Bangalore 560 030",587.6807221,Loss Assets,43524,Suit,,KONANUR NANUJNDA SETTY SHIVASHANKARA,,KONANUR NANUJNDA SETTY KRIPASHANKAR
6,HDFC BANK LIMITED,Anna Nagar,Tamil Nadu,342,Cynox Networks Pvt Ltd (AADCC7496G),"Z-77 1st Floor 11th Cross
Street Anna Nagar Chennai
600040,Chennai.",297.3174585,Loss Assets,43502,Suit,,Suresh Karthikeyan,,Sivasankari Ekambaram
6,HDFC BANK LIMITED,Coimbatore,Tamil Nadu,343,Sheriff Motors,"No. 1240 to 1242,
Mettupalayam Road,
Coimbatore,
Tamil Nadu – 641043.",330.4334879,Loss Assets,43510,Suit,,M A Yusuff Sheriff,,Y. Imran Sheriff,,Y. Ibrahim Sheriff,,Y. Omar Sheriff
6,HDFC BANK LIMITED,Navsari,Gujarat,344,Padmavati Traders (Navsari),"39, Dudhiya Talav Shopping Centre, Lake Level, Navsari, Gujarat – 396 445",1315.888599,Loss Assets,43524,Suit,,Kalpesh Kothari
6,HDFC BANK LIMITED,STEPHEN HOUSE,West Bengal,345,MADHUSUDAN GARAI,"1& 2 No. College Street, P.O. Krishnanagar, P.S. Kotwali, District- Nadia, West Bengal-741101",613.160306,Loss Assets,43519,Suit,,Madhusudan Garai,,Kanika Garai,,Sangramjit Garai
6,HDFC BANK LIMITED,Akola,Maharashtra,346,Jagdamba Agro Industries (AAHFJ9387L),"S-No 17/1A, Mouje Gadegaon, Gadegaon Rd, Telhara, Dist Akola, Maharahstra 444108",368.7568271,Loss Assets,43280,Suit,,Murar Badrinarayan Murarka,,Omprakash M B Chandak,,Ravindra Dilipkumar Kela,,Abhijit Gopal Murarka
6,HDFC BANK LIMITED,Bangalore,Karnataka,347,Camson Bio Technologies Ltd,"C7, 7th Floor, Corporate Block, Golden Enclave, Old Airport Road, Bangalore, 560 017",9461.515757,Loss Assets,43158,Suit,,Dhirendra Kumar,301372,Manoj Srivastava,513960,Anirudh Kumar Singh,2539344,Peter Joseph Kennedy,6377043,Virendra Kumar Singh,7226146,Geok Lan Tay,7727496
6,HDFC BANK LIMITED,Delhi,Haryana,348,Zenica Performance Cars Pvt Ltd,"Orchid Centre, Sector - 53
Golf Course Road
GURGAON - 122001
HARYANA",3300.07261,Loss Assets,43313,Suit,,RASHPAL SINGH TODD,1724628,MANDHIR SINGH TODD,1738030
6,HDFC BANK LIMITED,Noida,Uttar Pradesh,349,NAINCY CONVENT EDU & SOCIAL WELFARE SOC,"Naincy Campus,
Shyalikhet,
Jeolikote,
Nainital,
Uttrakhand-263127",281.9543365,Loss Assets,43392,Suit,,NAINCY CONVENT EDUCATIONAL & SOCIAL WELFARE SOCIETY,,ITENDERPAL SINGH,,MANJU SINGH,,MANOJ HARBOLA
6,HDFC BANK LIMITED,Delhi,Delhi,350,LIBRA FOUR WHEELS PVT LTD,"C-160
Naraina Industrial Area,Phase-1
NEW DELHI - 110028
DELHI",922.1027751,Loss Assets,43446,Suit,,PARVEEN KAUR,1580178,MANREET SINGH,782644
6,HDFC BANK LIMITED,Delhi,Delhi,351,Golden India Expotrade Pvt Ltd / Savemax Wholesale Club P Ltd,"401,D'Mall, Netaji Subhash Place Pitampura Delhi110034",5346.950004,Loss Assets,43129,Suit,,Vaibhav Singhal,2694098,Seema Gupta,2878077
6,HDFC BANK LIMITED,Khamgoan,Maharashtra,352,Jai Shree Balaji Spinning Mills Pvt Ltd (AAACJ9692A),"Gadodia Kuti Hans Cotton  Compound, Khamgoan District Buldhana, Maharashtra",1492.356699,Loss Assets,43550,Suit,,Santoshkumar Kamalkishore Gadodia,,Sarvesh Narayan Gadodia,,Rajendra Jugalkishore Gadodia,,Madhusudan Ramnivas Gadodia,,Omprakash Ramnivas Gadodia,,Salasar Agro Industries - Group Concern & Guarantor
6,HDFC BANK LIMITED,Khamgoan,Maharashtra,353,Salasar Agro Industries (ABMPG2511K),"180 Hans Compound, Khamgoan, District Buldhana, Maharashtra",1410.155418,Loss Assets,43540,Suit,,Omprakash Ramnivas Gadodia
6,HDFC BANK LIMITED,Dehradun,UTTARAKHAND,354,EUTOPIA AUTO PRIVATE LIMITED,37 SUBHASH ROAD DEHRADUN 248001,389.4843293,Loss Assets,43537,Suit,,NEERAJ KUMAR GUPTA,992509,ISHAN PRAKASH,7292366
6,HDFC BANK LIMITED,GanjBasoda,MADHYA PRADESH,355,D C Organic Agro Services (AAMFD7453N),"Ward No.-12,House No.64 ,Jain Mandir Gali ,Ganj Basoda ,District-Vidisha(M.P.)464221",199.8739671,Loss Assets,43532,Suit,,Mr.Sumit Jain,,Mrs.Moovi Jain,,Mrs.Shashi Jain,,Mr.Amit Jain
6,HDFC BANK LIMITED,Tadepallygudem,andhra pradesh,356,Hotel Usha Grand (AHVPM9882A),"3/1/4,KN Road, Near KVB Ltd, Tadepallygudem, Andhra pradesh",194.2934278,Loss Assets,43555,Suit,,Madereddy Bhaskar Rao
6,HDFC BANK LIMITED,Delhi,Delhi,357,Janak Medicos (AAEFJ2350C),"B-9 , Basement, Shankar Garden, Vikaspuri, New Delhi – 110018",2189.84882,Loss Assets,43555,Suit,,Ravi Pal Udar,,Rachna Udar
6,HDFC BANK LIMITED,Varanasi,Uttar Pradesh,358,Kusum Enterprises (AIBPM1089Q),"Bharthara, Lohta, Varanasi-221107",360.8352688,Loss Assets,43555,Suit,,Bhola Nath Maurya,,Ramjeet Maurya
6,HDFC BANK LIMITED,"Kukatpally, Hyderabnad",Telangana,359,Panthroli Industries,"plot no. 119/A, S.MNo. 48, IDA, Kattedan, Rajendra Nagar Mandal, Hyderabad-500077",2764.164203,Loss Assets,43555,Suit,,Manoj Kumar Agarwal
6,HDFC BANK LIMITED,Lucknow,Uttar Pradesh,360,Sadhna Singh (FQEPS2661J),"123/3, Maha Rishi Nagar, Raipur Road, IIM Road, Lucknow",210.4504183,Loss Assets,43555,Suit,,Sadhana Singh,,Yash Vikram
6,HDFC BANK LIMITED,"Lakshmipuram, Guntur",andhra pradesh,361,Sri Sri Cotton Concern (Guntur),"5/6, GT Road, Vengayapalem, Guntur-522005",2906.447503,Loss Assets,43555,Suit,,Maddali Kameshwar Rao
6,HDFC BANK LIMITED,Rewa,Madhya Pradesh,362,Sujay Medical Agencies (AHPPK6988F),"5/9 ,A-Block ,First Floor ,Shilpi Plaza ,Rewa ,District-Rewa(M.P.)486001.",263.128332,Loss Assets,43555,Suit,,Mrs.Aruna Khare,,Mr.Bipul Kumar Khare
6,HDFC BANK LIMITED,Kolkata,West Bengal,363,Mohan Motor Udyog Pvt Ltd,"GROUND FLOOR, 242/1A, A P C ROAD, KOLKATA - 700004, WEST BENGAL",2077.029796,Loss Assets,43529,Suit,,Sandip Kumar Bajaj,126979,Gaurav Bajaj,2676350
6,HDFC BANK LIMITED,Kolkata,West Bengal,364,Mohan Motor Distributors Pvt Ltd,"9, A.J.C. BOSE ROAD, KOLKATA - 700020, WEST BENGAL",2281.455322,Loss Assets,43551,Suit,,Sandip Kumar Bajaj,126979,Gaurav Bajaj,2676350
6,HDFC BANK LIMITED,"Rajam, AP",andhra pradesh,365,Hero Wiretex Pvt Ltd (AADCS1425R),"Sy.116, Antakapalli village, Rajam-532127",777.4038764,Loss Assets,43555,Suit,,Grandhi Mohan Rao,,Seemakurthy  Raghunath Gupta,,Grandhi Bhaskar Rao,,Vijayalakshmi Penumatch
6,HDFC BANK LIMITED,Delhi,New Delhi,366,HANA MOTOR PLAZA PVT LTD,"A-30, Mohan Cooperative Industrial Estate, Mathura Road, NEW DELHI, 110044",858.436197,Loss Assets,43567,Suit,,Girish Bhatia,440499,Ritu Bhatia,7189294
6,HDFC BANK LIMITED,Lucknow,UTTAR PRADESH,367,ANAND AUTOTECH PVT LTD,"3/211, VIJAYANT KHAND,GOMTI NAGAR,LUCKNOW , UTTAR PRADESH , 226010",604.5966232,Loss Assets,43582,Suit,,NAMITA SINGH,7575285,ANAND KUMAR SINGH,5155907
6,HDFC BANK LIMITED,Chandigarh,Punjab,368,Ajakson Leathers Pvt Ltd (AABCA4203B),"Kothi No 2, Sec 2 , Chandigardh",444.2172821,Loss Assets,43571,Suit,,Ragvinder Singh Bhullar,,Sudeep Bhullar
6,HDFC BANK LIMITED,Ambala,Haryana,369,Panna Lal Prem Chand (ACHPJ9062A),"Village Balana, Ambla City , Haryanna",505.8328529,Loss Assets,43563,Suit,,Aman Jain
6,HDFC BANK LIMITED,Ankleshwar Main Branch,Gujarat,370,Needee Manpower Management,"FF-14, Roshni Plaza, B/h HDFC Bank, GIDC Estate, Ankleshwar-393002",326.6937855,Loss Assets,43574,Suit,,Niraj M Desai,,Mahesh Dhirubhai Desai,,Bhavnaben M Desai
6,HDFC BANK LIMITED,Guwahati,Assam,371,K D Associates (AFSPA8620H),"6TH FLOOR 603 ROYAL CENTRE,G SROAD,,GUWAHATI,ASSAM-781001",318.3332446,Loss Assets,43555,Suit,,Ashish Agarwal
6,HDFC BANK LIMITED,RAJKOT,GUJARAT,372,Excel Castronics Ltd (AAACA9718J),"Imperial Heights, B-301/302, 3rd Floor, Opp. Big Bazar, 150 Feet Ring Road, Rajkot Gujarat 360005",691.24787,Loss Assets,29.05.2017,Suit,,VIREN MAGANLAL VAGHELA (ADD DIR),3043714,JAYESH VALLABHAJI MADIYAR (MD),3045045,PAYAL JAYESHBHAI MADIYAR (ADD DIR),6881586,SANJAY JAYANTILAL JOBANPUTRA (ADD DIR),7665993,VALLABHJI SURJI THACKER,7071004,MANALI DOSHI KALENDU,7274207,DHAVAL PRAVINBHAI DANGAR,7274213,TARAMATI PRANLAL SHAH,7432988
6,HDFC BANK LIMITED,Ponnur,andhra pradesh,373,Chimakurthi Home Needs,"17/4/9/10,3rd Line Subbaraya Nagar Ponnur , Guntur,  Andhra Pradesh",1879.138924,Doubtful III,43586,Suit,,Chimakurthy Venkata Naga Sai Kiran
6,HDFC BANK LIMITED,Gurgaon,Haryana,374,Denver Security Services Pvt Ltd,"Jharsa Course, Main Jharsa Chowk, NH – 8 ,Gurgaon - 122002",224.5976058,Doubtful III,43614,Suit,,VISHAL KAPOOR,1182889,NISHANT KAPOOR,2991527
6,HDFC BANK LIMITED,Faridabad,Haryana,375,Rajeev Steels (ADSPA2144A),"B-537 , Nehru Ground, NIT Faridabad , Haryana – 121007",1068.071029,Doubtful III,43645,Suit,,Rajeev Kumar Aggarwal
6,HDFC BANK LIMITED,Delhi,Delhi,376,Aastha Jewellers (ABEFA3418K),"2526/7, DTC Chamber, Beadon Pura,Karol Bagh, New Delhi-110005",1593.736953,Loss Assets,43586,Suit,,Shyam Sunder,,Devender Kumar Tomar
6,HDFC BANK LIMITED,Delhi,Delhi,377,Happy Acoustics Pvt Ltd (AACCH8673H),"WZ-15, Ground Floor, Uggarsain Market, Ashok Nagar, New Delhi - 110018",214.2112957,Loss Assets,43646,Suit,,Amarjit Singh Kalra,176921,Surinder Kaur Kalra,177037
6,HDFC BANK LIMITED,Delhi,Delhi,378,Indian Acoustics Pvt Ltd (Mumbai),"WZ-15, Ground Floor, Uggarsain Market, Ashok Nagar, New Delhi - 110018",1262.249741,Loss Assets,43646,Suit,,Amarjit Singh Kalra,176921,Surinder Kaur Kalra,177037
6,HDFC BANK LIMITED,Ludhiana,Punjab,379,Balaji Enterprises (AOYPS2078E),"Village Seera, Rahon Road, Ludhiana Ludhiana,Punjab.",230.8483464,Doubtful III,43586,Suit,,Mr Gurpreet Singh s/o Mr Mohinder Singh
6,HDFC BANK LIMITED,Ludhiana,Punjab,380,Hma International (ANMPS4211J),738/2 Street No.5 Manna Singh Nagar Ludhiana,252.31262,Doubtful III,43586,Suit,,Mr Harpreet Singh
6,HDFC BANK LIMITED,Khategaon,Madhya Pradesh,381,Baklwal Ginning And Pressing Pvt Ltd,"Khategaon ,District-Dewas ,Madhya Pradesh",1695.188396,Doubtful III,43614,Suit,,Bakliwal Ginning and Pressing PVt ltd,,Meenu Devi Bakliwal,,Madhu Devi Bakliwal,,Kalash Bakliwal,,Pavan Bakliwal,,Kushal Bakliwal
6,HDFC BANK LIMITED,Durg,Chhattisgarh,382,Jain Udyog (Raipur),"8/A ,Industrial Area , Village- Sikola, Dhanda Naka , Durg (C.G.)",878.3670587,Doubtful III,43645,Suit,,Jain Udyog,,Praveen Kumar Bakliwal,,Mahesh Kumar Jain,,Prashant Kumar Jain
6,HDFC BANK LIMITED,Azamgarh,Uttar Pradesh,383,Pooja Foods Products (ACOPL4291L),"Atraulia Burnpur, Azamgarh -276142",331.5370738,Doubtful III,43586,Suit,,Kanhaya Lal Jaiswal
6,HDFC BANK LIMITED,Ajmer,Rajasthan,384,Swift Projects (ABBFS9366D),"10/57, Civil Lines, Ajmer, Rajasthan - 305001",1020.609114,Doubtful III,43614,Suit,,Bina Garg,,Sonu Garg
6,HDFC BANK LIMITED,THRISSUR,KERALA,385,J B Rubbers,"DOOR NO: 7/369, NEAR EMP UP SCHOOL, VANIAMPARA, THRISSUR",659.6183571,Doubtful III,43586,Suit,,JOY MANJALI PAULOSE
6,HDFC BANK LIMITED,CALICUT,KERALA,386,Palat Engineers India Pvt Ltd,"2/1606 A3, ENGINEERS WALLS, FLORIKKAN HILL ROAD, CALICUT – 673 010",171.2621284,Doubtful III,43646,Suit,,PALAT SAJITHLAL,,RAJEEV MUNDAYADAN,,EENTHEN BAVA
6,HDFC BANK LIMITED,Ambala,Haryana,387,Kewal Kumar Pawan Kumar Rice Mill (ABLPK6305J),Kewal Kumar Pawan Kumar Rice Mill  Jind Road Kaithal Haryana 136027,2459.964745,Doubtful III,43675,Suit,,Sanjay Kumar
6,HDFC BANK LIMITED,Delhi,Delhi,388,MM Pulses Pvt Ltd,"2258, First Floor, Gali Raghunandan, Naya Bazar, Delhi-110006",942.1044463,Loss,43675,Suit,,Mohit Mittal,,Manish Gupta
6,HDFC BANK LIMITED,Delhi,Delhi,389,Shivansh Food Mart (ABPFS4572B),"2258, First Floor, Gali Raghunandan, Naya Bazar, Delhi-110006",2387.353884,Loss,43675,Suit,,Manish Gupta,,Swati Gupta
6,HDFC BANK LIMITED,Delhi,Delhi,390,Vedansh Agro International Llp (AANFV6619H),"2258, First Floor, Gali Raghunandan, Naya Bazar, Delhi-110006",1122.335418,Loss,43675,Suit,,Mohit Mittal,,Mahendra Mittal
6,HDFC BANK LIMITED,TRADESTAR,Maharashtra,391,Vedprakash Cotsyn India Pvt Ltd (AAECV1598D),"228, Sanjay Mittal Industrial Estate No 3a, Andheri Kurla Road, Andheri East Mumbai,Maharashtra,Ind",584.8748151,Doubtful III,43675,Suit,,Pankaj Vedprakash Aggarwal,,Manoj Vedprakash Agarwal,,Vikas Vedprakash AggarwaL,,Shakuntala Panmeshwari GOYAL
6,HDFC BANK LIMITED,Kottayam and Pala,Kerala,392,JAVEENS MOTORING PVT LTD,"Javeens Motoring Private Limited, Manapurathu Building, Chalukunnu, Kottayam-686 001",123.3761432,Doubtful III,43677,Suit,,Javeen Mathew,,Anu Javeen
6,HDFC BANK LIMITED,Bikaner,Rajasthan,393,Shri Sai Trading Company (ACJPJ8074G),"C-76, Antodaya Nagar, Kachi Basti, Bangla Nagar, Bikaner, Rajasthan - 334001",213.0890028,Doubtful III,43675,Suit,,Nand Kishore Joshi
6,HDFC BANK LIMITED,Indira Nagar,Uttar Pradesh,394,Archisha Educational Trust (AABTA9595K),"C-2024, Indira Nagar, Lucknow - 226016.",819.7279706,Doubtful III,43653,Suit,,Smt Dolly Kumar,,Smt. Uma Nigam,,Shri Amit Nigam
6,HDFC BANK LIMITED,"Tonk road, Jaipur",Rajasthan,395,Morani Cars Pvt Ltd,"Plot No.-4, Opposite Sitabari Tonk Road Jaipur Jaipur RJ 302011 IN",1599.828185,Doubtful III,43702,Suit,,Jawahar Morani,168655,Lal Chand Morani,505681
6,HDFC BANK LIMITED,"Tonk road, Jaipur",Rajasthan,396,Morani Motocorp Pvt Ltd,"Plot No.-4, Opposite Sitabari Tonk Road Jaipur Jaipur RJ 302011 IN",549.8178943,Doubtful III,43700,Suit,,Jawahar Morani,168655,Lal Chand Morani,505681
6,HDFC BANK LIMITED,Delhi,Delhi,397,Sarika Textiles (ADGPA3320A),"528, Krishna Gali, Katra Neel, 
Chandni Chowk, New Delhi –110006",211.2789684,Doubtful II,43706,Suit,,Vishal Aggarwal,,
6,HDFC BANK LIMITED,Delhi,Delhi,398,Ajay Kumar & Co,"566, Katra Ishwar Bhawan, Khari Baoli, Chandni Chowk, Delhi – 110006",3144.502681,Doubtful III,43706,Suit,,Ajay Kumar Wadhwa,,Anil Kumar Wadhwa,,Meena  Wadhwa,,Neeru  Wadhwa
6,HDFC BANK LIMITED,Delhi,Delhi,399,F T C Overseas,"566, Katra Ishwar Bhawan, Khari Baoli, Chandni Chowk, Delhi – 110006",3136.249104,Doubtful III,43706,Suit,,Ajay Kumar Wadhwa,,Anil Kumar Wadhwa,,Mayank  Wadhwa,,Neeru  Wadhwa
6,HDFC BANK LIMITED,Surat,Gujarat,400,Livein Aqua Solutions Pvt Ltd (AACCL6063F),"G/103, Sterling Heights, Nr. Piramid Row House, Ugat Canal Road, Jahangirabad, Surat.-395005.",1067.014017,Doubtful II,43681,Suit,,Khillan Shah,,Bhumensh Shah,,Bhumisha Shah,,Navinbhai C Patel
6,HDFC BANK LIMITED,VADAKKENCHERRY,KERALA,401,A K R Traders,"OLIPPARA AYALOOR PANCHAYATH ,KAIRADY PO ,Palakkad Dist",296.9556129,Doubtful III,43706,Suit,,RAJESH KUMAR R
6,HDFC BANK LIMITED,Ichalkaranji,Maharashtra,402,Shri Tradco Deesan Pvt Ltd,"26, Anantwadi, 4th floor, Bhuleshwar, Mumbai -4000 02",4863.129572,Loss,43707,Suit,,Rajrattan Babulal Agarwal,590875,Mrs Nidhi Rajrattan Agarwal,590971
6,HDFC BANK LIMITED,Ghaziabad,Uttar Pradesh,403,Vaan International Pvt Ltd (AAFCV2208M),"KM-6, Kavi Nagar Ghaziabad 201002",1257.680999,Doubtful II,43736,Suit,,Vinay Kumar,7271406,Madhu,7344108
6,HDFC BANK LIMITED,"Danavaoipet, Rajahmundry",Andhra pradesh,404,Sri Satya Ganesh Traders (AAOFS8138F),"D.No.1/15, Canal Road, Pandlapaka, Bicavolu, East Godavari, AP",1659.007161,Doubtful II,43713,Suit,,Mallidi Veera Venkata Ramakrishna Reddy,,Malladi Jadeswari
6,HDFC BANK LIMITED,"Lakshmipuram, Guntur",Andhra pradesh,405,Tirumala Cotton Traders (AQPPM1521R),"Flat no. 102, Sai Praksah Aptts, 1st line, Vidya Nagar, Guntur, AP",1317.91742,Doubtful II,43738,Suit,,Manchikalapudi Buchi Babu
6,HDFC BANK LIMITED,Delhi,Delhi,406,South Delhi Motorcycles,"A-20, Kailash Colony, Near Metro Station, New Delhi - 110048",375.8477944,Loss Assets,43714,Suit,,Naveen Kachru
6,HDFC BANK LIMITED,Faridabad,Haryana,407,Gaurav Oil Mills,13/8 Village Dhauj Ballabgarh Sona Road Faridabad Haryana 121004,739.740381,Doubtful II,43736,Suit,,Madam Goyal,,Satpal Goyal,,Vijay Kumar,,Shashi Goyal
6,HDFC BANK LIMITED,Faridabad,Haryana,408,Sajal Trading Co,13/8 Village Dhauj Ballabgarh Sona Road Faridabad Haryana 121004,573.26737,Doubtful III,43736,Suit,,Madan Goyal,,Satpal Goyal,,Vijay Kumar,,Pooja Goyal
6,HDFC BANK LIMITED,Barwaha,Madhya Pradesh,409,Jai Bhawani Industries,"Survey No.151/2/GH ,Village Jaymalpura ,Barwaha ,Narmada Marg ,Khargone ,Madhya Pradesh",658.7589867,Doubtful II,43721,Suit,,Chaturbhuj Goyal,,Satyanarayan Goyal,,Kedarmal Goyal,,Ramesh Chnadra Goyal
6,HDFC BANK LIMITED,Lucknow,Uttar Pradesh,410,Universal Books,"Vedang Tower, Amrapali Bazar, Sector- 22, Indira Nagar, Lucknow- 226016",587.9978,Doubtful II,43736,Suit,,Arvind Singh,,Pramila Singh
6,HDFC BANK LIMITED,Lucknow,Uttar Pradesh,411,Seagull Publishers,"Vedang Tower, Amrapali Bazar, Sector- 22, Indira Nagar, Lucknow- 226016",825.91666,Doubtful I,43736,Suit,,Arvind Singh,,Himanshu Singh,,Pramila Singh
6,HDFC BANK LIMITED,Lucknow,Uttar Pradesh,412,Dhananjay Welfare Society,"B-2019, Indira Nagar, Lucknow- 226016",412,Doubtful II,43736,Suit,,Arvind Singh,,Himanshu Singh,,Pramila Singh
6,HDFC BANK LIMITED,"Danawaipet, Rajahmundry",Andhra pradesh,413,Sri Balaji Traders (Rajamundhry),"1-1,Vedurapaka Road Pasalapudi East Godavari, AP",4446.547058,Doubtful II,43767,Suit,,"Sathi Adinarayana Reddy, Partner of the firm",,"Raveendra Reddy Sathi, Partner of firm",,Satti Jaya Lakshmi,,Satti Veera Manikantha Adi,,Kovvuri Raja Chellareddy,,Sathi Rajendra Reddy
6,HDFC BANK LIMITED,GUNTUR,Andhra pradesh,414,Sri Sai Balaji Cotton Traders (BKBPB1510Q),"D.No 2-404 Sambasiva
Nagar Markandeya Nagar
Chilakaluripet,Guntur Dist. AP",820.701874,Doubtful II,43767,Suit,,Dhanalakshmi Bhimavarapu,,
6,HDFC BANK LIMITED,Saharsa,Bihar,415,Anamika Automobiles,"Hatiya Gachhi, Purab Bazar, Saharsa, Saharsa, Bihar 852201",250.6659636,Doubtful II,43764,Suit,,NITENDRA PRATAP SINGH,,SHIVENDRA KUMAR,,PARMANAND SINGH
6,HDFC BANK LIMITED,Ashok Marg,RAJASTHAN,416,Morani Motors Pvt Ltd,"Plot No.-5, Opposite Sitabari Tonk Road Jaipur Jaipur RJ 302011 IN",295.4408042,Doubtful III,43751,Suit,,Jawahar Morani,,Lal Chand Morani
6,HDFC BANK LIMITED,Sultanpur,Uttar Pradesh,417,Shaheed Diwakar Fiilling Station (AGOPT2046B),Madhavpur Chhatauna Sultanpur,236.2868772,Doubtful II,43798,Suit,,Santosh Tiwari
6,HDFC BANK LIMITED,Chennai,Tamil Nadu,418,Sabari Vasan Hardware Store,"881/5 M T H Road Padi Chennai,Tamil
Nadu,India",571.2753815,Doubtful II,43798,Suit,,Mr Ponsingh .N,,
6,HDFC BANK LIMITED,Gujarat,Gujarat,419,Supreme Freightway Carriers (AGIPA7669M),"513,5th Floor, P B Parekh Tower, Opp Diwan Ballubhai School, Kankaria, Ahmedabad-380022.",367.0974091,Doubtful II,43782,Suit,,Deepak Satish Agrawal
6,HDFC BANK LIMITED,Gujarat,Gujarat,420,Tectone Motors Pvt Ltd,"Aspen Honda, Sankalp Building, Next to Bankers Heart Institute, O.P. Road, Vadodara-390020.",349.5891628,Doubtful III,43797,Suit,,Kuren Amin,,Ikshit Amin
6,HDFC BANK LIMITED,Gurugram,Delhi,421,Xecute Hr Solutions Pvt Ltd (AAACX0744P),"Plot No.18, Office No.205, First Floor, Vinayak Complex, Veer Savarkar Block, Shakarpur, Delhi - 110092",363.550469,Loss Assets,43793,Suit,,Sathi Mitra,1914997,Koustav Mitra,2465171
6,HDFC BANK LIMITED,Punjab,Punjab,422,BEDI AUTOWINGS LLP,130 Sector 12 Ranjit Nagar Kharar Mohali Punjab 140301,209.8901913,Doubtful III,43814,Suit,,Sucharu Bedi,,Tamana Pujar
6,HDFC BANK LIMITED,SIRHIND ROAD - PATIALA,Punjab,423,Shree Balaji Enterprises (CWBPS0291L),"Shop No 14, Phase I, Near Shiv Mandir Road, New Grain Market, Sirhind Road, Patiala 147001",245.663706,Doubtful II,43828,Suit,,Mr Bhawesh Kumar Singla
6,HDFC BANK LIMITED,Gujarat,Gujarat,424,Ravji Velji And Co (AENPT6558H),"B-13, Siddhivinayk Duplex Besides, Besides Vrajvihar Society, Naroda, Ahmedabad-382330",2080.689545,Doubtful II,43826,Suit,,Jayantilal Thakker
6,HDFC BANK LIMITED,"Green Park, New Delhi",DELHI,425,Vdoit 4U,"F-124, GROUND FLOOR, MOHAMAD PUR, BEHIND BHICAIJI CAMA PLACE, NEW DELHI DL 110066",323.1306417,Doubtful II,43803,Suit,,VIKAS SUDA,3006276,SHERRY SUDA,3006279
6,HDFC BANK LIMITED,Balotra,Rajasthan,426,Shri Mahaveer Synthetics,"F-270 3rd Phase Industrial Area, Balotra, Rajasthan",501.6973151,Loss Assets,43289,Suit,,Leela Devi Chopra
6,HDFC BANK LIMITED,"Sriganga Nagar, Rajasthan",Rajasthan,427,Choudhary Brothers (Sriganganagar),"151 New Mandi Yard Sriganga Nagar , Rajasthan",1309.531787,Loss Assets,43409,Suit,,Aman Deep
6,HDFC BANK LIMITED,"Sriganga Nagar, Rajasthan",Rajasthan,428,Rai Singh Om Prakash,"12 B B Old Dhan Mandi Sadulsahar, Rajasthan",774.4532438,Loss Assets,43463,Suit,,OM PRAKASH TRAR
6,HDFC BANK LIMITED,"Sriganga Nagar, Rajasthan",Rajasthan,429,Choudhary Agro Foods,"3-H-16 Jawahar Nagar Sri Ganga Nagar, Rajasthan",444.1937601,Loss Assets,43463,Suit,,Sunita Choudhary
6,HDFC BANK LIMITED,Lucknow,Uttar Pradesh,430,Rahul Traders (AURPS8694M),"54 B , Shringar Nagar , Alambagh ,Lucknow",349.7190118,Doubtful II,43828,Suit,,Rahul Saxena,,Mahesh Chandra Saxena
6,HDFC BANK LIMITED,Nellore,Andhra pradesh,431,Pushkal Trading Co (AASFP0875G),"S.No.51/4, T.P Gudur Mandal, Mungaladoruvu Village,Nellore",434.0416612,Doubtful III,43859,Suit,,Menta Ramakrishna,,Menta Kavitha
6,HDFC BANK LIMITED,Nellore,Andhra pradesh,432,True Well E Pipe Industries (AESPM5062L),"S.No.51/4, T.P Gudur Mandal, Mungaladoruvu Village,Nellore",2619.313468,Doubtful II,43859,Suit,,Menta Ramakrishna
6,HDFC BANK LIMITED,Tamilnadu,Tamil Nadu,433,J K Industries (AWOPJ8605Q),"No 60, Krishna Nagar , Nellikuppam Road ,Guduvancherry, Near Guduvancherry Near Bus Stand, Chennai 603202",304.1623442,Doubtful II,43859,Suit,,Mr Jayakumar M.
6,HDFC BANK LIMITED,Gurgaon,New Delhi,434,ORION AUTOMOBILES PVT LTD,"AE-88, Shalimar Bagh, New Delhi, 110088",1893.118783,Doubtful III,43556,Suit,,Deepak kapoor,1738981,Rohit Chadha,7567321,Gurucharan Singh,1257694
6,HDFC BANK LIMITED,Delhi,Delhi,435,RAJ CARS INDIA PVT LTD,"HOUSE NO-31-B IDC, GURUGRAM Gurgaon 122002",817.5911571,Doubtful III,43626,Suit,,Gurcharan Singh,1257694,Ravinder Singh,3510066,Rohit Chadha,7567321
6,HDFC BANK LIMITED,Delhi,Delhi,436,Ambika Enterprises (Delhi),"3996-A, Naya Bazar, Delhi - 110 006",942.1868184,Doubtful III,43889,Suit,,Veena Goyal,,Ganga Devi Bansal
6,HDFC BANK LIMITED,Delhi,Delhi,437,R B Enterprises,"4064, Naya Bazar, Delhi - 110 006",4376.953936,Doubtful III,43889,Suit,,Avneet Goyal
6,HDFC BANK LIMITED,Bahraich,Uttar Pradesh,438,Jamoti Modern Industries,"Balrampur Road , Bahraich",880.4447888,Doubtful II,43889,Suit,,Sudha Tekriwal,,Monika Tekriwal
6,HDFC BANK LIMITED,Ambala,Haryana,439,Mahavir Rice And Dal Mills (AADFM9231G),Hissar Road Village Durkhara Ambala City Haryana 134003  (Near Prem Motors Petrol Pump),820.5335621,Doubtful III,43889,Suit,,Mr Dharam Pal Jain,,Mr Anil Jain,,Mr Mohinder Kumar Jain
6,HDFC BANK LIMITED,LYONS RANGE,West Bengal,440,Swabhiman Industries (AERPA7808P),"13 PRAFULLA SARKAR STREET,KOLKATA 700072",822.4030907,Doubtful II,43864,Suit,,Deepak Agarwal
6,HDFC BANK LIMITED,Nagpur,MAHARASHTRA,441,Anand Mine Tools Pvt Ltd,"PLOT NO. F-27, TATYA TOPE NAGAR, BEHIND GANESH MANDIR, Nagpur",2318.540249,Loss,43738,Suit,,TUKARAM MAHADEORAO JAWADE,,HEMANT TUKARAMJI JAWADE
6,HDFC BANK LIMITED,"ULHASNAGAR,",MAHARASHTRA,442,RITU AUTOMOBILES PVT LTD,"I, MAINAS TOWER, POWAI CHOWK, ULHASNAGAR, MAHARASHTRA",1865.357718,Doubtful II,43759,Suit,,RITIKA MANOJ LALWANI,,MANOJ J LALWANI
6,HDFC BANK LIMITED,Nagpur,MAHARASHTRA,443,Anand Technomarketing Pvt Ltd,"PLOT NO. F-27, TATYA TOPE NAGAR, BEHIND GANESH MANDIR, Nagpur",108.4127906,Doubtful II,43772,Suit,,HEMANT TUKARAMJI JAWADE,,TUKARAM MAHADEORAO JAWADE,,ANITA HEMANT JAWADE
6,HDFC BANK LIMITED,Achalpur,MAHARASHTRA,444,SANJAY CONSTRUCTION INDUSTRIES,"M/s. Sanjay Construction Industries, Sadar Bazar, Paratwada, Tahsil- Achalpur, Dist. Amravati – 444805",478.4107128,Doubtful II,43891,Suit,,RajendraKumar S Bardia,,Rishabhkumar S Bardia,,Sanjay Vijaychand Bardia
6,HDFC BANK LIMITED,Patpar Ganj Dehi,Uttar Pradesh,445,Jalan Transport Pvt Ltd (AACCJ1825D),"A-28, Transport Nagar , Gorakpur Uttar Pradesh 273001",364.6481082,Doubtful III,43530,Suit,,Subal Jalan,,Chandra Kumar Jalan
6,HDFC BANK LIMITED,Karnal,Haryana,446,Sach Telecom Pvt Ltd,"Sco-9-10 Sanjeev Hospital Market Railway Road, Karnal",2919.250597,Doubtful III,43592,Suit,,Rajesh Kumar Pubreja,,Parveen Kumar Pubreja
6,HDFC BANK LIMITED,Rajkot,Gujarat,447,Shree Shiv Enterprise,"Shree Paramdham Ind Estate Sahajanand Estate, Plot No 5 Nr Murlidhar Waybridge Rajkot,Gujarat,India",375.0012823,Doubtful III,43645,Suit,,Bimal Virjibhai Shingala,,Niravbhai Virjibhai Shingala,,Vitthalbhai Hansarajbhai Khunt
6,HDFC BANK LIMITED,Navrangpura,Gujarat,448,Siddheswari Motors,"B-101, Shakti Enclave, Judges Bunglow Road, Bodakdev, Ahmedabad-380054.",155.0085919,Doubtful II,43736,Suit,,Dharmendrakumar Joitram Prajapati,,Rameshbhai Bababhai Prajapati,,Neetaben Rameshbhai Prajapati
6,HDFC BANK LIMITED,Tamilnadu,Tamil Nadu,449,T2T Designs Pvt Ltd (AADCT7487L),"AA-47/1, 2ND FLOOR,2ND STREET,11 TH MAIN ROAD,ANNA NAGAR,CHENNAI-40",721.840258,Doubtful II,43889,Suit,,Dhilishath Hassan Sekar,,Sekar A M,,B Ramesh,,Barun Kumar Patro,,Shiju Pareed N R,,S Rajaganesh
6,HDFC BANK LIMITED,Maduranthakam,Tamil Nadu,450,P M Enterprises (Kancheepuram),"No 12 G S T Road Medavalampettai Karunguzhi
Maduranthakam Kanchipuram,Tamil Nadu,India",316.101776,Doubtful II,43889,Suit,,John Paul J,,Jeyanthi M
6,HDFC BANK LIMITED,"M G Road, Mangalore",Karnataka,451,BLUE WATER FOODS AND EXPORTS PVT LTD,"281/282, Industrial Area, Baikampady, Mangalore 575011",6418.364033,Loss Assets,43817,Suit,,MEMANA RAMACHANDRA SREENIVASABHAT,8005,NARAYANAN U J NAMBOORI,6805226,VEENA,7724473
6,HDFC BANK LIMITED,Chennai,Tamil Nadu,452,SUNSHINE INFRA ENGINEERS INDIA PVT LTD,"40F-2, First Floor, Thiru Sennari Manor, Pantheon Road,Egmore, Chennai-6000008",1006.69343,Doubtful III,43402,Suit,,Mrs. Gudipalli Laliha Kumar,1958675,Suresh Makkena,5112618,Kunduru Nagarjuna Reddy,3593956,Naga Ekambareswara Rao Challa,5112617,Ravi Siva Reddy,5322369
6,HDFC BANK LIMITED,"Kukatpally, Hyderabnad",Telangana,453,Dulichand Musadilal Oil Mill,"plot no. 119/A, S.MNo. 48, IDA, Kattedan, Rajendra Nagar Mandal, Hyderabad-500077",1487.290726,Doubtful III,43555,Suit,,Manoj Kumar Agarwal
6,HDFC BANK LIMITED,Behala,West Bengal,454,BASU AND CO ROAD CONTRACTORS PVT LTD,"278A,SANTOSH ROY ROAD KAMAL BHABAN,GROUND FLOOR KOLKATA Kolkata WB 700008",1148.516335,Doubtful II,43920,Suit,,PRADIP KUMAR BASU,1674696,SWAPNA BASU,1758682
6,HDFC BANK LIMITED,Nabha,Punjab,455,Durga Board & Paper Industries Ltd,"Village Dhingi, Malerkotla Road, Tehsil Nabha, Distt Patiala",353.9430353,Loss Assets,41880,Suit,,Sh. Rakesh Kumar,955727,Sh. Varinder Kumar,312192,Sh. Abheesht Goel,3140862,Sh. Manish Goel,5174708,Sh. Ajay Goel,1007163
6,HDFC BANK LIMITED,Delhi,Delhi,456,Need Telecommunication,"Shop No. 27, CSC-12, DDA Market, Block D-1, Sector 16, Rohini, Delhi - 85",951.0068948,Doubtful II,43798,Suit,,Jai Pal Singh
6,HDFC BANK LIMITED,Rajouri Garden,Delhi,457,Senor Exports,"WZ-230, Inder Puri , New Delhi",756.8491528,Doubtful III,43570,Suit,,Sharad Dhingra
6,HDFC BANK LIMITED,BHOPAL,MADHYA PRADESH,458,ASHVA REALINFRA PRIVATE LIMITED,"Khasra no. 20,21, Dovra Gondarmau, Gandhinagar, Bhopal, Madhya pradesh - 462036",160.8402781,Doubtful III,43310,Suit,,JAGDISH CHANDRAWANSHI,6949746,VINOD KUMAR,8062400
6,HDFC BANK LIMITED,Jalandhar,Punjab,459,Yogesh Printing Press (AAMPH7127B),"D-178, Focal Point Ext., Jalandhar",599.875394,Loss Assets,43106,Suit,,Sham Lal Handa (Prop)
6,HDFC BANK LIMITED,SILCHAR,ASSAM,460,Barak Powerline,"C/O BARAK POWERLINE,BRINDABAN SARANI TARAPUR,,SILCHAR,ASSAM-788003",202.8501874,Loss Assets,43094,Suit,,MRS. SUJATA NATH (Prop)
6,HDFC BANK LIMITED,Bhopal,Madhya Pradesh,461,Panda Technologies India Pvt Ltd,"D-2, Vidya vihar, Opp.Barkatullah University, Hoshangabad Road, Bhopal - 462026",1979.265685,Loss Assets,43006,Suit,,RAJENDRA NARAYAN PANDA,2116574,BHARTI PANDA,6385567
6,HDFC BANK LIMITED,Delhi,Delhi,462,Unique Infoways Pvt Ltd,"308 , 3rd Floor, Skylark Building, 60 , Nehru Place, New Delhi – 110019",3359.549936,Loss Assets,42856,Suit,,Mr. Vipul Jain  (DIR),1068041,Ms. Usha Jain  (DIR),1883910
6,HDFC BANK LIMITED,Green Park New Delhi,Delhi,463,International Traders (AABPT8585E),"1556, Ist floor, Deepak Mahal, Bhagirath Place, Delhi 110006",470.5806347,Loss Assets,42884,Suit,,Suresh Talwar (Prop)
6,HDFC BANK LIMITED,Katni,MADHYA PRADESH,464,Holaram Gokuldas,"Khaiber Line, Madhav Nagar, Katni,Madhyapradesh",403.0748089,Loss Assets,42856,Suit,,Jhaman Das Chattani (Prop)
6,HDFC BANK LIMITED,Kolkata,West Bengal,465,Jai Balaji Corporation,"76/H/4, Dr. Suresh Chandra Banerjee Road, Near Raagini Cinema, Kolkata – 700 010.",764.60753,Loss Assets,42580,Suit,,Umesh Barech (Proprietor)
6,HDFC BANK LIMITED,"Janpath, Delhi",Delhi,466,Industrial Progressive (I) Ltd,"23 Oil Market Dhan Mandi Udayapur, Udaipur,Rajasthan,India",3417.768022,Loss Assets,42550,Suit,,DAVINDER KUMAR DHAWAN,1350218,RAMESH KUMAR JAIN,3132447,RAJ SINGH,3498135
6,HDFC BANK LIMITED,Mandi Gobindgarh,Punjab,467,Singla Ferro Alloys Pvt Limited,"Village Majri Mishri Wali, Mandi Gobindgarh, Punjab",2060.769117,Loss Assets,42519,Suit,,Jaideep Singla,918555,Inder Dass,1830005
6,HDFC BANK LIMITED,Amritsar,Punjab,468,Preet Trading Co (AAXPK5044R),"Grain Market, Bhagtanwal, Amritsar",221.0488022,Loss Assets,42428,Suit,,Rajnish Kumar (Prop)
6,HDFC BANK LIMITED,"Agartala,",Tripura,469,B B Agency,"Gangail Road, Near Das Patty,  Agartala, Tripura (W) – 799001",666.5587667,Loss Assets,41972,Suit,,"Smt. Bibha Banik,"
6,HDFC BANK LIMITED,"Agartala,",Tripura,470,S K Banik & Sons,"Gangail Road, Near Das Patty,  Agartala, Tripura (W) – 799001",636.2753443,Loss Assets,41972,Suit,,Mr. Prabir Kumar Banik (since deceased
6,HDFC BANK LIMITED,"Mandi Gobindgarh, Distt Fatehgarh Sahib",Punjab,471,Bhushan Agro & Allied Industries,"Amloh Road, Mandi Gobindgarh, Distt Fatehgarh Sahib",833.4627971,Loss Assets,41265,Suit,,Parveen Kumar (Partner)
6,HDFC BANK LIMITED,Ratanagiri,Maharashtra,472,Paranjape Cashew Products (AREPP8678G),"H. No. 1749. At Post.Kondsar, Adivare, Tal. Rajapur, District Ratanagiri",170.9576387,Loss Assets,43229,Suit,,Mrs. Samruddhi Hrushikesh Paranjape
6,HDFC BANK LIMITED,Cuttack,Orissa,473,Tarun Trading Co (AENPM9268H),"H No-103/A,Banka Bazar
Chandni Chowk,Cuttack
Odisha ,Cuttack,Orissa,India",905.015869,Doubtful III,44043,Suit,,Tarun Kumar Modi
6,HDFC BANK LIMITED,Delhi,Delhi,474,Charming Apparels Pvt Ltd,"402-405 , 1st Floor, Opposite Kucha Mahajani Main Road , Chandni Chowk , Delhi – 110006.",1046.52939,Loss Assets,02.07.2017,Suit,,RAHUL JAIN (DIR),1578330,ATUL JAIN (DIR),1869216
6,HDFC BANK LIMITED,Gurgaon,Haryana,475,RAVI MOHAN HARJAI,"House No. 1002, Tower G, Sunheights, Golf Course Road, Sector 54 Chakarpur, Gurgaon (Haryana) – 122002",494,Loss Assets,43531,Suit,,Ravi Mohan Harjai
6,HDFC BANK LIMITED,Delhi,Delhi,476,RAIN AUTOMOTIVE INDIA PVT LTD,1187 / 7 NAI WALLA KAROL BAGH NEW DELHI DL 110005 IN,360.3083578,Doubtful III,43518,Suit,,GIRISH BHATIA,440499,RAJESH KUMAR,7419168
6,HDFC BANK LIMITED,Calicut,Kerala,477,KMS AUTOMOTIVES,"KMS Automotives , NH 66 , Near KTC Honda Service Centre , Koyilandy , Calicut 673305",111.2376296,Doubtful II,44104,Suit,,Danish Hamza  V,,Kunhi Moidu C P,,Naseema V
6,HDFC BANK LIMITED,Lucknow,Uttar Pradesh,478,Mahakaal Enterprises (FNKPS7810G),"123/3, Maharishi Nagar, IIM Road, Raipur Sitapur Road Lucknow",202.6900677,Loss Assets,43614,Suit,,Ishita Singh,,Sadhana Singh,,Yash Vikram Singh
6,HDFC BANK LIMITED,Basti,Uttar Pradesh,479,NEW INDIA MERCHANT,"Didoha Pachpedia Road, Purani Basti, District- Basti Uttar Pradesh - 272001",268.2030717,Doubtful II,44091,Suit,,Aftab Khan,,Kamlawati Rai
6,HDFC BANK LIMITED,Tadepalligudam,Andhra Pradesh,480,Sri Srinivasa Traders (Tadepalligudem),"M/s Sri Srinivasa Traders, D.No.2-6-2, Jubilee Road,Near Railway Station, Tadepalligudam, Andhra Pradesh – 534101",537.6885365,Doubtful II,44083,Suit,,M/s Sri Srinivasa Traders,,EETHAKOTA KONDA BABU,,EETHAKOTA HEMA VENKATA SURESH
6,HDFC BANK LIMITED,West Bengal,West Bengal,481,AUSTIN DISTRIBUTORS PRIVATE LIMITED,"19A, Jawaharlal Nehru Road, Kol-87",276.4309927,Doubtful II,44117,Suit,,Sanjay Kumar Patodia,431254,Kunal Patodia,2921821
6,HDFC BANK LIMITED,Malkapur,Maharashtra,482,Potdar Jewellers (AADPW6820F),"Potdar Jewellers, Buldhana Road, Near radhey Hotel, Malkapur 443101",216.1111792,Loss Assets,43159,Suit,,Prakash Wankhede
6,HDFC BANK LIMITED,Delhi,Delhi,483,Champion Computers Pvt Ltd,"Basement & Ground Floor, No. 188, DSIDC Shed New Okhla Industrial Area, Phase - 1, New Delhi - 110020",2658.190305,Loss,43828,Suit,,Kanwal Deep Singh,7970938,Kapil Wadhwa,153896
6,HDFC BANK LIMITED,Bhavnagar,Gujarat,484,Nimbus International Pvt Ltd,"302 Siddhi Vinayak Complex,Waghawadi Road, Bhavnagar,            Gujarat - 364002",3014.976232,Loss Assets,42490,Suit,,Mr. Hiranya Umakantbhai Desai,1939336,Mrs. Dipika Hiranya Desai,1918934
6,HDFC BANK LIMITED,Bhavnagar,Gujarat,485,Accost Impex Pvt Ltd,"M/s Accost Impex Pvt Ltd. G-7 & 8, Saishila Complex, Near DSP Office Navapaper, Bhavnagar - 364 001.",1922.376589,Loss Assets,42490,Suit,,Mr. Hiranya Umakantbhai Desai,1939336,Mrs. Dipika Hiranya Desai,1918934
6,HDFC BANK LIMITED,Mahuva,Gujarat,486,Shree Ram Packaging,"Parthbhai Ishwalal Chotai Survey No. 56/P, Near Nav Pool, At Umniyavadar Mahuva, Mahuva, Gujarat - 364290",182.7888401,Loss Assets,42550,Suit,,Parthbhai Ishwarlal Chotai (Prop)
6,HDFC BANK LIMITED,Rajkot,Gujarat,487,Giriraj Cotex Pvt Ltd,S. NO. 172/P GADHADIA SILLEGE GADHADIA ROAD JASDAN TALUKA RAJKOT GJ 360050 IN,1276.018808,Loss Assets,42703,Suit,,Bharatbhai Ravatbhai Vala (Director),430736,Mahavirsinh Ravatbhai vala (Director),430723
6,HDFC BANK LIMITED,Rajkot,Gujarat,488,Neet Sea Foods,"3 Cross Road Market M G Road, Porbandar,Gujarat, India",173.196281,Loss Assets,42703,Suit,,Devang Kishorbhai Davda (Proprietor)
6,HDFC BANK LIMITED,Amreli,Gujarat,489,Ram Gining And Presing Fectory,"At Mota Mandvada Bagasara Amreli, Gujarat,India",211.7706142,Loss Assets,42794,Suit,,Shambhubhai Devrajbhai Savkiya (Partner),,Bhaveshbhai Chandubhai Savkiya (Partner),,Jitendrabhai Nathalal Polra (Partner),,Vijaybhai Madhubhai Savkiya (Partner)
6,HDFC BANK LIMITED,Bhavnagar,Gujarat,490,Maun-Sat Ferro Alloys Pvt Ltd,"334-335,Madhav Hill Waghawadi Road, Bhavnagar,Gujarat,India",1064.046698,Loss Assets,43035,Suit,,KETAN CHINUBHAI SHAH (DIR),3445421,GAURANGI KETAN SHAH (DIR),2752641
6,HDFC BANK LIMITED,Bhavnagar,Gujarat,491,Maun-Sat Ispat Pvt Ltd,"334-335,Madhav Hill Waghawadi Road, Bhavnagar,Gujarat,India",597.2072246,Loss Assets,43037,Suit,,KETAN CHINUBHAI SHAH (DIR),3445421,GAURANGI KETAN SHAH (DIR),2752641
6,HDFC BANK LIMITED,Gandhidham,Gujarat,492,Shreejee Logistics Pvt Ltd,"213, SUNDER PARK, PLOT NO.95, 1ST FLOOR, GANDHIDHAM GUJARAT 370201 INDIA",617.067804,Loss Assets,43068,Suit,,KARUNAKAR KRISHNAIYA  SHETTY (Dir),922907,MANOHAR KARUNAKAR SHETTY (Dir),923068,SUMA SATISH SHETTY,,LEELA KARUNAKAR SHETTY,,SARITA MANOHAR SHETTY,,SATISH SUNDER SHETTY
6,HDFC BANK LIMITED,Junagadh,Gujarat,493,Raja Electric Stores (ABMPR5211P),"Panch Hatdi Chowk Kunbharwada Naka, Junagadh",171.5129168,Loss Assets,43221,Suit,,Nitinkumar Natvarlal Raja
6,HDFC BANK LIMITED,Bhavnagar,Gujarat,494,Harsh Enterprise (Rajkot),"B.G. 6, Leela Efcee, Nr. Akhsharwadi, Waghawadi Road, Bhavnagar",1028.388686,Loss Assets,43280,Suit,,Divyang Shah
6,HDFC BANK LIMITED,Rajkot,Gujarat,495,J B Enterprise (ACRPL4323N),"Sadguru Jyot Complex 29 Ranchhodnagar, Society First Floor Block No 101 Pedak Road, Rajkot,Gujarat,India",268.0221163,Doubtful III,43645,Suit,,Rajeshbhai Dineshbhai Limbasiya,,Sonal Rajeshbhai Limbasiya
6,HDFC BANK LIMITED,Gondal,Gujarat,496,Om Enterprise (AADFO1948E),"Nr.Torento Cement, Jamwadi, Go ndal, Rajkot",270.4379771,Doubtful II,43706,Suit,,Ashishbhai Dhirajlal Bavisiya,,Geetaben Ashishbhai Bavisiya,,Ghanshyambhai Dhirajlal Bavisiya
6,HDFC BANK LIMITED,Moradabad,Uttar Pradesh,497,EMJEE Foods,"129 Jan Kalayan Lajpat Nagar
Moradabad",693.286673,Doubtful II,43736,Suit,,Anshul Aggarwal,,,
6,HDFC BANK LIMITED,Amritsar,Punjab,498,Shree Ganesh Textile Mills (AACFS8132P),Kashmir Road Verka Amritsar,114.6321382,Loss Assets,43206,Suit,,Raj Kumar Sharma,,Avinash Sharma
6,HDFC BANK LIMITED,Gorakhpur,Uttar Pradesh,499,Kansal And Company (AQNPA7438D),"K.B Colony, Sumer Sagar, Gorakhpur",217.2391438,Doubtful II,43767,Suit,,Vikas Agarwal
6,HDFC BANK LIMITED,Delhi,Delhi,500,Beanie Bugs Retail Pvt Ltd (AAGCB9107Q),"AW-348, Sanjay Gandhi Transport Nagar, Delhi 110042",153.9223712,Doubtful II,43889,Suit,,SANGAT SINGH,7609455,HIMANSHU GIRDHAR,6409403
6,HDFC BANK LIMITED,Delhi,Delhi,501,Hiteshi Enterprises (APCPP0932K),"3rd Floor, Vardhman Tower, Dwarka, Sector-7, New Delhi-110075",1132.050588,Loss Assets,44285,Suit,,Ms. Hiteshi Prakasher
6,HDFC BANK LIMITED,Bhulabhai Desai Road,Maharashtra,502,Urbanarch Sysfab Pvt Ltd (AABCU5638E),"4/967, Sky Scraper, Bhulabhai Desai Road, Cumballa Hill, Mumbai - 400026",175.2467643,Doubtful II,44070,Suit,,Vinay Baldev Khanna,3570817,Aarti Vinay Khanna,6572901,Poornima Sharad Aggarwal
6,HDFC BANK LIMITED,Worli-Sandoz House,Maharashtra,503,A M Automotive,"Diagonally, Opp. Four Seasons Hotel, Jijamata Nagar, Dr. E. Moses Road, Worli, Mumbai 400018",183.6604922,Loss Assets,44159,Suit,,Faisal Nisar Ahmed,,Anees Nisar Ahmed
6,HDFC BANK LIMITED,RS Pura Jammu,Jammu & Kashmir,504,Ashoka Traders (Jammu),Chack Aslam R.S .Pura Jammu,190.7297436,Doubtful III,43889,Suit,,Sonu Gupta
6,HDFC BANK LIMITED,Rohtak,Haryana,505,Shiva Auto Products (AEKPD7248B),"225, Industrial Estate, Kutana, Hisar Road,
Rohtak – 124001",146.483461,Doubtful II,43951,Suit,,Surinder Singh Dangi,,,
6,HDFC BANK LIMITED,Gokak,Karnataka,506,A R Jain Cotton Company (ABAFA0477G),"Shop no. 2, APMC 1st Gate,
Behind PLD Bank, Gokak – 591307",161.430556,Doubtful II,44043,Suit,,Akshay Rajendra Jain,,Rajendra Jain,,Parmila Jain,,Sushila Jain
6,HDFC BANK LIMITED,Firozabad,Uttar Pradesh,507,Bansal Trading Company (Firozabad),"9 , Old Gatta Mandi , Firozabad",143.8556632,Doubtful III,43859,Suit,,Gopal Bansal,,Munnal Lal Agarwal
6,HDFC BANK LIMITED,Firozabad,Uttar Pradesh,508,Dau Dayal Munnalal,"Shop no. 7-B, Naveen Mandi Samiti, Plot no. 915, Corporation no. 8/1, Mohalla Galla Mandi Firozabad -283203",138.3445677,Doubtful III,43859,Suit,,Munna Lal Agarwal,,Padmavati Agarwal
6,HDFC BANK LIMITED,Firozabad,Uttar Pradesh,509,Sanjeev Kumar & Brothers,"9 , Old Gatta Mandi , Firozabad",167.2581926,Doubtful III,43859,Suit,,Sanjeev Kumar Bansal,,Roli Bansal
6,HDFC BANK LIMITED,Barabanki,Uttar Pradesh,510,Bharat Trading Company (AVYPM9070F),"Naubasta, Nainamau, Nawabganj, Barabanki- 225001 (U.P.)",173.4589475,Doubtful II,43889,Suit,,Narendra Nath Maurya,,Smt. Dharmeshwari Maurya,,Smt. Kamini Maurya
6,HDFC BANK LIMITED,Ahmedabad,Gujarat,511,Hary Pack Pharma Pvt Ltd (AACCH0738F),"19/FF/1, Prakash Industrial Estate, Ritanagar,Vastral Road, Amraiwadi, Ahmedabad-380026.",140.0013779,Doubtful III,43553,Suit,,Vinita Nimeshkumar Agrawal,,Nimeshkumar Agrawal
6,HDFC BANK LIMITED,Ahmedabad,Gujarat,512,Aerochem India (ABCFA1954G),"19, Radhe Shyam Industrial Estate, Opp. Gumm S P Ring Road, Odhav, Ahmedabd-382415",193.1664818,Doubtful II,43682,Suit,,Maheshbhai Jasmatbhai Langncha,,Nareshbhai Jasmatbhai Langncha
6,HDFC BANK LIMITED,Ahmedabad,Gujarat,513,Sajan Textile,"Mandir Ni Khadki, B/h Sethia Building, Kalupur Kot Ni Rang, Ahmedabad-380001.",136.9489982,Doubtful II,43767,Suit,,Jasdishbhai Kripaldas Makhija
6,HDFC BANK LIMITED,Gandhidham,Gujarat,514,Yash Shipping Services (AABFY8302N),"Office No.209, 210,211 Trade Center Plot No. 46, Sector-08, Gandhdham, Gujarat",148.3915864,Doubtful II,44162,Suit,,Sahib Ram,,Rashmiben Ramnikbhai Rathod,,Ramnik Lakman Rathod
6,HDFC BANK LIMITED,Delhi,Delhi,515,JKM AUTO PRIVATE LIMITED,"B-102, Lajpat Nagar-1, New Delhi -110024",248.6944309,Doubtful III,41411,Suit,,RAJ RANI NAGPAL,740818,PANKAJ NAGPAL,740914,POOJA NAGPAL,740968
6,HDFC BANK LIMITED,Gurugram,Haryana,516,Zenica Cars India Pvt Ltd,"Orchid Centre, Sector 53, Golf Course Road, Gurugram -122001",9556.755692,Loss Assets,43313,Suit,,RASHPAL SINGH TODD,1724628,MANDHIR SINGH TODD,1738030
6,HDFC BANK LIMITED,Jaipur,Rajasthan,517,Lalchand Food Products Pvt Ltd (AAACL7176R),"F-101,RIICO INDUSTRIAL AREA, BASSI DISTT JAIPUR - 303201",2096.473607,Doubtful II,44164,Suit,,SAROJ RANI,1351042,ROMIL MADAN,6436688,GARIMA MADAN,7176008
6,HDFC BANK LIMITED,DELHI,DELHI,518,Amcon Engineers Pvt Ltd,"306, RAJA HOUSE 30-31 NEHRU PLACE NEW DELHI South Delhi ",281.2720181,Doubtful III,42915,Suit,,MUKESH KUMAR LAAD,1936407,ARUNA LAAD,5321654
6,HDFC BANK LIMITED,DELHI,DELHI,519,AMCON ENGINEERS,"308,Ashok Bhawan,93, Nehru Place,",1016.17402,Doubtful III,42915,Suit,,MUKESH KUMAR LAAD,1936407
6,HDFC BANK LIMITED,Gwalior,Madhya Pradesh,520,KESHAV UPADHYAY,"20 ,Lacmibai Colony ,Padav ,Phool Bag ,Gwalior ,Madhya Pradesh",267.6349567,Doubtful III,42703,Suit,,Keshav Upadhyay,,Yogesh Upadhyay
6,HDFC BANK LIMITED,Ganj Basoda,Madhya Pradesh,521,Dulichand Chandmal,"Ganj Basoda ,Distt.-Vidisha ,Madhya Pradesh",208.5252287,Doubtful III,43675,Suit,,Shashi Jain,,Sumit Jain,,Amit Jain
6,HDFC BANK LIMITED,Ganj Basoda,Madhya Pradesh,522,D C Agro Industries,"Ganj Basoda ,Distt.-Vidisha ,Madhya Pradesh",144.7242784,Loss,43706,Suit,,Amit Kumar Jain,,Sumit Jain,,Shashi Jain
6,HDFC BANK LIMITED,Junagadh,Gujarat,523,Gajanan Trading Co (AGQPD8537M),"Shop No-27, Sardar Patel Marketing Yard, Dolatpara, Rajkot Road, Junagadh",154.6619145,Doubtful III,43606,Suit,,Sureshkumar Domadiya,,Shitalben Sureshbhai Domadiya
6,HDFC BANK LIMITED,Batwa,Gujarat,524,Shree Harshad Ginn Mill Co,"Nr.Railway Station, Bantwa Manavadar, Gujarat-360550",335.1960542,Doubtful II,44164,Suit,,Parabatbhai Abhabhai Tarkhala,,Jivabhai Abhabhai Tarkhala,,Nagajan Abhabhai Tarkhala,,Bhanubhai Abhabhai Tarkhala
6,HDFC BANK LIMITED,Mumbai,Maharashtra,525,Bawree Fashions Pvt Ltd,T6 VAISHALI SHOPPING CENTRES V ROAD MALAD WEST MUMBAI MH 400064 ,204.84504,Loss Assets,43125,Suit,,DHIREN RAGHAVJI BHEDA,,MITTAL DHIREN BHEDA
6,HDFC BANK LIMITED,SHANKARSHETH ROAD BRANCH,Maharashtra,526,RAJPAL AUTO LOUNGE,"SR, NO 15/A,OLDMUMBAI PUNE HIGHWAY,WAKDEWADI, SHIVAJINAGAR PUNE 411003",144.7926629,Doubtful III,42909,Suit,,RAKESH RAJPAL
6,HDFC BANK LIMITED,Aizawl,Mizoram,527,KHAIA AND SONS,"KHAIA AND SONS, Vaivakawan , Aizawl, Mizoram- 796009",299.1337011,Loss Assets,42388,Suit,,H.Vanlalhruaia
6,HDFC BANK LIMITED,Jalandhar,Punjab,528,Preet Enterprises (AFRPS2975Q),"Shop No 8 Shastri Market Ladowali Road Jalandhar, Punjab",148.54777,Doubtful II,43854,Suit,,Gurpreet Singh
6,HDFC BANK LIMITED,"HDFC Bank Ltd. Trade View, Lower Parel Mumbai",Delhi,529,LIBRA AUTOMOTIVES PVT LTD,"C-160, Naraina Industrial Area, Phase 1",210.5369238,Doubtful III,43465,Suit,,Praveen Kaur,1580178,Manreet Singh,782644
6,HDFC BANK LIMITED,Rajouri Garden,Delhi,530,DASMESH INFRA SOLUTIONS PVT LTD,"HOUSE NO. 108, 1ST FLOOR, GAGAN VIHAR, DELHI-110092",1721.471481,Doubtful III,42428,Suit,,Anil Kumar Chaturvedi,2303114,Lakhvinder Singh,2299006
6,HDFC BANK LIMITED,Surat,Gujarat,531,Battiwala Textiles,"Plot No 321,Govind Nagar Industrial Estate,Udhna Yard,Limbayat ,Surat-394210",198.5908569,Doubtful III,43601,Suit,,Mohmedarif Mohmedkasseem,,Mahmad Ibrahim Bhattiwala,,Mohamadfarid M Battiwala
6,HDFC BANK LIMITED,Mumbai,Maharashtra,532,SILVERLINE MOTORS PVT LTD,"Chambaghat, Solan,				
	Himachal Pradesh-173213",124.5747739,Doubtful III,38831,Suit,,Rajesh Sharma,,Kartik Sharma,
6,HDFC BANK LIMITED,"Plot No 120, Patpar Ganj Industrial Area Delhi 110092",Delhi,533,Delhi Kiryana Traders (Delhi),"Shop No 1, 15,Sarjoni Naidu Park , Shastri Nagar , Delhi",204.4046124,Doubtful III,43736,Suit,,Sandhya Gupta
6,HDFC BANK LIMITED,"Plot No 120, Patpar Ganj Industrial Area Delhi 110092",Delhi,534,Tiya Traders (Delhi),"23 / 23, Sarojani Naidu Park ,  Shastri Nagar ,  Delhi",203.2010061,Doubtful III,43736,Suit,,Mukesh Gupta
6,HDFC BANK LIMITED,Durgapur,West Bengal,535,Neogie Auto Pvt Ltd,"South NH 2 City Centre Phase-2, Durgapur-713216",319.3550718,Doubtful III,41369,Suit,,Debapratim Neogie,690398,Dipti Neogie,6618701
6,HDFC BANK LIMITED,Kolkata,West Bengal,536,Greenage Food Products Ltd,"11 Govt Place East,1st Floor, Kolkata-700069",696,Loss Assets,39993,Suit,,Dipankar Basu,959988,Rajiv Pal,3518009,Raghu Jaya Shetty,5191301
6,HDFC BANK LIMITED,Kolkata,West Bengal,537,Sunrise Agro Trading,"12 Govt Place East,1st Floor, Kolkata-700069",956,Loss Assets,40034,Suit,,Dipankar Basu
6,HDFC BANK LIMITED,Kolkata,West Bengal,538,Kamala Tea Compny,"12 Govt Place East,1st Floor, Kolkata-700069",793,Loss Assets,40034,Suit,,Dipankar Basu
6,HDFC BANK LIMITED,Kolkata,West Bengal,539,Matara Traders & Finance Pvt Ltd,"12 Govt Place East,1st Floor, Kolkata-700069",901,Loss Assets,39993,Suit,,Dipankar Basu
6,HDFC BANK LIMITED,Kolkata,West Bengal,540,Uluberia Auto Centre,"Bazarpara, Jagadishpur, Uluberia, Howrah-711315",160.5982684,Loss Assets,43249,Suit,,SK Mijanur Rahaman
6,HDFC BANK LIMITED,Kolkata,West Bengal,541,Krishna Packaging (ACQPC9079H),"147 Nilgunj Road, Belgharia, Kolkata-700056",157.4633778,Doubtful III,43773,Suit,,Rajendra Churiwala
6,HDFC BANK LIMITED,Cuttack,Orissa,542,Sibaya Bhandar (BSZPS2168H),"HNO 205,MALGODOWN CU-CE CUTTACK CLG,SQUARE MALGODOWN 25 MALGODOWN ,CUTTACK 753004",176.6405939,Doubtful III,43614,Suit,,SANTOSH KUMAR SWAIN
6,HDFC BANK LIMITED,Malad (west),Maharashtra,543,Omsai Autoworld,"Chavmoorthy  Compound, Chincholi Bunder, Link Road, Mumbai 400 064",591.476874,Doubtful III,41264,Suit,,Gandadhar S Shetty,,Uday Krishnayaya Shetty
6,HDFC BANK LIMITED,I C Colony Borivali (w),Maharashtra,544,Umiya Fabrics (AAEHH4290P),"23/A-1 Dwarkesh Park, Sai Baba Nagar, Opp. Bhitiya School, Borivali - ( West) Mumbai - 400 092",158.9698896,Doubtful III,43494,Suit,,Hitesh Kumar Trivedi,,Jayshree Hitesh Trivedi
6,HDFC BANK LIMITED,Kurla Kamani,Maharashtra,545,Azure Design Studio (AIQPK6937J),"167/168 Sahakar Niwas, 20 Tardeo Road,",154.3628615,Doubtful III,43657,Suit,,Shishir Harish Kamdar
6,HDFC BANK LIMITED,Fort,Maharashtra,546,ARR MARITIME AND ALLIED SERVICES P LTD,"Offie No. 304, 305 3rd Floor, B Wing, Hernes Atriumm, Plot No.-5, sector II CBD Belapur, Navi Mumbai 400 614",370.5426513,Doubtful III,42764,Suit,,Venkataraman Radhakrishnan Iyer,,Mukund Prabhakar Pradhan,,Santosh Sukumar,,Anurag Sing
6,HDFC BANK LIMITED,Miyapur,Telangana,547,Prani Auto Plaza Private Limited,"Plot No 81 Aparna County
Habeez Pat Near Miyapar
Cross ,Hyderabad,Telangana",267.2103451,Doubtful III,42794,Suit,,T Jagadeswara Reddy,790452,P Achyutha,720082
6,HDFC BANK LIMITED,Jagitial,Telangana,548,Sri Ramana Book Depot,"7-1-132 Old Bus Stand
Jagitial,Karimnagar,Telangan
a",142.10617,Doubtful III,43576,Suit,,Pampatti Hari Krishna,,Pampatti Madhavi,
6,HDFC BANK LIMITED,Vishakhapatnam,Andhra Pradesh,549,Rjs Constructions,"Do No 38-30-74/F2 9th Lane
Sai Nagar
Marripalem,Visakhapatnam,A
ndhra Pradesh",169.3551235,Doubtful II,43706,Suit,,Ramesh Paidi,,Usha Kumari Paidi,
6,HDFC BANK LIMITED,Rayachoti,Andhra Pradesh,550,Sre New Mahalakshmi Decordicating Mill (AJIPB6644A),"Sre New Mahalakshmi
Decordicating Mill 1/65
Rayachoty Road
,Kadapa,Andhra Pradesh",185.7885846,Doubtful II,43683,Suit,,Bandi Subba Reddy,,Bandi Subba Reddy,,Prabhakar Reddy Bandi
6,HDFC BANK LIMITED,Mehdipatnam,Telangana,551,Ipdna Communications And Services Pvt Ltd (AADCI3323E),"H.No 9-2-481/8/A Pension
Pura Langar House
,Hyderabad,Telangana",585.0635906,Doubtful II,44164,Suit,,Mohammed Akbar Khan,,Faria Iftekar
6,HDFC BANK LIMITED,Pondicheryy,Tamil Nadu,552,Manakular Automobiles,"RS NO.49 NO.1 CUDDALORE MAIN RD,ARIYANKUPPAM ,PONDICHERRY",236.6341045,Doubtful III,42189,Suit,,D Janardhane
6,HDFC BANK LIMITED,Pondicheryy,Tamil Nadu,553,Rajarajan and Sons,"TD N0 136, Venkateswaran Nagar , Ariyur ,Villianur Coumune Pondicherry -605102",302.8663808,Doubtful III,41727,Suit,,K Rajarajan
6,HDFC BANK LIMITED,Nandanam,Tamil Nadu,554,DSC MOTORS PVT LTD,"399, Anna Salai, Nandanam Chennai, Tamilnadu - 600035",182.4054552,Doubtful III,43277,Suit,,D Selvakumar,,Ms Nikitha selvakumar
6,HDFC BANK LIMITED,Sivakasi,Tamil Nadu,555,SRI SCORPION RACERS P LTD,"293-C Viruthunagar Road , Thiruthangal Sivakasi  Tamilnadu",220.6581092,Doubtful III,42902,Suit,,Mr Balasubramaniam,7035652,Mr Shiva B,7037333
6,HDFC BANK LIMITED,Gurgaon,Delhi,556,Mackeral Oil Tools Pvt Ltd (AAJCM5276C),"322, First Floor, Chirag Delhi, New Delhi 110017 New Delhi South Delhi DL 110017",310.7162878,Loss Assets,44528,Suit,,PRABHAKAR LAXMIDHAR PATHAK,9440712,Indu Pathak,7986476
6,HDFC BANK LIMITED,Ludhiana,Punjab,557,Seerat Infrastructure India,"33-C, 1st Floor, C Block, BRS Nagar, Ludhiana",242.4008441,Doubtful III,42580,Suit,,Ravinder Kumar Sood
6,HDFC BANK LIMITED,Bathinda,Punjab,558,Deepak Kumar Jindal Contractore,"17250, Street No 1, Aggarwal Colony, Bathinda",174.0378905,Doubtful III,43280,Suit,,Deepak Kumar Jindal
6,HDFC BANK LIMITED,Ludhiana,Punjab,559,Guru Kripa Sales Corpn (AIJPK7662B),"Kanganwal Industrial Area Sua Road Near Azad Factory Ludhiana,",231.511203,Doubtful II,44164,Suit,,Parvinder Kumar
6,HDFC BANK LIMITED,Meerut,Uttar Pradesh,560,R N Goel & Sons Pvt Ltd,"B-26C C Colony, Opp Rana Pratap Bagh, Delhi-110002.",284.5939599,Doubtful II,44233,Suit,,Naresh Goel,878157,Mala Goel,5158768
6,HDFC BANK LIMITED,Kochi,Kerala,561,Manumax Lifestyle Furnitures (BNJPM4860K),"Manaveedu , 15/199b Near Aroor toll, Janatha Road , Kumbalam , Kochi",171.1148181,Doubtful II,44164,Suit,,Midhun MATHEW,,Mathew Prothasis
6,HDFC BANK LIMITED,Angamaly,Kerala,562,Sanjo Motors,"Areekkal Junction ,Karukutty Po ,",252.9856799,Doubtful III,43342,Suit,,Anil Thomas,,Kavitha  Paulose
6,HDFC BANK LIMITED,Alleppey,Kerala,563,VALLIYARA TRADING AND SERVICES PVT LTD,"Kongini Chudukadu , Iron Bridge PO , Alleppey",104.3623689,Doubtful III,43583,Suit,,Jijo C Valliyara,,Tino Joseph,,Jasmine Mathew
6,HDFC BANK LIMITED,Cochin,Kerala,564,INDIA TECH LTD,"Kelmers Complex , Sreekandath Road , Kochi 16",982.8715068,Doubtful III,41867,Suit,,George Vinci Thomas,,Thomas George
6,HDFC BANK LIMITED,Chamrajpet,Karnataka,565,Vimal Pharma,"New No. 72/1, Old No. 71/1,
Sri. Puttanna Chetty Road,
Chamrajpet,
BANGALORE-560 018.",335.2271423,Doubtful II,44286,Suit,,B Gautamchand Jain,,Kushal G Jain,
6,HDFC BANK LIMITED,Patna,Bihar,566,Jagannath Distributor,"K 140, Hanuman nagar,
Kankarbagh, Patna, Bihar-800020",134.004748,Doubtful III,43675,Suit,,Amit Kumar,
6,HDFC BANK LIMITED,Yamunanangar,Haryana,567,Yamuna Traders (Kurukshetra),Shop No 34 Anaj Mandi ,246.862235,Loss Assets,42825,Suit,,Dharminder Singh
6,HDFC BANK LIMITED,Patiala,Punjab,568,Guruji Feed Mills (AALFG5508L),New Anaj Mandi Village Dhamanheri Rajpura District Patiala ,165.6825322,Doubtful III,43555,Suit,,Nanda Lal Sharma,,Sunhash Chand Dahra,,Sukhjinder Singh
6,HDFC BANK LIMITED,Khanna,Punjab,569,Hukam Chand Tarsem Lal,7-B/3 New Grain Mrket Khanna Punjab 141401,185.6113,Doubtful III,43560,Suit,,Bharat Bhushan HUF
6,HDFC BANK LIMITED,Samana,Punjab,570,Padma Oil Industry (AARFP3984F),Toderpur Road Samana Punjab 147101,523.9075972,Doubtful II,44164,Suit,,Sonu Kumar Garg,,Ram Bhari GARG
6,HDFC BANK LIMITED,Cuttack,Orissa,571,Lynx Tradecom Pvt Ltd (AACCL2821K),"At-352/A,Monavilla Lane,
Ice Factory Road, 
Collage Square,
Cuttack Odisha,India Pin– 753003",318.039556,Doubtful II,44200,Suit,,Bijay Kawtia,,Ajay Kawtia,,Premlata Kawtia
6,HDFC BANK LIMITED,SHAIKPET,Telangana,572,A G S Management Services Pvt Ltd (AAJCA9715E),"D.No. 1/36-98 Contonment Park Paigh
Secunderabad, Secunderabad,Telangana,India",1820.671202,Doubtful II,44255,Suit,,SRI VENKATA RAMA MURTHY GARNIPUDI,3636706,NAGA SATYA VENKATA LAXMI GARNIPUDI,7234104,Lakshmi Kondeti
6,HDFC BANK LIMITED,Katni,Madhya Pradesh,573,Avng Manufacturing Pvt Ltd (AALCA4370K),"AVNG Manufacturing Pvt Ltd House No.818 ,Rajeev Gandhi Ward Sai Darbar Road ,Katni ,Madhya Pradesh",452.4239737,Doubtful II,44251,Suit,,AVNG Manufacturing Pvt Ltd,,Vijay Garodia,,Anitaben Vijay Garodia,,Girdhari Lal Goshwami,,Shree Minerals and Fuels,,Ansuiya Garodia
6,HDFC BANK LIMITED,DELHI,DELHI,574,Tirupati Coatings Pvt Ltd (AABCT4755B),"G - 208, 2ND FLOOR, SATYA SHANTI APPARTMENTS SECTOR - 13, ROHINI NEW DELHI DL 110085",1500.28785,Doubtful II,44286,Suit,,LALIT JAIN,556794,ANJALI JAIN,2366539,SANYAM JAIN,8016962
6,HDFC BANK LIMITED,Bareilly,Uttar Pradesh,575,Vasu Trading Co (ACXPA3560E),"35 K 7 A, Civil Lines, Rampur Garden Bareilly, U.P-243001",506.6456296,Doubtful II,44225,Suit,,Praveen Kumar Agarwal
6,HDFC BANK LIMITED,DAIRY FARM ROAD,Telangana,576,Denimhub Lifestyle Pvt Ltd (AAFCD9428D),"Plot No 21/A Ida Phase 2 Cherlapally Medchal
Hyderabad,Telangana",168.6768108,Doubtful II,44255,Suit,,DATTA NAMDEVRAO KALE,7659406,SAINATH PATIL,7659559,MUKTTA PATIL,7886969
6,HDFC BANK LIMITED,Jhunjhunu,Rajasthan,577,Goyal Udyog (AMGPK7374R),"Ward No. 5, Surajgarh Mandi, Chirawa, District Jhunjhunu -333029, Rajasthan",192.1513651,Doubtful III,44202,Suit,,Niranjan Aggarwal
6,HDFC BANK LIMITED,Jhunjhunu,Rajasthan,578,Ramanand Agarwal,"Surajgarh Mandi, Chirawa, District Jhunjhunu -333029, Rajasthan",163.676825,Doubtful III,44225,Suit,,Ramanand Agarwal
6,HDFC BANK LIMITED,Delhi,Delhi,579,Shireshtha Trading Co (BXNPC9630D),"PROPERTY NO. 45 , KHASRA NO. 50 AND 51, FIRST FLOOR, MAIN ROAD, JOHRIPUR , DELHI -110094",139.1131915,Doubtful II,44255,Suit,,Mahesh Chandra
6,HDFC BANK LIMITED,Gurugram,Haryana,580,S D Plastic (COWPS5462J),"139, Khoh(153), NSG Camp Manesar, Gurugram - 122051",717.0585826,Doubtful II,44286,Suit,,Suman Devi
6,HDFC BANK LIMITED,Delhi,Delhi,581,MAPLE LOGISTICS PRIVATE LIMITED,"75, KHIRKI VILLAGE, MALVIYA NAGAR, NEW DELHI 110017",254.3896163,Doubtful II,44070,Suit,,PIYOOSH GOYAL
6,HDFC BANK LIMITED,Delhi,Delhi,582,WORLDS WINDOW INFRA AND LOGISTICS P LTD,"75, KHIRKI VILLAGE, MALVIYA NAGAR, NEW DELHI 110017",1578.803949,Doubtful II,44164,Suit,,PIYOOSH GOYAL
6,HDFC BANK LIMITED,"East street branch, Pune",Maharashtra,583,LOKHANDWALA JUZER ADDAS,"15 East street,opp Universal Apartment,camp , pune",633.4014327,Loss Assets,39899,Suit,,LOKHANDWALA JUZER ADDAS,,Lokhandwala Maria Juzer
6,HDFC BANK LIMITED,Bangalore,Karnataka,584,MALVIKA HEGDE,"143, 5th Cross,9th Main,
RMV Extension, Bangalore 560 080",418.9897667,Doubtful II,44110,Suit,,MALVIKA HEGDE,,
6,HDFC BANK LIMITED,Delhi,Delhi,585,Kama Metal And Alloys Pvt Ltd (AACCK4069Q)," WZ-3115A, IInd FLOUR RANI BAGH,MAHENDRA PARK NEW DELHI DL 110034 IN",2265.212346,Doubtful II,44286,Suit,, SUNIL KUMAR,162138, SAJAL MITTAL,3577649
6,HDFC BANK LIMITED,Delhi,Delhi,586,Ridhi Auto Industries Pvt Ltd (AAFCR1259N)," FLAT G-208, SATYA SHANTI APTT. SECTOR-13, ROHINI NEAR D.C. CHOWK NEW DELHI DL 110085 ",1005.874067,Doubtful III,44281,Suit,, AMIT JAIN,3369539, ANTIM JAIN,3369552
6,HDFC BANK LIMITED,Delhi,Delhi,587,Sai Creations (BCCPS8380J),"6224 LGF GALI NO-1, BLK-6 DEV NAGAR, KAROL BAGH , CENTRAL DELHI, New DELHI-110005",131.2986783,Doubtful III,44467,Suit,, Sachin Sharma
6,HDFC BANK LIMITED,Delhi,Delhi,588,Ria Fabrics,"586, Mezzanine Floor, Ward No.II, Gali Ghanteshwar, Katra Neel, Chandni Chowk, Delhi - 110006",211.24243,Doubtful III,44286,Suit,,Rubi
6,HDFC BANK LIMITED,Delhi,Delhi,589,Radiant Industries,"J 12/5, Rajouri Garden, New Delhi- 110027",1696.111761,Doubtful III,44445,Suit,,Sanjeev Sehgal
6,HDFC BANK LIMITED,Delhi,Delhi,590,Nucon Appliances,"J 12/5, Rajouri Garden, New Delhi- 110027",114.45343,Doubtful III,44445,Suit,,Sangeeta Sehgal
6,HDFC BANK LIMITED,Kaimur(Bhabhua),Bihar,591,Ganesh Ji Mini Rice Mill,"Vill-Darwa PS-Mohania, Mohania,Dist-Kaimur, Pin-821110",127.3186833,Doubtful II,44070,Suit,,Kapil Gupta,,Shashi Devi Alis Sasi Devi
6,HDFC BANK LIMITED,Bhiwani,Haryana,592,Khemka Electricals,Khemka Mandir Marg Azad Nagar Behind Bansi Lal Park Bhiwani Haryana 127021,157.3153187,Doubtful III,43562,Suit,,Renu Khemka
6,HDFC BANK LIMITED,Bhiwani,Haryana,593,Raj Electronics (Bhiwani),Naya Bazar Bhiwani Haryana  127021,129.8449278,Doubtful III,43614,Suit,,Bajrang Lal Khemka
6,HDFC BANK LIMITED,Bank House Indore,Madhya Pradesh,594,Anish Traders,"132 ,Mahaveer Marg ,Khategaon ,District-Dewas ,Madhya Pradesh",101.5006236,Doubtful II,44286,Suit,,Manish Kumar Baj,,Priya Baj
6,HDFC BANK LIMITED,Dalhousie,West Bengal,595,Vishal Jute Pvt Ltd,"5/1, Clive Row, 4th Floor,Room No. 123,Kolkata- 700 001",105.9172879,Doubtful II,44286,Suit,,Jai Kishan Sharma,925718,Kavita Sharma,2134899
6,HDFC BANK LIMITED,Malkipuram,Andhra Pradesh,596,Veera Hanuman Coconuts And General Merch (BDBPM4100L),"D.No.7-46(Old), D.No.7-57(New),Main Road, Rama Raju Lanka, Malkipuram, E.G.Dist. - 533250",136.2712233,Doubtful III,44294,Suit,,Kumar Swamy Medicharla,,Medicharla Anantha Lakshmi
6,HDFC BANK LIMITED,Ponnuru,Andhra Pradesh,597,Sita Rama Rice Mill (ABAFS3255Q),"D.No.6-1-55,Main Road,Munipalle, Ponnuru, Guntur Dist., AP - 522316",755.3686812,Doubtful II,44317,Suit,,Vattikuti Satya Sai Babu,,Vattikuti Venkata Rama Naidu,,Vattikuti Rama Rayulu,,Vattikuti Srinivasa Rao,,Guttikonda Krishna Murthy
6,HDFC BANK LIMITED,Guntur,Andhra Pradesh,598,Sri Ramalingeswara Cotton Company,"D.No.5-87-47/A, Chandramouli Nagar,6th Lane,Guntur, Guntur Dist. - 522007",313.169828,Doubtful II,44343,Suit,,Vobulasetty Venkata Narayana,,Vobulasetty Lalitha,,Vobulasetty Naga Jtothi
6,HDFC BANK LIMITED,LADWA,Haryana,599,Dharambir Trading Co,WARD NO 6 VIKAS NAGAR LADWA NEAR BHAGAT RAM KANTA LADWA KURUKSHETRA,165.6216604,Loss Assets,42825,Suit,,DHARAMBIR
6,HDFC BANK LIMITED,Kollam,Kerala,600,Mathevan Agencies (AJEPP2422Q),"MC No 16/918 , Vadakkumbhagom Ward , Kollam -1",520.1258498,Doubtful II,44294,Suit,,M Ramanatha Pillia
6,HDFC BANK LIMITED,Madurai,Tamil Nadu,601,Navanna Bricks (AESPN1034M),"14,Vallabhai Chokikulam Madurai,",122.2418375,Doubtful III,43555,Suit,,Mr.Narayanan P
6,HDFC BANK LIMITED,Kallakuruchi,Tamil Nadu,602,S S Agro Foods,"194 LF Road 1st Ward Kachirayapalayam
Kallakurichi Taluk Villupuram Dist Villupuram",501.2087816,Doubtful II,44223,Suit,,Mr. Duraiselvam D,,Mrs.D.Selvi,
6,HDFC BANK LIMITED,Cenotaph,Tamil Nadu,603,Devatech Info Systems Pvt Ltd (AAECD9604Q),"No 30 Old No 12 First Floor
Cenotaph Road
Teynampet,Chennai.",288.6675394,Doubtful II,44281,Suit,,Mr. A Shahul Hameed,,Mr.P. Mahadevan,,Mr.Chezhiyan K R,,Mrs.Dharakeswari G,,Mr.Mohamed Ismail  A
6,HDFC BANK LIMITED,T Nagar,Tamil Nadu,604,Mantralaya Impex,"No 9, Shree Nivasam,
Gopalakrishna Street, T
Nagar Chennai Tamil Nadu
600017 ,Chennai,Tamil
Nadu,India",630.2300183,Doubtful III,44302,Suit,,Mrs Vandana Srinivasan,,
6,HDFC BANK LIMITED,Gurgaon,Haryana,605,Shree Luxmi Book Mart (ADTPC6399L),"Khasra No 5491/2928,Near VIP Pumps,Laxman Vihar,Gurgaon ,Haryana-122001",438.1184147,Doubtful II,44338,Suit,,Rajiv Chopra
6,HDFC BANK LIMITED,Kaithal,Haryana,606,Tarsem Brothers,"Shop no 77,Anaj Mandi,Kaithal Road,Cheeka,Haryana-136034",123.2415963,Doubtful II,44345,Suit,,Varinder Kumar
6,HDFC BANK LIMITED,Jamshedpur,Jharkhand,607,Union Motors,"Main Road, Bistupur, Jamshedpur-831001 District- East Singhbhum, Jharkhand",116.1672491,Doubtful II,44280,Suit,,Arun Kumar Ahuja,,Uravshi Ahuja
6,HDFC BANK LIMITED,Raipur,Chhattisgarh,608,Dinesh Enterprises (Raipur),"E-424, behind Goyal Nursing Radha Krishna Mandir Road, Samta Colony, Raipur- 492001, Chhatisgarh",312.2992935,Loss Assets,42253,Suit,,Dinesh Agarwal (Prop)
6,HDFC BANK LIMITED,"STEPHEN HOUSE,Kolkata",West Bengal,609,NCS Computech Ltd,"228, Doluipara Makhla, Hooghly, West Bengal, 712245.",1253.609324,Loss Assets,43037,Suit,,Manohar Malani (DIR),898181,Raj Kumar Damani (Wholetime DIR),920915,Poonam Chand Malani (DIR),896598
6,HDFC BANK LIMITED,Bhatapara,Chhattisgarh,610,Sacho Satram Industries,"C/o Sacho Satram Industries, Link Road, Bhatapara, C.G",594.0092685,Loss Assets,43098,Suit,,Kailash Gidwani (Prop)
6,HDFC BANK LIMITED,Tilda,Chhattisgarh,611,Shiva Pulses (ABUFS8205Q),"Kh No.9 and 10, Village Khoka, Tilda, Chattisgarh",589.5390351,Doubtful III,43555,Suit,,Mahashakti Pulses,,Ashok Lalwani,,Mamta Devi Lalwani
6,HDFC BANK LIMITED,Tilda,Chhattisgarh,612,Mahashakti Pulses (AASFM5731A),"Kh No.9 and 10, Village Khoka, Tilda, Chattisgarh",588.5292174,Doubtful III,43555,Suit,,Shiva Pulses,,Mamta Devi Lalwani,,Ashok Lalwani
6,HDFC BANK LIMITED,R. S Pura,Jammu & Kashmir,613,Rakesh Rice Mills,Pindi Sarochan R S Pura Jammu - J&K.,298.2188882,Doubtful III,43828,Suit,,Puran Chand Gupta,,Sonu Gupta,,Sashi Pal,,Vipin kumar Manhotra
6,HDFC BANK LIMITED,Navrangpura,Gujarat,614,Yours Ethnic Foods Pvt Ltd (AAACY6578N),"3-D Vardan Tower, Nr. Vimla House, Stadium Road, Navrangpura, Ahmedabad",1317.692088,Doubtful II,44070,Suit,,Sandip Narendrakumar Patel,,Nilam bhai Narendrabhai Patel
6,HDFC BANK LIMITED,Delhi,Delhi,615,De Rigueur Apparels Pvt Ltd (AAGCD1729C),"T-6, Plot No.-2, 3rd Floor, Maalik Builcon Plaza-1, Sector-12, Dwarka Delhi 110078",402.6375991,Loss Assets,44225,Suit,,Rameshwar Kumar Joshi,8252413,Ajay Kumar,8396397
6,HDFC BANK LIMITED,Ichalkaranji,Maharashtra,616,Sangeeta Enterprises,12 667 Devender Sadan Satapute Galli,170.3053794,Doubtful III,43524,Suit,,"Sangeeta Radheshyam
Gattani",,,,,,,,,
6,HDFC BANK LIMITED,Akola,Maharashtra,617,Laxmi Sales Corporation (Akola),"Shop No. 23, APMC Market, Tilak Road, Akola, 444001",153.7251539,Doubtful II,44383,Suit,,Sheikh Jawed Sheikh Hussain Kadri
6,HDFC BANK LIMITED,DELHI,DELHI,618,Ashesh Multimedia Pvt Ltd (AALCA6842J),"SHOP NO 66, 1ST FLOOR, NALANDA SHOPPING CENTRE STATION ROAD, IB PATEL SCHOOL, GOREGAON WEST MUMBAI, MUMBAI",469.6138875,Doubtful III,44376,Suit,,ROSHAN LAL DANGI,8286897,URMILA,8801986
6,HDFC BANK LIMITED,Malout,Punjab,619,Guru Nanak Pesticides And Fertilizers (ADUPG2404P),120 A New Grain Market Malout 152107 Punjab,126.28938,Doubtful II,43706,Suit,,Rakesh Kumar Garg
6,HDFC BANK LIMITED,Kaithal,Haryana,620,SATISH AND CO,Near Sugar Mill Karnal Road Kaithal Haryana 136027,323.1693286,Doubtful II,44289,Suit,,Vinay Bhalla,,Raman Bhalla
6,HDFC BANK LIMITED,SIKANDRABAD,Uttar Pradesh,621,Lala Jai Singh Trading Co (BYIPK9623E),"Mohalla Chaudharywara, Nayaganj, Anaj Mandi, Sikandrabad, Bulandshahar, UP-203205.",123.2847556,Doubtful II,43736,Suit,,Deepak Kumar
6,HDFC BANK LIMITED,"C-9, Lohia Nagar, Ghaziabad",Uttar Pradesh,622,Shiv Shakti Enterprises (AAOPG1250G),"65-C, Hindon Vihar, Delhi Meerut Road, Ghaziabad, Uttar Pradesh-201001",277.39475,Doubtful II,44263,Suit,,Alka Garg
6,HDFC BANK LIMITED,Nagarbhavi 2nd Stage,KARNATAKA,623,K N R Marine Exports (AASFK7863K),"No. 10, 4th Floor,
Kanakapura Main Road,
Above HDFC Bank, Yelachanahalli,
BENGALURU URBAN,
Banalore-560 062.",255.9855546,Doubtful II,44236,Suit,,NAGARAJ SHETTY,,RAHMATH UNNISA,
6,HDFC BANK LIMITED,Chamarajpet,KARNATAKA,624,Vimal Pharma International (AAIFV8115B),"New No. 72/1, Old No. 71/1,
Sri. Puttanna Chetty Road,
Chamrajpet,
BANGALORE-560 018",759.0429158,Doubtful III,44286,Suit,,Chetan G Jain,,Sanjay Jain,
6,HDFC BANK LIMITED,Cox Town -Bangalore,KARNATAKA,625,Ens Logistics India Pvt Ltd (AADCE3503A),"#41, 2nd Floor, 80ft Main Road
Dr. Shiv Ram Karanth Nagar
Hegde Nagar Bengaluru- 560077",132.1847262,Doubtful II,44285,Suit,,Utham Sulaya Nekraje,5131498,Sowmya Serigar R,6507775
6,HDFC BANK LIMITED,Challakere,KARNATAKA,626,Guru Traders,"23/55, Mahadevi Road,  Challakere, Chitradurga, Karnataka 577 522",253.4847903,Doubtful II,44289,Suit,,K Jagannatham
6,HDFC BANK LIMITED,"Tohana,Fatehabad",Haryana,627,Tara Chand Rajinder Kumar,"260/2,Old Anaj Mandi,Tohana,Fatehabad,Haryana-125120",121.8035925,Doubtful III,43706,Suit,,Abhishek Kumar
6,HDFC BANK LIMITED,Gurugram,Haryana,628,Pahuja and Co (AKMPP1128N),"Shop No: 10,Near- Madumal School, Sadar Bazar,Gurugram.Haryana-122001",167.9739961,Doubtful II,44406,Suit,,Om Prakash Pahuja
6,HDFC BANK LIMITED,Anna Nagar-3rd Avenue,Tamil Nadu,629,Paper Board Source And Supply (AIFPA7757F),"No 38, 2nd street, Poompuhar Nagar,Kolathur, Chennai",117.055679,Doubtful II,44381,Suit,,N Abirami,,N. Sathiamurthy,,M S Nagappan
6,HDFC BANK LIMITED,Alwar,Rajasthan,630,MODERN MACHINERY STORE,"Station Road, Alwar Rajasthan",147.6547359,Doubtful III,42990,Suit,,Mr Deepti Gupta,,Alka Gupta,,Sanjay Gupta,,Dhruv Satya Gupta,,ND Gupta
6,HDFC BANK LIMITED,Jaipur,Rajasthan,631,Devi Construction Co,"Plot No 119, Anand Nagar, Sirsi Road, Jaipur",3772.471723,Doubtful III,43216,Suit,,Krishna Yadav,,Abhijeet Yadav
6,HDFC BANK LIMITED,"Kamalkunj, Jaipur",Rajasthan,632,Jaina Steel Corporation (ABZPJ0025G),"19, Dudu ka Bagh, SC Road, Jaipur, Rajasthan",1055.887497,Doubtful II,44286,Suit,,Vijay Kumar Jain,,Meenu Jain
6,HDFC BANK LIMITED,Johari Bajar Jaipur,Rajasthan,633,Morani Motoparts Pvt Ltd,"Plot No-14, Bajaj Nagar Enclave, Bajaj Nagar, Jaipur , Rajasthan",126.6959054,Loss Assets,44286,Suit,,Lal Chand Morani,,Akshita Morani,,Reshma Morani,,Jawahar Morani
6,HDFC BANK LIMITED,"Surat Garh Road, Sriganga Nagar",Rajasthan,634,Choudhary Brothers Hanumangarh,"107 A New Dhan Mandi Hanumangarh Town, Hanuman Jn, HO, Rajasthan",159.57595,Loss Assets,43390,Suit,,Nirmala Om Prakash
6,HDFC BANK LIMITED,"Hanumangarh Town ,Rajasthan",Rajasthan,635,Sahi Ram Ram Chander,"Shop No-12-A Dhan Mandi, Hanumangarh Town, Hanuman Jn. Rajasthan",742.1467262,Loss Assets,43433,Suit,,Rohit Goyal
6,HDFC BANK LIMITED,HBL Branch Sriganga Nagar,Rajasthan,636,Cgr Collateral Management Ltd (AAFCC1004N),"151 New Mandi Yard Sri Ganganagar - Ho,Rajasthan,India",209.3157647,Loss Assets,43555,Suit,,Aman Deep,,Om Prakash
6,HDFC BANK LIMITED,Sriganga Nagar,Rajasthan,637,Choudhary Brothers Agri Exports Pvt Ltd (AAFCC9677B),"4th Floor, 403, Kj City Tower, 4th Floor, Ashok Marg C- Scheme , Jaipur Rajasthan",1059.193915,Loss,43555,Suit,,Aman Deep,,Om Prakash
6,HDFC BANK LIMITED,Jodhpur,Rajasthan,638,Shree Kishan Jugal Kishore Bhati,"U-7, Mandore Mandi, Jodhpur, Rajasthan",395.9385517,Doubtful III,43798,Suit,,Jugal Kishore Bhati
6,HDFC BANK LIMITED,Rajasthan,Rajasthan,639,Sargam Marketing (ABPFS8372K),"D-85 A,Meera Marg, Bani Park,Ashok Nagar, Rajasthan,Jaipur-3002001",176.8463069,Doubtful II,44104,Suit,,Praxit Sharma,,Vipin Sharma
6,HDFC BANK LIMITED,Cherthala,Kerala,640,RAMANATTU MOTOR CORP,"Ramanattu Motor Corp , Building No 7/581 C , Near Vayalar Junction , Cherthala 688531",187.061825,Doubtful II,44131,Suit,,Abhin Reju Joseph,,Reju Joy,,Mini Reju
6,HDFC BANK LIMITED,Bhiwadi,Rajasthan,641,Sewa Steels Pvt Ltd,"E-90 RIICO Industrial Area Bhiwadi, Bhiwadi , Rajasthan",2193.731236,Loss Assets,44496,Suit,,Mr.Varinder Kumar Jindal (Deceased),,Pinki Agarwal
6,HDFC BANK LIMITED,Gurgaon,Haryana,642,Drt Steel Pvt Ltd (AACCD2624G),"86, SECTOR-7 IMT MANESAR GURGAON HARYANA 122050",284.3909997,Doubtful III,44740,Suit,,DINESH AGGARWAL,1082032,TARUN AGGARWAL,1082046
6,HDFC BANK LIMITED,GURUGRAM,HARYANA,643,Varenia Cims Pvt Ltd Dlf Galleria Mkt (AAECV1662Q),AWFIS 3RD FLOOR TOWER B RAJ OFFICE UNITECH SYBER PARK SECTOR 39 GURUGRAM,125.1596662,Doubtful I,44437,Suit,,MRIGANKA SHOME,,Mrs Roniki Shome
6,HDFC BANK LIMITED,Nashik,Maharashtra,644,ASHOK SHIVAJI GHUMARE AND FAMILY,"Sangvi, Taluka-Sinnar, District Nashik Maharashtra",101,Loss Assets,40359,Suit,,Mr. Ashok Shivaji Ghumare,,Mrs. Bharti Ashok Ghumare,,Mr. Kunal Ashok Ghumre,,Miss Vrushali Ashok Ghumare
6,HDFC BANK LIMITED,CST Mumbai,Maharashtra,645,Gandhi News Paper Service (AFYPG4296B),"47, Mahendra Chamber, 1st Floor, D. N. Road, Mumbai - 400001",171.5719248,Doubtful I,44413,Suit,,Jesal Yash Gandhi
6,HDFC BANK LIMITED,Worli Sandoz House,Maharashtra,646,BAFNA MOTORS (M) PRIVATE LIMITED,"Unit No. 712, 7th Floor, World Trade Cetre No. 1, Cuffe Parade, Colaba, Mumbai - 400005",1015.168821,Doubtful II,44115,Suit,,Sumatiprasad Bafna,,Devendra Munnalal Sharma,1397811
6,HDFC BANK LIMITED,Khadsupa,Gujarat,647,Vidhan International Pvt Ltd,"Shop No.610,6th Floor,Empire Estate Building,Ring Road,Surat,Gujarat",120.258812,Doubtful III,43478,Suit,,Ashok Shankarlal Sewda,,Sabir Mangtuddin Nirban,,Sonia S Sewda,,Azam Hussain Nirban,,Dinesh Kumar B Sharma,,Dinesh Charan Singh
6,HDFC BANK LIMITED,LAL BUNGALOW CIRCLE - JAMNAGAR,Gujarat,648,Apace Transolutions Pvt Ltd (AALCA9402E),"Office no.S27,City ArcadeOffice,Near DSP Bunglow,Teen Bati,Jamnagar-3761001",114.7642342,Doubtful I,44437,Suit,,Rajeshwari Devjibhai Shiyani,,Gopalbhai Karshanbhai Kuchhadiya,,Devjibhai Gordhanbhai Shiyani,,Sajjid Yusuf Khira
6,HDFC BANK LIMITED,Kolhapur,Maharashtra,649,J K Jewell,409 D Ward Ayarekar Galli Gangawesh Kolhapur,299.2410189,Doubtful II,44406,Suit,,Jayesh Kantilal Gundesha Huf
6,HDFC BANK LIMITED,Aurangabad,Maharashtra,650,Shreeyash Enterprises (ACMFS4128D),"5,Shri Chintamani Residency Plot No.271
Ulkanagari Aurangabad",158.8624247,Doubtful I,44413,Suit,,Kavita Gopal Pore,,Trupti Atul Palodkar,
6,HDFC BANK LIMITED,Karol Bagh,DELHI,651,Md And Sons Technology Pvt Ltd (AAKCM3916G),"3rd Floor, 5/58,WEA Saraswati Marg, Karol Bag,New Delhi, Pin Code- 110005",121.5697758,Doubtful I,44437,Suit,,Sanjay Sharma,,Ajay Sharma
6,HDFC BANK LIMITED,Ludhiana,Punjab,652,Sachin Gift Centre,City Plaza Shop No-4 Near Crop Parking Mata  Rani Road Ludhiana,843.22641,Doubtful III,44286,Suit,,Inderjit Kalra
6,HDFC BANK LIMITED,Ludhiana,Punjab,653,Jai Udyog (ACKPL6470F),"Plot No: 06 Saini Colony Moti Nagar, Ludhiana",205.3956282,Doubtful II,44301,Suit,,Suman Lata
6,HDFC BANK LIMITED,Ludhiana,Punjab,654,Ess Kay Impex (CDEPS4088R),"65, Mohindra Enclave, Moti Nagar, Ludhiana",186.1747328,Loss,44317,Suit,,Sunny Sharma
6,HDFC BANK LIMITED,Bettiah,Bihar,655,K N Traders (AMSPK1083H),"Chhota Ramana, Saheed Park, Bettiah",121.611899,Doubtful II,43826,Suit,,Nishnat Kumar
6,HDFC BANK LIMITED,Bargarh,Orissa,656,Maa Kamakhya Logistics (AEFPA1666K),"Word No-4, Talipada, Bargarh-768028",284.2041887,Doubtful II,44265,Suit,,Chanchal Agarwal
6,HDFC BANK LIMITED,Cuttack,Orissa,657,Shree Shyam Trading Company (AALHS3146J),"Holding No-193,Word no-25,Malgodown,Near traffic post,College Square, Cuttack-753003",422.6446163,Doubtful II,44376,Suit,,Shyamlal Gupta,,SHANKARLAL GUPTA
6,HDFC BANK LIMITED,Entally,West Bengal,658,Swarupa Enterprises (AGTPD4970D),"Ashokenagar, Kalyangarh (M), Haripur, 24 Parganas (N), Pin- 743223, West Bengal",119.017013,Doubtful II,43767,Suit,,Tapan Kumar  Dey
6,HDFC BANK LIMITED,Dimapur,Nagaland,659,Space M,"Near Plaza Point,Church Road, Dimapur,Nagaland-797 112",454.8696262,Doubtful II,44281,Suit,,MR. ZHENITO KASHETO YEPTHO
6,HDFC BANK LIMITED,DHAMI TOLA GAYA,Bihar,660,Maihar Enterprises (Gaya),"Town/Village – Rama Bhawan, Ramna Road, District- Gaya, Pin Code- 823001, Bihar.",174.7051745,Doubtful II,44350,Suit,,Vikash Kumar
6,HDFC BANK LIMITED,STEPHEN HOUSE,West Bengal,661,Savera Digital India Private Limited (Earlier known as Savera Marketing Agency Pvt Ltd),"40A, CHITTARANJAN AVENUE KOLKATA Kolkata WB 700012 ",2872.261026,Doubtful I,44435,Suit,,GOPAL PANSARI,1382646,Sarita Pansari,1227669,Vijay Kumar Pansari,1227990
6,HDFC BANK LIMITED,BELGHORIA,West Bengal,662,Suruchi Timber Works,"28 Old Nimta Road,
 Ward 22, Holding No.146/1
 Kolkata 700056",569.3750287,Loss Assets,29.12.2012,Suit,,Late Sayan Roychowdhury (Proprietor),,,
6,HDFC BANK LIMITED,Bhuj,Gujarat,663,Agritrade Exports,"101, A-Wing, Rahul Tower,B P X -Road No 5, Mulund (W),  Mumbai – 400 800",1517.292291,Loss Assets,14.05.2015,Suit,,Mr.Manoj Hirjibhar  Thakkar (Prop)
6,HDFC BANK LIMITED,Bhavnager,Gujarat,664,S K Impex,"203, Leela Efcee, Waghawadi Road,Bhavnagar,Gujarat – 364 002",1490.85945,Loss Assets,29.05.2015,Suit,,Kuntal Padmakumar Vyas (Prop)
6,HDFC BANK LIMITED,SALEM BRANCH,TAMIL NADU,665,Sri Palani Andavar Industries,"C/O SRI PALANI ANDAVAR INDUSTRIES,NO 13/3 SIDCO INDUSTRIAL ESTATE,KARUMALAI KOODAL METTUR,SALEM,TAMIL NADU-636402",140.9794669,Loss Assets,29.08.2017,Suit,,P. Bharathi (Partner),,B Sakila (Partner)
6,HDFC BANK LIMITED,Amritsar,Punjab,666,Shree Mahesh Fab Tex (AFJPS8587E),"C/O SHREE MAHESH FAB TEX,BUILDING NO 5,SHASTRI MARKET AMRITSAR,AMRITSAR,PUNJAB,143001",162.1524988,Loss Assets,29.11.2017,Suit,,Raj Kumar Sharma (Partner),,Jyotika Sharma (Partner)
6,HDFC BANK LIMITED,Amritsar,Punjab,667,Shree Mahesh Textile Mills (AABFM2473Q),"C/O SHREE MAHESH TEXTILE MILLS,KHASRA NO 1050/1 KASHMIR ROAD,NEAR VERKA RAILWAY CROSSING VERKA,AMRITSAR,PUNJAB,143001",432.2702588,Loss Assets,29.11.2017,Suit,,Raj Kumar Sharma (Partner),,Neeta Sharma (Partner)
6,HDFC BANK LIMITED,Khanna,Punjab,668,Guru Nanak Filling Station,Guru Nanak Filling Station G T Road Village KOT SEKHON KHANNA PUNJAB,306.3156446,Loss Assets,43280,Suit,,Harinder Kaur
6,HDFC BANK LIMITED,Sohna,Haryana,669,Om S And B Food Pvt Ltd,HOUSE NO 277 WARD NO. 13 SOHNA Gurgaon HR 122103,143.2053536,Loss Assets,43341,Suit,,BHARAT BHUSHAN,6719248,RAHUL AHUJA,7628997
6,HDFC BANK LIMITED,Erode,Tamil Nadu,670,A R A S And P V P V Motors Erode Pvt Ltd (AAECA7867J),"No 203, Veerapandian Pirivu, Perundurai Main Road , Thindal , Erode Tamilnadu 638012",264.639574,Doubtful III,43489,Suit,,P Natarajan,,N Maheswari
6,HDFC BANK LIMITED,Gurgaon,Haryana,671,PARIVARTAN BUILDTECH PRIVATE LIMITED,"Plot No 902, Sector-51
Gurgaon 122002",1682.258761,Doubtful III,43571,Suit,,PARIVARTAN SINGH,,RAJA BHOJ,
6,HDFC BANK LIMITED,Abohar,Punjab,672,Shiv Nath Rai Agro Industries (AHCPG2437J),"Shiv Nath Rai Agro Industries Burj Mohar Road, Fazilka Road Abohar",1102.747911,Doubtful III,43586,Suit,,Mrs Shobha Goyal w/o Mr Anil Goyal
6,HDFC BANK LIMITED,SriGanganagar,Rajasthan,673,Shivnath Rai Lavish Kumar,"3-K-4 Sadbhavna Nagar Sri Ganganagar -
Ho,Rajasthan",767.7618203,Doubtful III,43586,Suit,,Mrs Shobha Goyal w/o Mr Anil Goyal,,
6,HDFC BANK LIMITED,Abohar,Punjab,674,Shiv Nath Rai Anil Kumar,"2565 Mandi No 1 Abohar Fazilka,",1565.678202,Loss,43645,Suit,,Anil Kumar Huf through Karta Mr Anil Kumar
6,HDFC BANK LIMITED,BHIWANI,Haryana,675,Khemkha Power Projects Pvt Ltd,"C 9 , 228 Sector 7 Rohini 110085 Delhi",345.2041528,Doubtful III,43594,Suit,,Khemkha Power Projects Pvt Ltd,,Bajarang Lal Khemka,,Saurabh Khemka
6,HDFC BANK LIMITED,Abohar,Punjab,676,Shiv Shanker Enterprises,"Shop No 2565, Bazar No 4, Near S B I,  Abohar",3258.980169,Doubtful III,43614,Suit,,Anil Kumar Goyal
6,HDFC BANK LIMITED,Panchkula,Haryana,677,P D AGGARWAL ENGINEERS AND CONTRACTORS,Flat no 408 GHS 93 Sector 20  Panchkula Haryana 134109,292.0759786,Doubtful II,43706,Suit,,Rakesh Aggarwal,,Purshotam Das Aggarwal
6,HDFC BANK LIMITED,Chennai,Tamil Nadu,678,VARDEEP PETRO CHEMICAL PRIVATE LIMITED,"Plot 2685,Old No AL 84,New No AL 15, First Floor , 4th Street , 11 th Main Road ,Annanagar,Chennai 600040",2820.530909,Doubtful II,43798,Suit,,Ms Shaly Deepu Abraham,,Mr Deepu Babu Abraham,,Mr Abraham Babu,,Mrs Ramani babu
6,HDFC BANK LIMITED,secunderabad,Telangana,679,Raine Aluminium Pvt Ltd (AAGCR3134F),Flat No 306 Dno 3-6-365 Liberty Plaza Himayth Nagar Opp Stanza Showroom Hyderabad,2959.705805,Doubtful II,43889,Suit,,Pothureddy Nataraj  Srinivas Sandeep,,Pothureddi  Ramesh Babu
6,HDFC BANK LIMITED,Delhi,Delhi,680,Suresh Paper Agency,"980-81, 2/5, ist floor, Makki Paper Market, Chawri Bazar, Delhi - 110006",1572.393908,Doubtful II,43859,Suit,,Suresh Aggrawal (expired)
6,HDFC BANK LIMITED,Delhi,Delhi,681,AUTOWEB PERFORMANCE CARS PVT LTD,"35/8, Second Floor,Old Rajinder Nagar , New Delhi 110060",1740.313557,Loss Assets,44011,Suit,,Vikas Chawla,,Pooja Chawla
6,HDFC BANK LIMITED,Gurgaon,Haryana,682,Blue Ocean Overseas Pvt Ltd (AAFCB7110E),521 SKYLARK APTTS PLOT NO-35 SEC-6 DWARKA NEW DELHI DELHI New Delhi DL 110075,719.10534,Doubtful II,44012,Suit,,POOJA PRABUDH KAKKAR,6675353,KAKKAR PRABUDH SURESH,6675388
6,HDFC BANK LIMITED,Lucknow,Uttar Pradesh,683,Rudar Enterprises (CJUPS6581B),"82/57 Guru Govind Singh Margh, Lal Kuan Lucknow, Lucknow, Uttar Pradesh, India",804.7054013,Doubtful II,44012,Suit,,Chetan Raj Sharma,,Puja Sharma,,Parameshwari Devi
6,HDFC BANK LIMITED,Sivagangai,Tamil Nadu,684,M Gopikannan,"H No 229 Sukanapatti Sivaganga,Tamil
Nadu,India",273.43828,Doubtful II,44012,Suit,,K Gopikannan,,G Velvizhi
6,HDFC BANK LIMITED,Hyderabad,Telangana,685,Vijayasri Enterprises (AAJFV5175G),"Flat No-304,City Home Apartments, Commercial Tax Colony, Kothapet, Hyderabad, Telangana 500035",1184.71364,Doubtful II,44043,Suit,,Vanita Patel,,Yogesh Jeevaraj Patel
6,HDFC BANK LIMITED,Chandigarh Industrial Area Phae 1,Haryana,686,Eggro India (AAGFE1794B),Village Golpura Tehsil Barwala Panchkula Haryana 134109,263.9211983,Doubtful II,44043,Suit,,Sanjeev Goel,,Sonia Goyal
6,HDFC BANK LIMITED,Agra,Uttar Pradesh,687,RCC INFRAVENTURES LIMITED,"14, Ground Floor , Vipul Agora , M.G Road , Sector -28 , Gurgaon",2178.369674,Doubtful II,43951,Suit,,Ravi Kumar Jain,,Luv Jain,,Rajeev Jain,,Padam Chand Jain,3185580,Neeru Jain
6,HDFC BANK LIMITED,Agra,Uttar Pradesh,688,RCC ECO-BUILD SYSTEMS LTD,"14, Ground Floor , Vipul Agora , M.G Road , Sector -28 , Gurgaon",1066.120001,Doubtful II,43951,Suit,,Rajeev Jain,,Luv Jain,,Padam Chand Jain,3185580
6,HDFC BANK LIMITED,Patna,Bihar,689,Patna Stores (AKOPK7356F),"75,Makahnpur Gulzarbagh
Patna City ,Patna,Bihar,India",183.8194575,Doubtful II,44017,Suit,,Sunil Kumar
6,HDFC BANK LIMITED,Imphal,Manipur,690,I R Enterprises (Imphal),"Juliana Complex, Paona Bazar, Imphal West, Imphal, Manipur-795001",214.054322,Doubtful II,44104,Suit,,Yambem Roshan Singh
6,HDFC BANK LIMITED,Hingoli,Maharashtra,691,Mahalaxmi Trading Company (Hingoli),"Apmc Complex New Mondha Hingoli,Maharashtra",249.6575032,Doubtful II,44083,Suit,,Shrikishan P Somani
6,HDFC BANK LIMITED,Erode,TAMIL NADU,692,SUKRITH MOTOR CARS PVT LTD,"No.203, Veerappampalayam Pirivu,Perundurai  Main Road, Thindal  Post , Erode -638012",276.2804903,Doubtful III,43492,Suit,,P Natarajan,,N Maheswari
6,HDFC BANK LIMITED,Kolkata,West Bengal,693,MOHAN MOTOR BUSINESS PVT LTD,"9/12,LALBAZAR STREET KOLKATA Kolkata WB 700001 IN",393.1561489,Loss Assets,43484,Suit,,PRADIP KUMAR BAJAJ,235053,ANJU BAJAJ,560235
6,HDFC BANK LIMITED,Kala AMB,Himachal pradesh,694,Gomti Non Woven Fabrics,Plot No 4 Village Rampur Jattan Kala Amb Himachal Pradesh ,911.0270503,Doubtful III,44135,Suit,,Ankur Mehta ,,Bharti Mehta 
6,HDFC BANK LIMITED,Ludhiana,Punjab,695,Goyal Sales Corp (AEHPG3090F), VPO Malaudh Tehsil Pyal District Ludhiana 141119 Punjab,179.2749656,Doubtful II,44043,Suit,,Snjeev Goel
6,HDFC BANK LIMITED,sonipat,Himachal pradesh,696,Kallu Mal Jot Ram And Co,36 B Gur Mandi Sonipat Haryana131001,336.34909,Doubtful II,44164,Suit,,Mukesh Goel
6,HDFC BANK LIMITED,"Sector-14, Gurgaon.",Haryana,697,Tejasvi Enterprises (BMVPP8144G),"Sector-2, Plot No. 98, Cluster- I, DSIIDC, Bawana Industrial Area, Bawana, Delhi-110039.",508.01119,Loss Assets,44376,Suit,,Tejasvi Prakash
6,HDFC BANK LIMITED,Ludhiana,Punjab,698,Ajay Oswal (ADOPJ6482C),"708, Gulchaman Gali, Sunehari Gurdwara ,Ludhiana",165.811074,Doubtful II,44133,Suit,,Ajay Kumar Jain
6,HDFC BANK LIMITED,Bathinda,Punjab,699,Bhandari Engineering Co Pvt Ltd,Guru Kashi Marg Bhandar Chowk Bathinda,3138.667105,Doubtful III,44164,Suit,,Prithvi Raj Bhandari,617367,Gaurav Bhandari,617387,Saurav Bhandari,6854675,Mohit Bhandari,617531
6,HDFC BANK LIMITED,Hisar,Haryana,700,Yashoda Enterprises,"Krishna Gali , Uklana Mandi , Haryana",156.2178268,Doubtful III,43645,Suit,,Naveen Mittal
6,HDFC BANK LIMITED,Sitamarhi,Bihar,701,SHYAM KISHORE YADAV,"WARD 01 MARVKI MAJHAULIA SITAMARHI,Pin-843331",393.7709786,Doubtful II,43767,Suit,,SHYAM KISHORE YADAV
6,HDFC BANK LIMITED,Faridabad,Haryana,702,Shri Ram Communication (ADSPK5481C),"5L-172 Market No 5, Near 4/5 chowk, Faridabad, Haryana-121001",167.0532203,Doubtful II,43986,Suit,,Mohit Kumar
6,HDFC BANK LIMITED,Bathinda,Punjab,703,National Agriculture Agency,Bhandari Chowk Old Bus Stand Bathinda.,1341.056283,Doubtful III,44164,Suit,,Gaurav Bhandari
6,HDFC BANK LIMITED,Panipat,Haryana,704,Shree Krishana Enterprises (Panipat),Biswan Saroop Colony Opposite Main Bus Stand Panipat Haryana 132103,606.1654803,Doubtful II,44159,Suit,,Sanjay Jain,,Abhishak Jain
6,HDFC BANK LIMITED,Agra,Uttar Pradesh,705,SUMER SONS AUTOTECH PVT LTD,"Khasra No.164 Peerakhar, Shahadra Old Firozabad, Road, Agra, Uttar Pradesh -282006",516.4413818,Doubtful II,44195,Suit,,Sanjeev Jain,,Rajiv Jain
6,HDFC BANK LIMITED,Patna,Bihar,706,R S Store (ATNPS5721J),"AT-Laxmi Uma Plaza, Phrithvi Raj path, East Lohanipur, Old Shubh Chandani Gas Godown, Patna, Bihar, Pin-800003",197.0436313,Doubtful I,44456,Suit,,Shiv Shankar
6,HDFC BANK LIMITED,Cuttack,Orissa,707,Mragencies,"Plot No. 278, Bhomikhal, Bhubaneswar, P.O. - Rasulgarh,",200.6276915,Doubtful I,44442,Suit,,NANDA KISHORE SHARMA,,PASHUPATI SHARMA
6,HDFC BANK LIMITED,Guindy,Tamil Nadu,708,Shri Freight And Logistics P Ltd,"New No 494,Old No 386,MKN Road , Alandur Chennai -600016",115.8506305,Doubtful III,43555,Suit,,Mr Harikrishnan.V,,Mr Sethuraman.N
6,HDFC BANK LIMITED,Aligarh,Uttar Pradesh,709,Shyauraj Singh Shilendra Kumar (APPPK3139Q),C-58 GALLA MANDI DHANIPUR GT ROAD ALIGARH UTER PRADESH,200.0453244,Doubtful I,44467,Suit,,SHEELENDRA KUMAR
6,HDFC BANK LIMITED,Jodhpur,Rajasthan,710,Shree Sai Kripa Chemicals,"Krishna Kunj Shanti Priya Nagar Borunda Dist. Jodhpur Borunda,Rajasthan,India",252.3347755,Doubtful III,43494,Suit,,Vijay Kumar Lakhotiya
6,HDFC BANK LIMITED,Nagaur,Rajasthan,711,Krishna Products (ABCPL6098G),"G-I-266, Riico Industrieal Area, I.I.D. Center, Bikaner Road, Nagaur, Rajasthan, India",359.9448969,Doubtful III,43619,Suit,,Ram dev
6,HDFC BANK LIMITED,Jodhpur,Rajasthan,712,Shree Kishan Jagdish Bhati (ACKPB8072D),"U-7, Mandore Mandi, Jodhpur, Rajasthan",1132.613156,Doubtful II,43798,Suit,,Jugal Kishore Bhati
6,HDFC BANK LIMITED,Pilani,Rajasthan,713,Hariyana Agriculture Store (AXOPS1730N),"Rajgarh Road, Pilani, Chirawaho, Rajasthan",387.4210899,Doubtful III,43828,Suit,,Rajkumar Sheoran
6,HDFC BANK LIMITED,Anaj Mandi,Rajasthan,714,Ramavtar Satyaprakash (Jaipur),"C-23, Surajpole, Anaj Mandi, Jaipur",263.2741516,Doubtful III,43828,Suit,,Suresh Kumar Khandelwal
6,HDFC BANK LIMITED,Bina,Madhya Pradesh,715,M S K Traders,"Durgaganj ,Galla Mandi ,Bina ,District-Sagar ,Madhya Pradesh-470113",121.5990075,Doubtful III,43645,Suit,,Maharwan Sahu
6,HDFC BANK LIMITED,Pundri,Haryana,716,Suraj Bhan Sandeep Kumar,"Shop No- 36 B,Anaj Mandi ,Pundri,Kaithal,Haryana-136026",120.2297322,Doubtful I,44475,Suit,,Mr.Raj Kumar S/o Suraj Bhan
6,HDFC BANK LIMITED,AIZAWL,MIZORAM,717,K M Agencies,"C ROSANGA BUILDING ,RAMHIUM ROAD,CHANDMARI ,AIZWAL,MIZORAM-796007",324.2106855,Doubtful III,44467,Suit,,CHAWNGTHU LALMUANPUII
6,HDFC BANK LIMITED,AIZAWL,MIZORAM,718,King Marketing,"C ROSANGA BUILDING ,RAMHIUM ROAD,CHANDMARI E-29-AIZWAL,MIZORAM-796001",482.497616,Doubtful III,44467,Suit,,LALDINLIANA CHHANGTE
6,HDFC BANK LIMITED,Kellys,Tamil Nadu,719,Nibras Shoes Pvt Ltd (AACCN1078Q),"No 12/42, Taylors Road, Kellys , Chennai , Tamilnadu.",320.8259809,Doubtful I,44445,Suit,,Mr Madar Khaleelur Rahman,,Mrs Gowher Begum
6,HDFC BANK LIMITED,Tindivanam,Tamil Nadu,720,S S Steel Traders (AAHPZ7963N),"No: 135/11A Gingee Road, Near Cinema Theather,Tindivanam",257.7760658,Doubtful I,44475,Suit,,S Zareena Begam,,G A Kurshtith Sayeed,,Mr  Shaji Varadharajan
6,HDFC BANK LIMITED,Thiruvananthapuram,Kerala,721,Subramania Industries (ACGPA5129A),"TC 39/1451-2, Aryasala, Chalai, Thiruvananthapuram.",131.1266396,Doubtful I,44496,Suit,,late Subramonian Velayudhan Achary Prop Subramania Industries
6,HDFC BANK LIMITED,Hyderabad,Telangana,722,Supreme Music India Pvt Ltd,"5-1-750, Supreme House, Bankstreet, Koti,
Hyderabad",393.044536,Doubtful I,44498,Suit,,Muralidhar Girdharilal Harwani,,Harish Kumar Harwani,,Bharati Harwani
6,HDFC BANK LIMITED,DADAR,Maharashtra,723,ARDENT MASCHINFABRIK PRIVATE LIMITED,"XVV2+M39, Off. T.J. Road, Opp. Sunder Tower, Hirji Baug, Sashikant, Shashikant Sawant Rd, Sewri West, Mumbai, Maharashtra 400015",3281.624394,Doubtful II,44309,Suit,,Ashok Narottam Tanna,1265607,Chintan Nitin Engineer,7661245,Madhura Shrikant Muley
6,HDFC BANK LIMITED,VIJAYAWADA,ANDHRA PRADESH,724,New Gen Marketing (AAEFN5868K),"D.No.23-7-4, Giri Street, Satyanarayanapuram, Vijayawada - 520011",303.7734543,Doubtful III,44529,Suit,,POLURU SRINIVASA RAO,,METLAPALLI GANESH RAMA KRISHNA,,VINODA POLURU,,RUKMINI METLAPALLI
6,HDFC BANK LIMITED,Kaithal,Haryana,725,Aggarwal Enterprises (AFKPK8047G),Jakholi Adda Jind Road Kaithal Haryana 136026,775.35763,Doubtful I,44506,Suit,,Mr Anand Bansal
6,HDFC BANK LIMITED,Theni,TAMIL NADU,726,Kala Marketting,"No.15-4-9/5 Akr Mill Road Boothipuram Road, Theni",173.6867413,Doubtful I,44506,Suit,,Thileep Kumar Z,,Ananthan B,,Rathinasabapathi B,,Rajendrababu Sinduja
6,HDFC BANK LIMITED,C R AVENUE,West Bengal,727,Bara Hingu Shah (AACFB7285Q),164 Masjid Bari Street Kolkata- 700006,157.1353943,Doubtful I,44475,Suit,,Rabindra Kumar Shah,,Pramod Kumar Shah
6,HDFC BANK LIMITED,Memari,West Bengal,728,Basanti Automobiles,"575/672 Sri Durga Pally, G T Road, P O Memari, Burdwan- 713146",594.5045291,Doubtful II,44291,Suit,,Shailendra Pandey,,Biseswar Pandey,,Basanti Pandey
6,HDFC BANK LIMITED,Noida,Delhi,729,A S Merchants Pvt Ltd (AAJCA0740P),"2211/48 GROUND FLOOR AGARWAL MARKET,KATRA TABACCO TILAK BAZAR ,DELHI 110006",112.644191,Doubtful I,44437,Suit,,QAMAR AHMED ANSARI,3141399,MOHD SHAKIR,3076226,MOHD ZAKIR ANSARI,3463439
6,HDFC BANK LIMITED,KALANWALI,Haryana,730,Shree Sham Guwar Gum Mills,Dabwali Road Kalanwali Tehsil Sirsa,504.0172477,Doubtful I,44467,Suit,,Mrs Shalu Singla,,Mr Dharminder Kumar Singla
6,HDFC BANK LIMITED,Jalandhar,Punjab,731,Chetanaya Traders,46-Leather Complex Jalandhar,694.31563,Doubtful I,44506,Suit,,Mr Vinod Kumar,,Mr Satya Pal
6,HDFC BANK LIMITED,Salem,TAMIL NADU,732,Sri Ragavendra And Co (ACIPV0354J),"No: 2/106,SB Complex, Mookandapalli, Hosur.",113.5360652,Doubtful III,44284,Suit,,Sri Ragavendra and Co,,Vallasamy.P,,Kantha.B
6,HDFC BANK LIMITED,YOGI CHOWK,Gujarat,733,Dhananjay Gruh Udhyog (AZLPS1013M),"Govindji Industrial Estate ,Plot No 62,Valan,Kamrej,Gujarat -394150",116.7761147,Doubtful I,44529,Suit,,Vitthal bhai Lakhabhai Shekhada
6,HDFC BANK LIMITED,Nashik,Maharashtra,734,Carwala,"Shop No 12, Jaymin Appartment, Bodhale nagar, Nashik - 422006.",127.1320851,Doubtful III,42072,Suit,,Mr. Sushil Lalwani,,Mr. Rajesh P Sale
6,HDFC BANK LIMITED,Lathur,Maharashtra,735,UDAY TRACTORS,"Sy no 371, M.C.H.5/3/575, Udgir, Lathur",173.8298926,Doubtful III,41608,Suit,,Mr.Uttam Arsude
6,HDFC BANK LIMITED,Nashik,Maharashtra,736,Kirti Enterprises (AJWPG5959R),"Vijay Laxmi Chamber, Artillary Center Road,B/ H Anuradha Theatre,Nashik 422 101.",141.7344991,Doubtful III,43767,Suit,,Kirti Abhishek Trivedi
6,HDFC BANK LIMITED,Nashik,Gujarat,737,Shri Balaji Corporation (ACMFS3756R),"Ground Floor, Vijay Laxmi Chamber, Artillary Center Road, B/ H Anuradha Theater,Nashik 422 101.",197.6753905,Doubtful II,43767,Suit,,Mr. Abhishesk Vinod Trivedi,,Mrs Kavita Vijay Jadhav
6,HDFC BANK LIMITED,Surat,Gujarat,738,Rukmani Sarees,"Shop No Y-2183, Surat Textile Market, Ring Road, Surat, Guajarat – 395 002",189.3403507,Doubtful II,43823,Suit,,Mrs. Sharadha Liladhar Paliwal
6,HDFC BANK LIMITED,Pune,Maharashtra,739,Namo Enterprises (BFUPM3840J),"B 116, Parmar Trade Centre, Sadhu Vaswani Chowk, Pune – 411 001",1133.730454,Doubtful II,44164,Suit,,Mr Abhijeet Ashok Munoat
6,HDFC BANK LIMITED,Cloth Market,Madhya Pradesh,740,Go Easy Frozen Foods (BWUPM0567K),"5/2 ,Mahesh Nagar ,Gali no.01 ,Indore ,Madhya Pradesh-452001.",124.7127842,Doubtful I,44529,Suit,,Yuvraj Marval
6,HDFC BANK LIMITED,NAVRANGPURA,Gujarat,741,V D Industries (AFVPK6816J),"502 C Shailee Complex, Opp Loha Bhavan, Income Tax Ahmedabad.",126.74101,Doubtful II,44043,Suit,,Anilkumar K Karumamparambil
6,HDFC BANK LIMITED,Ahmedabad,Gujarat,742,Gandhi Buildmat Pvt Ltd (AACCD5415D),"Ghanshyam Industrial Estate, At & Post Vasna, Iyava Sanand , Ahmedabad",182.0827985,Doubtful II,44281,Suit,,Devang Amrishbhai Gandhi,,Amrishkumar Anandbhai Gandhi
